﻿Body Name,Supplier ID,Supplier Name,Transaction Number,Their Ref,Date,Gross Value ,VAT Amount,Service Label,Service Code,Expenditure Code,Expenditure Category,Service Division Label
Blackpool Council,1006419,Tunstall Healthcare (Uk) Ltd,482536,3IN/10314965,14/08/2018,1381.92,230.32,APFBAB,Vitaline,4501,Private Contractors,Adult & Families
Blackpool Council,1015546,Clear Skies Software,483702,CSS3133,31/08/2018,1440,240,CEMCRE,Cems Crems Etc,3801,Other Expenses,Governance & Partnerships
Blackpool Council,1102823,Wilde Consultants Limited,487220,WPCON 16141,17/08/2018,1119.12,186.52,CTBRAA,Bridges (Growth Fund),6501,Contract Payments,Capital - Comm & Environ
Blackpool Council,1035030,Wicksteed Leisure Ltd,487281,DU836320,15/08/2018,41344.8,6890.8,PRKOP1,Parks Operational Manager  1,3041,Other Materials,Community & Env Services
Blackpool Council,1094375,Collaborate & Innovate Ltd T/A Cosy,487397,SI1143878,21/08/2018,700,116.67,EYT,Early Years Team,3803,Hospitality,Children'S Services
Blackpool Council,1012789,Advanced Business Solutions (Fka Coa),488387,ARBK/99047065,09/08/2018,1140,190,FBBCA,Accountancy,3532,Comp-Running & License Costs,Resources
Blackpool Council,1042715,Medisave Uk Ltd,488804,1369347,02/08/2018,287.39,47.9,APDBBB,Arc,3020,Furniture - Purchase,Adult & Families
Blackpool Council,1025837,R Draper Ltd,488978,49865,15/08/2018,522.25,87.04,PRKOP1,Parks Operational Manager  1,3012,Other Equipment,Community & Env Services
Blackpool Council,1010114,C N Unwin Ltd,489051,0000072857,15/08/2018,3439.89,573.32,INTRAD,Integrated Transport Admin,3010,Safety Equipment,Community & Env Services
Blackpool Council,1100201,D & A Scrivens And Son,489148,6695,15/08/2018,1084.03,180.67,CWASTE,Commercial Waste,4514,Contract 'E',Community & Env Services
Blackpool Council,1100201,D & A Scrivens And Son,489148,6695,15/08/2018,1339.1,223.18,CWASTE,Commercial Waste,1021,Growing,Community & Env Services
Blackpool Council,1016296,B & M Salvage Fuels Ltd,489760,16552,22/08/2018,882,147,SCLEAN,Street Cleaning,4514,Contract 'E',Community & Env Services
Blackpool Council,1082146,Ascentis,489838,59740,09/08/2018,462,0,ALEARN,Adult Learning,3801,Other Expenses,Places
Blackpool Council,1018184,Blackpool Skip Hire,489855,5590,13/08/2018,900,150,SCLEAN,Street Cleaning,4514,Contract 'E',Community & Env Services
Blackpool Council,1112477,Big Wave Media (Fac060),490181,58630,17/08/2018,2734.27,455.71,LEISUR,Leisure Management,3801,Other Expenses,Community & Env Services
Blackpool Council,1012789,Advanced Business Solutions (Fka Coa),490196,ARXI/00003230,09/08/2018,431.88,71.98,FBBCA,Accountancy,3532,Comp-Running & License Costs,Resources
Blackpool Council,1082740,Medpage Limited T/A Easylink Uk,490300,67834,14/08/2018,382.99,63.83,APFBAB,Vitaline,4501,Private Contractors,Adult & Families
Blackpool Council,1057663,Wilde Recruitment Ltd,490316,33144,08/08/2018,517.86,86.31,CTAHHA,Tramway Emergency Works,6501,Contract Payments,Capital - Comm & Environ
Blackpool Council,1090774,Richardson Traction Limited,490347,20441,13/08/2018,720,120,PJAA,"Erection, Operation & Dismantl",2211,Casual Hire,Community & Env Services
Blackpool Council,1057663,Wilde Recruitment Ltd,490350,33181,08/08/2018,517.86,86.31,CTAHHA,Tramway Emergency Works,6501,Contract Payments,Capital - Comm & Environ
Blackpool Council,1018213,G-Map Services Ltd,490599,8693,03/08/2018,3630,605,JAB,Locality,5507,Personal,Children'S Services
Blackpool Council,1006419,Tunstall Healthcare (Uk) Ltd,490608,3IN/10319936,08/08/2018,2831.4,471.9,APFBAB,Vitaline,4501,Private Contractors,Adult & Families
Blackpool Council,1018184,Blackpool Skip Hire,490718,006936,13/08/2018,900,150,SCLEAN,Street Cleaning,4514,Contract 'E',Community & Env Services
Blackpool Council,1049861,Nal Ltd,490721,0000070917,09/08/2018,813.12,135.52,SCHEME,Highways Schemes,3041,Other Materials,Community & Env Services
Blackpool Council,1075307,Team Netsol Limited,490723,101557,03/08/2018,11931.6,1988.6,FCACA,Benefits - Admin,3532,Comp-Running & License Costs,Resources
Blackpool Council,1094424,The Networking People,490786,SI105242,01/08/2018,1026.22,171.04,TSICT,Transforming Schools Ict,3532,Comp-Running & License Costs,Resources
Blackpool Council,1094424,The Networking People,490787,SI105241,01/08/2018,1026.22,171.04,TSICT,Transforming Schools Ict,3532,Comp-Running & License Costs,Resources
Blackpool Council,1094424,The Networking People,490788,SI105240,01/08/2018,513.32,85.55,TSICT,Transforming Schools Ict,3532,Comp-Running & License Costs,Resources
Blackpool Council,1103692,Calico Enterprise Limited,490791,SINV20/00000352,01/08/2018,414,69,FC1802,Social Fund - Client,5210,Community Care Support,Resources
Blackpool Council,1093815,Raydar Safety Ltd,490795,SI-350,02/08/2018,399.6,66.6,CGOAAA,Quality Corridor,6501,Contract Payments,Capital - Commnctn & Regen
Blackpool Council,1076264,Alliance Disposables Ltd,490797,I6907494,01/08/2018,701.8,116.97,APCBCA,Langdale,3101,Provisions,Adult & Families
Blackpool Council,1093815,Raydar Safety Ltd,490802,SI-349,02/08/2018,540,90,CTBRAA,Bridges (Growth Fund),6501,Contract Payments,Capital - Comm & Environ
Blackpool Council,1008105,Mercer & Sons Ltd,490901,830086,02/08/2018,538.2,0,ZM0018,Highways & Engineering,9773,Orders Received Not Invoiced,Blackpool Services
Blackpool Council,1008105,Mercer & Sons Ltd,490901,830086,02/08/2018,645.84,107.64,ZM0018,Highways & Engineering,9511A,Stocks Efin,Blackpool Services
Blackpool Council,1094424,The Networking People,491022,SI105251,02/08/2018,2460,410,FGAA,Ict Corporate Services,3531,Computer-H'Ware Purchase,Resources
Blackpool Council,1094424,The Networking People,491023,SU05247,02/08/2018,1980,330,FGAA,Ict Corporate Services,3531,Computer-H'Ware Purchase,Resources
Blackpool Council,1102823,Wilde Consultants Limited,491032,WPCON 16298,03/08/2018,7596.9,1266.15,CGOAAA,Quality Corridor,6501,Contract Payments,Capital - Commnctn & Regen
Blackpool Council,1102823,Wilde Consultants Limited,491033,WPCON 16299,03/08/2018,9124.42,1520.74,CTBRAA,Bridges (Growth Fund),6501,Contract Payments,Capital - Comm & Environ
Blackpool Council,1102823,Wilde Consultants Limited,491034,WPCON 16300,03/08/2018,3983.89,663.98,TRB,Maintenance & Works,4501,Private Contractors,Community & Env Services
Blackpool Council,1025240,Key Engineering Supplies Ltd,491045,6162,01/08/2018,913.7,0,ZM0018,Highways & Engineering,9773,Orders Received Not Invoiced,Blackpool Services
Blackpool Council,1025240,Key Engineering Supplies Ltd,491045,6162,01/08/2018,1096.44,182.74,ZM0018,Highways & Engineering,9511A,Stocks Efin,Blackpool Services
Blackpool Council,1097449,Maxwell Amenity Ltd,491144,INV476818,03/08/2018,1042.6,0,ZM0018,Highways & Engineering,9773,Orders Received Not Invoiced,Blackpool Services
Blackpool Council,1097449,Maxwell Amenity Ltd,491144,INV476818,03/08/2018,1251.12,208.52,ZM0018,Highways & Engineering,9511A,Stocks Efin,Blackpool Services
Blackpool Council,1006912,Sign Post Solutions Ltd T/A Signfix,491160,246807,01/08/2018,7999.52,1333.25,SCHEME,Highways Schemes,3041,Other Materials,Community & Env Services
Blackpool Council,1091138,Lebus International Engineers Ltd,491205,18769/LWI/F-528,09/08/2018,720,120,PJNA,New Features / Schemes - C & E,3041,Other Materials,Community & Env Services
Blackpool Council,1091138,Lebus International Engineers Ltd,491206,18768/LWI/F5283,03/08/2018,2400,400,PJNA,New Features / Schemes - C & E,3041,Other Materials,Community & Env Services
Blackpool Council,1058846,Keysoft Solutions Limted,491210,ORD-13744-B7C8R,03/08/2018,624,104,TRB,Maintenance & Works,3533,Computer S/W Purchases,Community & Env Services
Blackpool Council,1040691,Quantum Theatre,491230,MSND 22.06.18,01/08/2018,1346.8,224.47,PRKOP1,Parks Operational Manager  1,4501,Private Contractors,Community & Env Services
Blackpool Council,1040743,Iccm,491290,10159,03/08/2018,900,150,CEMCRE,Cems Crems Etc,3605,Confs & Short Courses,Governance & Partnerships
Blackpool Council,1012832,Colas Limited,491306,213319,13/08/2018,1041.41,173.57,SCHEME,Highways Schemes,3041,Other Materials,Community & Env Services
Blackpool Council,1031475,Jenx Ltd,491371,212710,02/08/2018,253.2,42.2,MTE,Undefined Age Group,5401,Aids To Daily Living,Adult & Families
Blackpool Council,1066055,Workwear Express Limited,491418,INV518698,03/08/2018,399.06,66.51,MUSIC,Music & Cultural Education,3801,Other Expenses,Children'S Services
Blackpool Council,1107153,Landscape Supply Company,491420,77429,09/08/2018,261,43.5,ZM0018,Highways & Engineering,9511A,Stocks Efin,Blackpool Services
Blackpool Council,1081560,Transend (Uk) Ltd (Fac008),491422,12303,03/08/2018,486,81,CCTV,Cctv,3003,Equipt-Mtce Repairs,Public Health
Blackpool Council,1025240,Key Engineering Supplies Ltd,491426,6328,13/08/2018,282,0,ZM0018,Highways & Engineering,9773,Orders Received Not Invoiced,Blackpool Services
Blackpool Council,1025240,Key Engineering Supplies Ltd,491426,6328,13/08/2018,282,0,ZM0018,Highways & Engineering,9511A,Stocks Efin,Blackpool Services
Blackpool Council,1057663,Wilde Recruitment Ltd,491434,33220,08/08/2018,517.86,86.31,CTAHHA,Tramway Emergency Works,6501,Contract Payments,Capital - Comm & Environ
Blackpool Council,1082067,Squire Patton Boggs (Uk) Llp,491456,2628447,01/08/2018,10574.29,1762.38,CTAHHA,Tramway Emergency Works,6506,Consultants Fees,Capital - Comm & Environ
Blackpool Council,1052850,Charter Oaks Ltd,491508,071801,09/08/2018,6480,1080,TRB,Maintenance & Works,4501,Private Contractors,Community & Env Services
Blackpool Council,1108630,Exeter - A Learning Community,491512,ELSI 4993,01/08/2018,1000,0,EDDIV,Education Diversity,3605,Confs & Short Courses,Children'S Services
Blackpool Council,1095218,Arbtech Consulting Ltd,491522,25298,09/08/2018,2998.8,499.8,CX4041,Hra - Troutbeck Redevelopment,6514,B.Holes/Site Investgtn/Surveys,Capital - Chief Executive
Blackpool Council,1070480,Tiger Communications Plc,491549,21411,03/08/2018,2852.83,475.47,FGAA,Ict Corporate Services,3532,Comp-Running & License Costs,Resources
Blackpool Council,1006586,H Jenkinson & Co Ltd,491551,SINV00811111,03/08/2018,480,80,AEB,Buildings,3302,Stationery,Resources
Blackpool Council,1116345,Ersa Uk Ltd,491571,2626,08/08/2018,650,0,PVA,Other External Funding,3711,Subscriptions,Places
Blackpool Council,1052850,Charter Oaks Ltd,491578,071802,09/08/2018,11700,1950,CGOAAA,Quality Corridor,6501,Contract Payments,Capital - Commnctn & Regen
Blackpool Council,1095113,Pearce Clinical Psychology Services Ltd,491652,828,03/08/2018,500,0,FK0071,Corporate Training,0911,Training Expenses,Chief Executive
Blackpool Council,1008105,Mercer & Sons Ltd,491655,830488,10/08/2018,287.52,47.92,ENGINE,Engineering,3041,Other Materials,Community & Env Services
Blackpool Council,1099749,Devonshire Primary Academy,491657,DEV109,09/08/2018,1190,0,MNGMT,Central Management,5555,Educational Support,Children'S Services
Blackpool Council,1114416,Quantum Jobs.Com Limited,491676,5985,03/08/2018,358.8,59.8,ALEARN,Adult Learning,7310,Training Courses - No Orders,Places
Blackpool Council,1031983,Olympic Lock & Safeguards Ltd,491677,7005,02/08/2018,957,159.5,SCLEAN,Street Cleaning,3041,Other Materials,Community & Env Services
Blackpool Council,1076264,Alliance Disposables Ltd,491679,I6927211,09/08/2018,822.3,137.05,SCLEAN,Street Cleaning,1601,Consumable Supplies,Community & Env Services
Blackpool Council,1068395,Contemporary Art Society,491690,789-18/19,10/08/2018,2040,340,AHG,Art Gallery Summary,3711,Subscriptions,Places
Blackpool Council,1031128,East Lancashire Chamber Of Commerce,491691,68396,08/08/2018,1620,270,PBF,Communications,3801,Other Expenses,Chief Executive
Blackpool Council,1086156,Water Saving Techniques Limited,491697,3901,09/08/2018,3456,576,PARADE,Parades & Seawall,1012,Premises Maint-Priv.Contractor,Community & Env Services
Blackpool Council,1108859,Education Business Partnership (Nw) Limited,491707,INV-0419,08/08/2018,987.6,164.6,EDDIV,Education Diversity,4101,Other Local Authorities,Children'S Services
Blackpool Council,1057663,Wilde Recruitment Ltd,491719,33258,08/08/2018,517.86,86.31,CTAHHA,Tramway Emergency Works,6501,Contract Payments,Capital - Comm & Environ
Blackpool Council,1094424,The Networking People,491768,SI105270,09/08/2018,4800,800,FGAA,Ict Corporate Services,3527,Communication Lines,Resources
Blackpool Council,1094424,The Networking People,491769,SI105271,09/08/2018,3000,500,FGAA,Ict Corporate Services,3527,Communication Lines,Resources
Blackpool Council,1094424,The Networking People,491770,SI105272,09/08/2018,15858.83,2643.14,FGAA,Ict Corporate Services,3527,Communication Lines,Resources
Blackpool Council,1009501,Egbert H Taylor & Co Ltd,491788,INV000010418,03/08/2018,1752.24,292.04,CWASTE,Commercial Waste,3041,Other Materials,Community & Env Services
Blackpool Council,1008105,Mercer & Sons Ltd,491829,830693,10/08/2018,474,0,ZM0018,Highways & Engineering,9773,Orders Received Not Invoiced,Blackpool Services
Blackpool Council,1008105,Mercer & Sons Ltd,491829,830693,10/08/2018,568.8,94.8,ZM0018,Highways & Engineering,9511A,Stocks Efin,Blackpool Services
Blackpool Council,1076555,Uk Container Maintenance Limited,491839,33504,14/08/2018,1576.8,262.8,CWASTE,Commercial Waste,3041,Other Materials,Community & Env Services
Blackpool Council,1103543,Sailflags,491841,00103979,03/08/2018,2298.6,383.1,SCLEAN,Street Cleaning,3041,Other Materials,Community & Env Services
Blackpool Council,1037659,Hellermanntyton,491848,G221325,22/08/2018,853.92,142.32,PJOA,Commercial & Marketing,3041,Other Materials,Community & Env Services
Blackpool Council,1019678,G & S Smirthwaite Ltd,491889,159925,03/08/2018,668.4,111.4,MTE,Undefined Age Group,5401,Aids To Daily Living,Adult & Families
Blackpool Council,1006269,W.F. Howes Ltd,491903,2234,08/08/2018,2817.6,469.6,LBB,Central Library,3304,Books And Periodicals,Places
Blackpool Council,1099749,Devonshire Primary Academy,491910,DEV111,13/08/2018,11306,0,OPAREA,Opportunity Areas,4515,Contract Services,Places
Blackpool Council,1102823,Wilde Consultants Limited,491911,WPCON 16381,17/08/2018,5356.8,892.8,CTBRAA,Bridges (Growth Fund),6501,Contract Payments,Capital - Comm & Environ
Blackpool Council,1007206,Road Safety Services Ltd,491919,83741,17/08/2018,2109.6,351.6,SCHEME,Highways Schemes,1012,Premises Maint-Priv.Contractor,Community & Env Services
Blackpool Council,1027733,William Smith & Sons (Barnard Castle) Ltd,491928,467975,09/08/2018,981.98,163.66,SCHEME,Highways Schemes,3041,Other Materials,Community & Env Services
Blackpool Council,1114832,Able 2 Occupational Therapy Services Ltd,492015,17910,03/08/2018,444.64,0,FC1404,Blue Badge Reform,3401,General Services,Resources
Blackpool Council,1010667,Argos Business Solutions Ltd,492020,01671946,08/08/2018,750.2,124.98,FC1802,Social Fund - Client,5210,Community Care Support,Resources
Blackpool Council,1006944,Siemens Financial Services Ltd,492022,244/18/0231334,03/08/2018,4532.92,755.48,APFBAB,Vitaline,4501,Private Contractors,Adult & Families
Blackpool Council,1058510,Lifeline Language Services Ltd,492024,1018061,28/08/2018,333.84,55.64,JEA,Senior Management,3419,Interpreters Fees,Children'S Services
Blackpool Council,1017832,Dick Leigh Chainsaw Specialist,492028,195509,14/08/2018,385.62,64.27,PRKOP1,Parks Operational Manager  1,3041,Other Materials,Community & Env Services
Blackpool Council,1087577,Very Vermilion Ltd,492029,BPC_130_0718,16/08/2018,842,0,PRKDEV,Parks Development,3041,Other Materials,Community & Env Services
Blackpool Council,1058510,Lifeline Language Services Ltd,492031,1018037,28/08/2018,522.96,87.16,JEA,Senior Management,3419,Interpreters Fees,Children'S Services
Blackpool Council,1006586,H Jenkinson & Co Ltd,492037,SINV00812043,15/08/2018,1783.98,297.33,AEB,Buildings,3020,Furniture - Purchase,Resources
Blackpool Council,1006586,H Jenkinson & Co Ltd,492038,SINV00812042,15/08/2018,1749.07,291.51,AEB,Buildings,3020,Furniture - Purchase,Resources
Blackpool Council,1006586,H Jenkinson & Co Ltd,492039,SINV00812041,15/08/2018,1246.99,207.83,AEB,Buildings,3020,Furniture - Purchase,Resources
Blackpool Council,1078718,Westminster Education Forum,492044,ED147865-1404,03/08/2018,276,46,CWAN,Children With Additional Needs,0911,Training Expenses,Children'S Services
Blackpool Council,1053453,Brenntag Uk Ltd,492052,32SI 3271520,15/08/2018,345.12,57.52,LEISUR,Leisure Management,3060,Chemicals,Community & Env Services
Blackpool Council,1049304,Insight Direct (Uk) Ltd,492054,3971692,15/08/2018,2157.6,359.6,CS0739,Ict Refresh,6525,I.T. Hardware Purchase,Capital - Resources
Blackpool Council,1008620,Ppg Architectural Coatings Uk Limited,492075,4493380924,16/08/2018,303.44,50.57,ENGINE,Engineering,4501,Private Contractors,Community & Env Services
Blackpool Council,1006985,Servicemaster  Cs West Lancs,492097,8528,09/08/2018,473.56,78.93,AEB,Buildings,3401,General Services,Resources
Blackpool Council,1086156,Water Saving Techniques Limited,492103,3908,09/08/2018,8436,1406,PARADE,Parades & Seawall,1012,Premises Maint-Priv.Contractor,Community & Env Services
Blackpool Council,1105284,Altrincham Girls Grammar School,492104,AGSI 1805,09/08/2018,800,0,EDDIV,Education Diversity,3413,Consultants,Children'S Services
Blackpool Council,1115226,Baker Lomax & Shackley Ltd,492107,B1295,09/08/2018,2502,417,BCA,Corp And Member Services,3413,Consultants,Governance & Partnerships
Blackpool Council,1057663,Wilde Recruitment Ltd,492112,33296,10/08/2018,517.86,86.31,CTAHHA,Tramway Emergency Works,6501,Contract Payments,Capital - Comm & Environ
Blackpool Council,1102823,Wilde Consultants Limited,492113,WPCON 16301,17/08/2018,7192.8,1198.8,CGOAAA,Quality Corridor,6501,Contract Payments,Capital - Commnctn & Regen
Blackpool Council,1086000,Sr Supply Chain Consultants Ltd,492119,INV-2124,08/08/2018,3215,450,FB0001,Business Services Team,0911,Training Expenses,Resources
Blackpool Council,1114704,Morson Human Resources Ltd,492133,HS185310,01/08/2018,1980,330,CTAHHA,Tramway Emergency Works,6506,Consultants Fees,Capital - Comm & Environ
Blackpool Council,1025240,Key Engineering Supplies Ltd,492134,6580,16/08/2018,590.95,98.49,HOMECA,Homecare,3201,Clothing & Uniforms,Adult & Families
Blackpool Council,1074968,P N Grundy Ltd,492135,707,13/08/2018,300,0,FK0071,Corporate Training,0911,Training Expenses,Chief Executive
Blackpool Council,1074697,The Aim Project,492139,3239,14/08/2018,1980.45,0,FK0071,Corporate Training,0911,Training Expenses,Chief Executive
Blackpool Council,1110952,Mereside Primary Academy,492140,0000000079,10/08/2018,770,0,MNGMT,Central Management,5555,Educational Support,Children'S Services
Blackpool Council,1010619,Askews And Holts Library Services Ltd,492141,5769931,03/08/2018,312.83,0,LBB,Central Library,3304,Books And Periodicals,Places
Blackpool Council,1116140,Sf30 Limited,492145,71804,08/08/2018,1097.52,182.92,MNGMT,Central Management,5555,Educational Support,Children'S Services
Blackpool Council,1074697,The Aim Project,492146,3235,09/08/2018,2195.5,0,FK0071,Corporate Training,0911,Training Expenses,Chief Executive
Blackpool Council,1110952,Mereside Primary Academy,492147,0000000080,10/08/2018,1030,0,MNGMT,Central Management,5555,Educational Support,Children'S Services
Blackpool Council,1009082,Gymnastics Enterprises Limited,492153,313925,17/08/2018,997.53,166.25,LEISUR,Leisure Management,3007,Recreational Equipment,Community & Env Services
Blackpool Council,1049304,Insight Direct (Uk) Ltd,492154,3960091,03/08/2018,1497.18,249.52,FGAA,Ict Corporate Services,3532,Comp-Running & License Costs,Resources
Blackpool Council,1071432,Cpi - Crisis Preventions Insititute,492234,CUK0015758,15/08/2018,4680,780,EDDIV,Education Diversity,3605,Confs & Short Courses,Children'S Services
Blackpool Council,1116346,Green Pass Compliance Ltd,492246,GPC102,10/08/2018,1990,0,EDDIV,Education Diversity,3711,Subscriptions,Children'S Services
Blackpool Council,1116346,Green Pass Compliance Ltd,492247,GPC103,10/08/2018,1040,0,EDDIV,Education Diversity,3605,Confs & Short Courses,Children'S Services
Blackpool Council,1099490,Vp Bastion Ltd,492289,7455,03/08/2018,323.91,0,LIFEVE,Life Events Reg & Care,3532,Comp-Running & License Costs,Governance & Partnerships
Blackpool Council,1109814,Nickelodeon Uk Limited,492290,1800000350,03/08/2018,174720,29120,PRB,Events,3401,General Services,Places
Blackpool Council,1096723,Bluemoose Books Ltd,492294,16518,10/08/2018,459,0,AHM,Arts Miscellaneous,3304,Books And Periodicals,Places
Blackpool Council,1053453,Brenntag Uk Ltd,492312,32SI 3271808,03/08/2018,880.5,146.75,LEISUR,Leisure Management,3060,Chemicals,Community & Env Services
Blackpool Council,1011952,Empowerment,492319,392,02/08/2018,402.4,0,MHE,Undefined Age Group,4512,Other Care Block Payments,Adult & Families
Blackpool Council,1011952,Empowerment,492320,394,20/08/2018,347.5,0,MHE,Undefined Age Group,4512,Other Care Block Payments,Adult & Families
Blackpool Council,1011952,Empowerment,492321,393,20/08/2018,379.25,0,MHE,Undefined Age Group,4512,Other Care Block Payments,Adult & Families
Blackpool Council,1096607,Cutlers Property Consultancy (Services),492324,0070429,03/08/2018,3900,0,AEE,Estates,0781,Contracted,Resources
Blackpool Council,1064012,Trueform Engineering Ltd,492328,INV02522,17/08/2018,5146.2,857.7,TRC,Travel & Safety,4501,Private Contractors,Community & Env Services
Blackpool Council,1033509,Blackpool Circus School Cic,492334,1000,08/08/2018,400,0,AHHBA,Blackpool Museum,0981,Professional Fees,Places
Blackpool Council,1093815,Raydar Safety Ltd,492338,SI-372,17/08/2018,540,90,CTBRAA,Bridges (Growth Fund),6501,Contract Payments,Capital - Comm & Environ
Blackpool Council,1007385,R S Components Ltd,492350,290723799,10/08/2018,732.6,122.1,FMAK,Acquisitions 9/10,1131,Electrical Equipment - Repairs,Places
Blackpool Council,1084907,Ken Williams T/A Akwa Irrigation Services,492352,1710,21/08/2018,297.6,49.6,PRKOP1,Parks Operational Manager  1,1012,Premises Maint-Priv.Contractor,Community & Env Services
Blackpool Council,1079864,Glory Global Solutions (International) Ltd,492358,CB18000071,31/08/2018,6300,1050,PARADM,Parking Administration,3001,Office Equipment Purchase,Budgets Outside Cash Limits
Blackpool Council,1098569,The Card Network,492360,INV-4599,09/08/2018,343.08,57.18,FGBA,Specific (Directorate)-Service,3302,Stationery,Resources
Blackpool Council,1115013,Downtown In Business Ltd,492362,INV-20457,01/08/2018,468,78,PTA,Economic Development,3315,Marketing,Places
Blackpool Council,1071842,Sean Conboy T/A Photogenics,492373,6497,09/08/2018,1050,175,PRA,Conferences,3801,Other Expenses,Places
Blackpool Council,1006449,Tmp (Uk) Ltd,492386,100001184949,17/08/2018,354.96,59.16,TRA,Traffic Management,4501,Private Contractors,Community & Env Services
Blackpool Council,1031698,Facultatieve Technologies Ltd,492390,18102992,17/08/2018,2279.05,379.84,CN2016,Carleton Crem Works 2018-20,6501,Contract Payments,Capital - Governance & Partner
Blackpool Council,1028855,Read The Reading Agency Ltd,492392,INV-0295,16/08/2018,850.37,141.73,LBF,Library Management,3819,Events Support,Places
Blackpool Council,1114120,Timotay Landscapes Ltd,492439,12571,22/08/2018,1338.5,223.08,PRKDEV,Parks Development,1012,Premises Maint-Priv.Contractor,Community & Env Services
Blackpool Council,1006586,H Jenkinson & Co Ltd,492440,SINV00812502,17/08/2018,32026.79,5337.8,AEB,Buildings,3020,Furniture - Purchase,Resources
Blackpool Council,1107451,Spectron Led Limited,492446,23764,16/08/2018,3054.72,509.12,PJLA,Maintenance,3041,Other Materials,Community & Env Services
Blackpool Council,1013705,Stadia Sports/ Broxap Limited,492477,INV231900,17/08/2018,1533.6,255.6,PRKOP1,Parks Operational Manager  1,3455,Memorials Trees And Benches,Community & Env Services
Blackpool Council,1013705,Stadia Sports/ Broxap Limited,492478,INV231901,17/08/2018,1533.6,255.6,PRKOP1,Parks Operational Manager  1,3455,Memorials Trees And Benches,Community & Env Services
Blackpool Council,1013705,Stadia Sports/ Broxap Limited,492479,INV231899,17/08/2018,2116,0,ZM0018,Highways & Engineering,9773,Orders Received Not Invoiced,Blackpool Services
Blackpool Council,1013705,Stadia Sports/ Broxap Limited,492479,INV231899,17/08/2018,2539.2,423.2,ZM0018,Highways & Engineering,9511A,Stocks Efin,Blackpool Services
Blackpool Council,1113649,Smartsurvey Ltd,492480,INV-11709,17/08/2018,648,108,PBAD,Corporate Dev & Engagement,3711,Subscriptions,Chief Executive
Blackpool Council,1075577,Hags-Smp Ltd,492481,059491,17/08/2018,262.8,43.8,PRKTEC,Parks Terchnician Manager,3041,Other Materials,Community & Env Services
Blackpool Council,1058510,Lifeline Language Services Ltd,492502,1018102,22/08/2018,289.32,48.22,JEA,Senior Management,5507,Personal,Children'S Services
Blackpool Council,1116473,Smart Distribution Solutions,492510,53861,15/08/2018,6876,1146,PBF,Communications,3801,Other Expenses,Chief Executive
Blackpool Council,1058510,Lifeline Language Services Ltd,492511,1018038,22/08/2018,280.08,46.68,JEA,Senior Management,5507,Personal,Children'S Services
Blackpool Council,1049304,Insight Direct (Uk) Ltd,492513,3976507,17/08/2018,2509.79,418.3,FGAA,Ict Corporate Services,3532,Comp-Running & License Costs,Resources
Blackpool Council,1076264,Alliance Disposables Ltd,492517,I6958110,22/08/2018,298.8,0,ZM0018,Highways & Engineering,9773,Orders Received Not Invoiced,Blackpool Services
Blackpool Council,1076264,Alliance Disposables Ltd,492517,I6958110,22/08/2018,358.56,59.76,ZM0018,Highways & Engineering,9511A,Stocks Efin,Blackpool Services
Blackpool Council,1006586,H Jenkinson & Co Ltd,492525,SINV00811724,10/08/2018,684,114,AEB,Buildings,3020,Furniture - Purchase,Resources
Blackpool Council,1115477,REDACTED PERSONAL DATA,492544,20180717-000700,16/08/2018,475,0,AHH,Heritage,3822,Photography,Places
Blackpool Council,1006196,Prism Medical Uk,492609,5271591,07/08/2018,3957,0,CX4002,Disabled Facilities Grants,6501,Contract Payments,Capital - Adult Social Care
Blackpool Council,1006196,Prism Medical Uk,492611,5271128,03/08/2018,5488.25,0,CX4002,Disabled Facilities Grants,6501,Contract Payments,Capital - Adult Social Care
Blackpool Council,1006196,Prism Medical Uk,492612,5271253,03/08/2018,4377.2,0,CX4002,Disabled Facilities Grants,6501,Contract Payments,Capital - Adult Social Care
Blackpool Council,1006196,Prism Medical Uk,492613,5270831,01/08/2018,5862.25,0,CX4002,Disabled Facilities Grants,6501,Contract Payments,Capital - Adult Social Care
Blackpool Council,1006196,Prism Medical Uk,492614,5270920,02/08/2018,3849.75,0,CX4002,Disabled Facilities Grants,6501,Contract Payments,Capital - Adult Social Care
Blackpool Council,1006196,Prism Medical Uk,492615,5271657,07/08/2018,2461.5,0,CXAAA,Local Authority Dwellings,6501,Contract Payments,Capital - Chief Executive
Blackpool Council,1006460,Total Hygiene Ltd,492620,OP/I143535,10/08/2018,3350,0,CX4002,Disabled Facilities Grants,6501,Contract Payments,Capital - Adult Social Care
Blackpool Council,1052850,Charter Oaks Ltd,492670,071820,22/08/2018,1800,300,TRA,Traffic Management,4501,Private Contractors,Community & Env Services
Blackpool Council,1115870,Traffic Direct Limited,492671,8289,17/08/2018,3480,580,TRB,Maintenance & Works,0911,Training Expenses,Community & Env Services
Blackpool Council,1088658,D-Tech International Ltd,492673,6560,22/08/2018,1188,198,LBC,Branch Libraries,3532,Comp-Running & License Costs,Places
Blackpool Council,1088658,D-Tech International Ltd,492675,6558,22/08/2018,1188,198,LBC,Branch Libraries,3532,Comp-Running & License Costs,Places
Blackpool Council,1088658,D-Tech International Ltd,492676,6557,22/08/2018,594,99,LBC,Branch Libraries,3532,Comp-Running & License Costs,Places
Blackpool Council,1008525,Kingswood Office Supplies Limited,492689,325344,02/08/2018,454.8,75.8,PRB,Events,3301,Printing,Places
Blackpool Council,1071702,Links Signs & Graphics Ltd,492692,LSGI24801,03/08/2018,1143.6,190.6,PBF,Communications,3801,Other Expenses,Chief Executive
Blackpool Council,1023830,Rossendale Group Stockport,492694,INV09593,22/08/2018,300,50,PJHA,"Depot, Management & Admin",3041,Other Materials,Community & Env Services
Blackpool Council,1013064,Tarmac Lafarge Trading Limited,492780,9038463903,10/08/2018,716.42,119.4,ENGINE,Engineering,3041,Other Materials,Community & Env Services
Blackpool Council,1013064,Tarmac Lafarge Trading Limited,492783,9038440136,08/08/2018,453.09,75.51,ENGINE,Engineering,3041,Other Materials,Community & Env Services
Blackpool Council,1094424,The Networking People,492784,SI105296,17/08/2018,6404.17,1067.36,FGAA,Ict Corporate Services,3532,Comp-Running & License Costs,Resources
Blackpool Council,1096226,Zagota Creations Limited,492787,11928,16/08/2018,555.48,92.58,CEMCRE,Cems Crems Etc,3801,Other Expenses,Governance & Partnerships
Blackpool Council,1013064,Tarmac Lafarge Trading Limited,492788,9038424283,03/08/2018,879.85,146.64,ENGINE,Engineering,3041,Other Materials,Community & Env Services
Blackpool Council,1013064,Tarmac Lafarge Trading Limited,492790,9038410150,01/08/2018,404.7,67.45,ENGINE,Engineering,3041,Other Materials,Community & Env Services
Blackpool Council,1013064,Tarmac Lafarge Trading Limited,492791,9038458944,10/08/2018,886.83,147.8,ENGINE,Engineering,3041,Other Materials,Community & Env Services
Blackpool Council,1088636,Tarmac Building Products Ltd,492794,SI01406059,16/08/2018,943.32,0,ZM0018,Highways & Engineering,9773,Orders Received Not Invoiced,Blackpool Services
Blackpool Council,1088636,Tarmac Building Products Ltd,492794,SI01406059,16/08/2018,1131.98,188.66,ZM0018,Highways & Engineering,9511A,Stocks Efin,Blackpool Services
Blackpool Council,1088636,Tarmac Building Products Ltd,492795,SI01406060,16/08/2018,475.28,0,ZM0018,Highways & Engineering,9773,Orders Received Not Invoiced,Blackpool Services
Blackpool Council,1088636,Tarmac Building Products Ltd,492795,SI01406060,16/08/2018,570.33,95.05,ZM0018,Highways & Engineering,9511A,Stocks Efin,Blackpool Services
Blackpool Council,1088636,Tarmac Building Products Ltd,492796,SI01402997,10/08/2018,1054,0,ZM0018,Highways & Engineering,9773,Orders Received Not Invoiced,Blackpool Services
Blackpool Council,1088636,Tarmac Building Products Ltd,492796,SI01402997,10/08/2018,1264.8,210.8,ZM0018,Highways & Engineering,9511A,Stocks Efin,Blackpool Services
Blackpool Council,1011970,A1 Streamline Road Markings Ltd,492802,3064,02/08/2018,1142.01,190.33,ENGINE,Engineering,1012,Premises Maint-Priv.Contractor,Community & Env Services
Blackpool Council,1071702,Links Signs & Graphics Ltd,492808,LSGI24864,03/08/2018,336,56,FMAB,Commercial Propereties,3315,Marketing,Resources
Blackpool Council,1110952,Mereside Primary Academy,492809,0000000083,23/08/2018,5301,0,OPAREA,Opportunity Areas,4515,Contract Services,Places
Blackpool Council,1009004,Bemrosebooth Paragon Limited T/A Paragon Id,492811,457810,15/08/2018,2520,420,PARADM,Parking Administration,3302,Stationery,Budgets Outside Cash Limits
Blackpool Council,1097024,Chapelcroft Limited T/A Ark,492814,12771,08/08/2018,948,158,PU0001,Public Health Team,4501,Private Contractors,Public Health
Blackpool Council,1102943,Titanium Fireworks Ltd,492830,1924,01/08/2018,35361,5893.5,PRB,Events,3401,General Services,Places
Blackpool Council,1008937,I Brooks,492833,020,02/08/2018,531,0,LBF,Library Management,1604,Window Cleaning,Places
Blackpool Council,1082740,Medpage Limited T/A Easylink Uk,492834,68302,08/08/2018,394.09,65.68,APFBAB,Vitaline,4501,Private Contractors,Adult & Families
Blackpool Council,1022781,Moore Readymix Ltd,492835,91236,22/08/2018,702.6,117.1,ENGINE,Engineering,3041,Other Materials,Community & Env Services
Blackpool Council,1006586,H Jenkinson & Co Ltd,492837,SINV00812825,22/08/2018,480,80,AEB,Buildings,3302,Stationery,Resources
Blackpool Council,1022781,Moore Readymix Ltd,492838,91203,22/08/2018,641.71,106.95,ENGINE,Engineering,3041,Other Materials,Community & Env Services
Blackpool Council,1116217,City Group Ms Ltd,492846,7848,20/08/2018,1402.2,233.7,MPB,Edc - Economic Dev Company,2002,Repairs And Maintenance,Places
Blackpool Council,1010619,Askews And Holts Library Services Ltd,492849,5782027,10/08/2018,320.19,0,LBB,Central Library,3304,Books And Periodicals,Places
Blackpool Council,1023362,Jewson Limited,492851,0181/0183712,09/08/2018,267.12,44.52,ZM0018,Highways & Engineering,9511A,Stocks Efin,Blackpool Services
Blackpool Council,1111807,Costar Uk Limited,492852,106980777,15/08/2018,990,165,AEE,Estates,3532,Comp-Running & License Costs,Resources
Blackpool Council,1013705,Stadia Sports/ Broxap Limited,492854,INV232048,17/08/2018,2745,0,ZM0018,Highways & Engineering,9773,Orders Received Not Invoiced,Blackpool Services
Blackpool Council,1013705,Stadia Sports/ Broxap Limited,492854,INV232048,17/08/2018,3594,599,ZM0018,Highways & Engineering,9511A,Stocks Efin,Blackpool Services
Blackpool Council,1006398,Travis Perkins Trading Company Limited,492855,9789AQL029,22/08/2018,3712.8,618.8,CTBRAA,Bridges (Growth Fund),6501,Contract Payments,Capital - Comm & Environ
Blackpool Council,1021138,British Parking Association,492920,51449,02/08/2018,1065.6,177.6,PARADM,Parking Administration,0917,Other Exps,Budgets Outside Cash Limits
Blackpool Council,1038314,Century Plastics Ltd,492921,96020519,17/08/2018,2637.48,439.58,TRC,Travel & Safety,4501,Private Contractors,Community & Env Services
Blackpool Council,1007228,Rigby Taylor Ltd,492922,RSIN0268242,23/08/2018,252,42,PRKDEV,Parks Development,3012,Other Equipment,Community & Env Services
Blackpool Council,1112388,Fragance Uk - Blackpool Ltd T/A Imperialhotel,492928,37023,21/08/2018,545,90.83,AHH,Heritage,1703,Accommodation For Visitors,Places
Blackpool Council,1006425,Turnock Ltd,492934,45220,20/08/2018,1457.28,242.88,PJOA,Commercial & Marketing,3041,Other Materials,Community & Env Services
Blackpool Council,1009417,Eriks Industrial Services Fna Wyko,492935,00298366,17/08/2018,2102.4,350.4,PJLA,Maintenance,3041,Other Materials,Community & Env Services
Blackpool Council,1006196,Prism Medical Uk,492938,5274480,22/08/2018,1889.37,0,CXAAA,Local Authority Dwellings,6501,Contract Payments,Capital - Chief Executive
Blackpool Council,1106616,Boingboing Resilience Cic,492942,436,17/08/2018,15550,2591.67,HS0003,Headstart Commissioning,3401,General Services,Children'S Services
Blackpool Council,1088639,Browns Ctp Limited,492946,48237,17/08/2018,702,117,PRG,Tourism General,3301,Printing,Places
Blackpool Council,1037659,Hellermanntyton,492948,G224872,22/08/2018,548.1,91.35,PJLA,Maintenance,3041,Other Materials,Community & Env Services
Blackpool Council,1046723,Brightprint (Fac008 Payment Only),492951,26341,03/08/2018,1375,0,EYT,Early Years Team,3301,Printing,Children'S Services
Blackpool Council,1095162,Ese Direct Limited,492952,ESI1047669,02/08/2018,604.8,100.8,AHH,Heritage,3020,Furniture - Purchase,Places
Blackpool Council,1096607,Cutlers Property Consultancy (Services),492953,0070426,01/08/2018,4355,0,AEE,Estates,0781,Contracted,Resources
Blackpool Council,1041542,James Caverhill Conservation Ltd,492956,5248,23/08/2018,750,0,AHH,Heritage,3308,Servicing,Places
Blackpool Council,1041542,James Caverhill Conservation Ltd,492957,5236,23/08/2018,600,0,AHH,Heritage,3308,Servicing,Places
Blackpool Council,1049304,Insight Direct (Uk) Ltd,492958,3985333,24/08/2018,2024.38,337.4,CS0739,Ict Refresh,6525,I.T. Hardware Purchase,Capital - Resources
Blackpool Council,1107930,H Kennedy T/A Video Interaction Guidance Hk,492961,998,21/08/2018,8000,0,HS0003,Headstart Commissioning,3401,General Services,Children'S Services
Blackpool Council,1006398,Travis Perkins Trading Company Limited,492963,9789 AQL024,29/08/2018,5846.7,974.45,CTBRAA,Bridges (Growth Fund),6501,Contract Payments,Capital - Comm & Environ
Blackpool Council,1012990,Gladstone Mrm Limited,492966,04008010,01/08/2018,1347.74,224.62,LEISUR,Leisure Management,3801,Other Expenses,Community & Env Services
Blackpool Council,1090774,Richardson Traction Limited,492969,20416,01/08/2018,3060,510,PJAA,"Erection, Operation & Dismantl",2211,Casual Hire,Community & Env Services
Blackpool Council,1090774,Richardson Traction Limited,492970,20417,01/08/2018,660,110,PJNA,New Features / Schemes - C & E,2211,Casual Hire,Community & Env Services
Blackpool Council,1008052,Midland Signs (Leicester) Ltd T/A G & G Signs,492972,38859,15/08/2018,483.12,80.52,ENGINE,Engineering,3041,Other Materials,Community & Env Services
Blackpool Council,1009755,D Kirkham,492973,BC/25/001JUL18,01/08/2018,696,0,TRCHIL,Integrated Transport Children,2201,Contract Hire,Community & Env Services
Blackpool Council,1072848,Peter Rhodes,492975,BC/01/001JUL18,01/08/2018,1095,0,TRCHIL,Integrated Transport Children,4501,Private Contractors,Community & Env Services
Blackpool Council,1072848,Peter Rhodes,492976,BC/01/008JUL18,01/08/2018,1095,0,TRCHIL,Integrated Transport Children,4501,Private Contractors,Community & Env Services
Blackpool Council,1051299,Leisure Travel,492977,BC/01/025JUL18,01/08/2018,960,0,TRCHIL,Integrated Transport Children,4501,Private Contractors,Community & Env Services
Blackpool Council,1051299,Leisure Travel,492978,BC/01/002JUL18,01/08/2018,1200,0,TRCHIL,Integrated Transport Children,4501,Private Contractors,Community & Env Services
Blackpool Council,1051299,Leisure Travel,492979,BC/01/024JUL18,01/08/2018,1200,0,TRCHIL,Integrated Transport Children,4501,Private Contractors,Community & Env Services
Blackpool Council,1051299,Leisure Travel,492980,BC/72/002JUL18,01/08/2018,1768,0,TRCHIL,Integrated Transport Children,2201,Contract Hire,Community & Env Services
Blackpool Council,1091050,Howard Palmer T/A Trojan Travel,492981,BC/02/002JUL18,01/08/2018,1425,0,TRCHIL,Integrated Transport Children,4501,Private Contractors,Community & Env Services
Blackpool Council,1000009,Blackpool & The Fylde College,492983,T0013530,02/08/2018,9000,0,HS0003,Headstart Commissioning,3401,General Services,Children'S Services
Blackpool Council,1008925,Hugh Logan Engineering Ltd,492985,35854,24/08/2018,778,0,ZM0018,Highways & Engineering,9773,Orders Received Not Invoiced,Blackpool Services
Blackpool Council,1008925,Hugh Logan Engineering Ltd,492985,35854,24/08/2018,933.6,155.6,ZM0018,Highways & Engineering,9511A,Stocks Efin,Blackpool Services
Blackpool Council,1095739,Pac2015 Ltd T/A Pac Wristbands Limited,492992,0000036213,24/08/2018,869.4,144.9,PRB,Events,3401,General Services,Places
Blackpool Council,1007228,Rigby Taylor Ltd,493007,RSIN0268528,24/08/2018,444,74,ENGINE,Engineering,3041,Other Materials,Community & Env Services
Blackpool Council,1114736,Geminus Training Limited,493010,INV-00162,02/08/2018,4320,720,PTA,Economic Development,3315,Marketing,Places
Blackpool Council,1006292,Vodafone Corporate Ltd,493012,LF48249,03/08/2018,276,46,FGAA,Ict Corporate Services,3531,Computer-H'Ware Purchase,Resources
Blackpool Council,1006292,Vodafone Corporate Ltd,493013,LF48254,03/08/2018,276,46,FGAA,Ict Corporate Services,3531,Computer-H'Ware Purchase,Resources
Blackpool Council,1006292,Vodafone Corporate Ltd,493014,LF48253,03/08/2018,276,46,FGAA,Ict Corporate Services,3531,Computer-H'Ware Purchase,Resources
Blackpool Council,1006292,Vodafone Corporate Ltd,493015,LF48252,03/08/2018,276,46,FGAA,Ict Corporate Services,3531,Computer-H'Ware Purchase,Resources
Blackpool Council,1006292,Vodafone Corporate Ltd,493016,LF48250,03/08/2018,276,46,FGAA,Ict Corporate Services,3531,Computer-H'Ware Purchase,Resources
Blackpool Council,1076264,Alliance Disposables Ltd,493019,I6968607,24/08/2018,749,0,ZM0018,Highways & Engineering,9773,Orders Received Not Invoiced,Blackpool Services
Blackpool Council,1076264,Alliance Disposables Ltd,493019,I6968607,24/08/2018,1161.6,193.6,ZM0018,Highways & Engineering,9511A,Stocks Efin,Blackpool Services
Blackpool Council,1111248,Nottingham City Council,493025,852515541,03/08/2018,3600,600,PRKOP1,Parks Operational Manager  1,1021,Growing,Community & Env Services
Blackpool Council,1111248,Nottingham City Council,493026,852515576,03/08/2018,7211.02,1201.84,PRKOP1,Parks Operational Manager  1,1021,Growing,Community & Env Services
Blackpool Council,1011970,A1 Streamline Road Markings Ltd,493029,3069,07/08/2018,353.09,58.85,TRB,Maintenance & Works,4501,Private Contractors,Community & Env Services
Blackpool Council,1090628,The Furniture Recycling Group,493030,INV15598,06/08/2018,258.72,43.12,CWASTE,Commercial Waste,4514,Contract 'E',Community & Env Services
Blackpool Council,1116174,Selwyns Travel Ltd,493037,93795,24/08/2018,395,0,PRB,Events,3401,General Services,Places
Blackpool Council,1116174,Selwyns Travel Ltd,493038,93796,24/08/2018,475,0,PRB,Events,3401,General Services,Places
Blackpool Council,1006449,Tmp (Uk) Ltd,493042,100001181848,01/08/2018,5430.89,905.15,TRA,Traffic Management,4501,Private Contractors,Community & Env Services
Blackpool Council,1011714,Michael Hope Haulage Limited,493046,001353,01/08/2018,1824,304,SCHEME,Highways Schemes,1012,Premises Maint-Priv.Contractor,Community & Env Services
Blackpool Council,1026676,Redman Smith Ltd ( Plastics Blackpool),493047,890,01/08/2018,1085,0,SCHEME,Highways Schemes,3041,Other Materials,Community & Env Services
Blackpool Council,1013064,Tarmac Lafarge Trading Limited,493048,9038482614,15/08/2018,294.32,49.05,ENGINE,Engineering,3041,Other Materials,Community & Env Services
Blackpool Council,1013064,Tarmac Lafarge Trading Limited,493049,9038474972,10/08/2018,313.68,52.28,ENGINE,Engineering,3041,Other Materials,Community & Env Services
Blackpool Council,1013064,Tarmac Lafarge Trading Limited,493050,9038482613,15/08/2018,459.37,76.56,ENGINE,Engineering,3041,Other Materials,Community & Env Services
Blackpool Council,1103450,Blackpool Entertainment Company Limited,493051,INV003703,01/08/2018,1088.8,181.47,PRB,Events,3401,General Services,Places
Blackpool Council,1116218,Niche Ventures Ltd T/A Niche Event Hire,493053,4497,01/08/2018,780,130,PRB,Events,3006,Hire Of Equipment,Places
Blackpool Council,1076636,Chicken Joes Ltd,493057,490696,03/08/2018,265.71,0,CATERG,Catering Services,3101,Provisions,Community & Env Services
Blackpool Council,1006292,Vodafone Corporate Ltd,493064,LF38893,02/08/2018,276,46,JBT,Looked After Children,3531,Computer-H'Ware Purchase,Children'S Services
Blackpool Council,1006292,Vodafone Corporate Ltd,493065,LF65002,03/08/2018,450,75,FGAA,Ict Corporate Services,3531,Computer-H'Ware Purchase,Resources
Blackpool Council,1006292,Vodafone Corporate Ltd,493066,LF71976,08/08/2018,666,111,FGAA,Ict Corporate Services,3531,Computer-H'Ware Purchase,Resources
Blackpool Council,1013415,Drain Doctor Plumbing,493086,16-9156,13/08/2018,420,70,SCHEME,Highways Schemes,1012,Premises Maint-Priv.Contractor,Community & Env Services
Blackpool Council,1055691,Norbain Sd Ltd,493098,I2697268,03/08/2018,1803.65,300.61,CCTV,Cctv,3003,Equipt-Mtce Repairs,Public Health
Blackpool Council,1013064,Tarmac Lafarge Trading Limited,493099,9038496553,17/08/2018,338.85,56.47,ENGINE,Engineering,3041,Other Materials,Community & Env Services
Blackpool Council,1006450,Tnt Uk Ltd,493104,4290541,01/08/2018,268.87,44.81,ZM0018,Highways & Engineering,9511A,Stocks Efin,Blackpool Services
Blackpool Council,1098193,Westminster Primary Academy,493106,6000000008,01/08/2018,10448,0,OPAREA,Opportunity Areas,4515,Contract Services,Places
Blackpool Council,1090774,Richardson Traction Limited,493107,20482,08/08/2018,3300,550,PJAA,"Erection, Operation & Dismantl",2211,Casual Hire,Community & Env Services
Blackpool Council,1012990,Gladstone Mrm Limited,493108,04008335,22/08/2018,1194,199,LEISUR,Leisure Management,3801,Other Expenses,Community & Env Services
Blackpool Council,1086156,Water Saving Techniques Limited,493109,3914,13/08/2018,384,64,PARADE,Parades & Seawall,1012,Premises Maint-Priv.Contractor,Community & Env Services
Blackpool Council,1021388,Cidari Education Ltd T/A St Georges School,493110,SGSI 16,01/08/2018,10000,0,OPAREA,Opportunity Areas,4515,Contract Services,Places
Blackpool Council,1049152,Marwood Group Ltd,493113,1058387,24/08/2018,2624.4,437.4,SCHEME,Highways Schemes,3041,Other Materials,Community & Env Services
Blackpool Council,1100542,Caroline Horn T/A Bentley Training,493114,BEN/351,02/08/2018,1624,0,LEISUR,Leisure Management,0911,Training Expenses,Community & Env Services
Blackpool Council,1100542,Caroline Horn T/A Bentley Training,493115,BEN/352,02/08/2018,887.5,0,LEISUR,Leisure Management,0911,Training Expenses,Community & Env Services
Blackpool Council,1108220,Clarks Removals,493116,D1610,02/08/2018,660,0,AEB,Buildings,3020,Furniture - Purchase,Resources
Blackpool Council,1090774,Richardson Traction Limited,493118,20485,13/08/2018,720,120,PJAA,"Erection, Operation & Dismantl",2211,Casual Hire,Community & Env Services
Blackpool Council,1097997,Szpunar & Associates Ltd,493119,23/015/0005,22/08/2018,4200,0,LM0420,Adults Training,0911,Training Expenses,Adult & Families
Blackpool Council,1066073,Blackpool Coastal Housing,493120,30001459,02/08/2018,960,160,FK0071,Corporate Training,0911,Training Expenses,Chief Executive
Blackpool Council,1107790,Taylek Ltd,493129,INV-09205,22/08/2018,722.28,120.38,PJLA,Maintenance,3041,Other Materials,Community & Env Services
Blackpool Council,1107790,Taylek Ltd,493133,INV-09092,13/08/2018,527.76,87.96,PJOA,Commercial & Marketing,3041,Other Materials,Community & Env Services
Blackpool Council,1107790,Taylek Ltd,493134,INV-09005,13/08/2018,276,46,PJOA,Commercial & Marketing,3041,Other Materials,Community & Env Services
Blackpool Council,1107790,Taylek Ltd,493135,INV-09018,09/08/2018,354.48,59.08,PJOA,Commercial & Marketing,3041,Other Materials,Community & Env Services
Blackpool Council,1107790,Taylek Ltd,493137,INV-08851,09/08/2018,387.02,64.5,PJOA,Commercial & Marketing,3041,Other Materials,Community & Env Services
Blackpool Council,1107790,Taylek Ltd,493138,INV-08934,09/08/2018,276,46,PJOA,Commercial & Marketing,3041,Other Materials,Community & Env Services
Blackpool Council,1101740,Ken Taylor Supplies Limited,493141,0271930,02/08/2018,890.4,0,ZM0018,Highways & Engineering,9773,Orders Received Not Invoiced,Blackpool Services
Blackpool Council,1101740,Ken Taylor Supplies Limited,493141,0271930,02/08/2018,1068.48,178.08,ZM0018,Highways & Engineering,9511A,Stocks Efin,Blackpool Services
Blackpool Council,1015228,Virgin Media Payments Limited,493144,915568-091,01/08/2018,40202.05,6700.34,FGAA,Ict Corporate Services,3527,Communication Lines,Resources
Blackpool Council,1031475,Jenx Ltd,493192,213159,23/08/2018,277.2,46.2,MTE,Undefined Age Group,5401,Aids To Daily Living,Adult & Families
Blackpool Council,1019678,G & S Smirthwaite Ltd,493193,160124,15/08/2018,3000,500,MTE,Undefined Age Group,5401,Aids To Daily Living,Adult & Families
Blackpool Council,1049200,R82 Uk Ltd,493195,239086,22/08/2018,342,57,MTE,Undefined Age Group,5401,Aids To Daily Living,Adult & Families
Blackpool Council,1008743,James Leckey Design Ltd T/A Vida Global,493201,OP/I138754,16/08/2018,614.4,102.4,MTE,Undefined Age Group,5401,Aids To Daily Living,Adult & Families
Blackpool Council,1011995,Technical & Electrical Services Ltd,493203,ES 17354,02/08/2018,274.2,45.7,CXAAA,Local Authority Dwellings,6502,Grants & Advances,Capital - Chief Executive
Blackpool Council,1006576,The Helping Hand Company Ltd,493204,320966,02/08/2018,2775.6,462.6,MTE,Undefined Age Group,5401,Aids To Daily Living,Adult & Families
Blackpool Council,1113460,Sureline Installations,493209,78,03/08/2018,255,0,CXAAA,Local Authority Dwellings,6501,Contract Payments,Capital - Chief Executive
Blackpool Council,1113460,Sureline Installations,493213,72,03/08/2018,585,0,MVA,18-64,5401,Aids To Daily Living,Adult & Families
Blackpool Council,1113460,Sureline Installations,493214,73,03/08/2018,465,0,CXAAA,Local Authority Dwellings,6501,Contract Payments,Capital - Chief Executive
Blackpool Council,1006196,Prism Medical Uk,493215,5271846,08/08/2018,501,83.5,MVB,65-74,5401,Aids To Daily Living,Adult & Families
Blackpool Council,1113460,Sureline Installations,493222,74,03/08/2018,785,0,CXAAA,Local Authority Dwellings,6501,Contract Payments,Capital - Chief Executive
Blackpool Council,1063234,Servelec Corelogic Limited,493233,0050001117,03/08/2018,73963.2,12327.2,SYSDEV,Systems Development,3532,Comp-Running & License Costs,Resources
Blackpool Council,1091329,Pentagull Limited,493234,8948,03/08/2018,48000,8000,FGAB,Ict E-Government,3532,Comp-Running & License Costs,Resources
Blackpool Council,1008135,Marshalls,493236,Z000113600,10/08/2018,1541.44,0,ZM0018,Highways & Engineering,9773,Orders Received Not Invoiced,Blackpool Services
Blackpool Council,1008135,Marshalls,493236,Z000113600,10/08/2018,2634.24,439.04,ZM0018,Highways & Engineering,9511A,Stocks Efin,Blackpool Services
Blackpool Council,1042794,Carlton Fuels Limited,493238,1068366,03/08/2018,17988.44,0,ZF0001,"Insurance,Dso,Banking",9773,Orders Received Not Invoiced,Total Reconciliations
Blackpool Council,1042794,Carlton Fuels Limited,493238,1068366,03/08/2018,21586.13,3597.69,ZF0001,"Insurance,Dso,Banking",9511A,Stocks Efin,Total Reconciliations
Blackpool Council,1068989,Interproperty Systems Ltd,493240,1492,15/08/2018,456,76,HJA,Growth,3801,Other Expenses,Places
Blackpool Council,1087034,Cool Milk Limited,493243,CML00023724,03/08/2018,20755.68,0,SCHBRK,Free School Breakfasts,3107,Milk For Drinking,Community & Env Services
Blackpool Council,1006586,H Jenkinson & Co Ltd,493244,SINV00813491,24/08/2018,2026.15,337.69,AEB,Buildings,3020,Furniture - Purchase,Resources
Blackpool Council,1096596,Highfield Pfi Spv Ltd,493245,SI10020,15/08/2018,384617.71,64102.95,EM1029,Highfield Pfi,4515,Contract Services,Children'S Services
Blackpool Council,1096596,Highfield Pfi Spv Ltd,493245,SI10020,15/08/2018,10131.06,1688.51,EM1029,Highfield Pfi,1202,Electricity,Children'S Services
Blackpool Council,1087953,Blackpool Local Education Partnership Ltd,493246,SI10021,03/08/2018,10825.98,1804.33,EM1028,St Marys,4515,Contract Services,Children'S Services
Blackpool Council,1006292,Vodafone Corporate Ltd,493247,LF95413,10/08/2018,945.6,157.6,FGAA,Ict Corporate Services,3531,Computer-H'Ware Purchase,Resources
Blackpool Council,1006292,Vodafone Corporate Ltd,493248,LF95412,10/08/2018,1311.6,218.6,FGAA,Ict Corporate Services,3531,Computer-H'Ware Purchase,Resources
Blackpool Council,1008540,Konica Minolta Business (Uk) Ltd,493249,1138451986,03/08/2018,32177.75,5362.96,FGBA,Specific (Directorate)-Service,3305,Photocopying Charges,Resources
Blackpool Council,1008540,Konica Minolta Business (Uk) Ltd,493250,1138446079,03/08/2018,32338.06,5389.68,FGBA,Specific (Directorate)-Service,3305,Photocopying Charges,Resources
Blackpool Council,1055691,Norbain Sd Ltd,493254,I2697271,09/08/2018,307.44,51.24,CCTV,Cctv,3003,Equipt-Mtce Repairs,Public Health
Blackpool Council,1012990,Gladstone Mrm Limited,493293,04008488,24/08/2018,1851.88,308.65,LEISUR,Leisure Management,3801,Other Expenses,Community & Env Services
Blackpool Council,1049304,Insight Direct (Uk) Ltd,493294,3990816,29/08/2018,1084.8,180.8,FGAA,Ict Corporate Services,3533,Computer S/W Purchases,Resources
Blackpool Council,1098105,Brightprint Ltd(Non Factor Payments Only),493297,26482,10/08/2018,288,48,TRC,Travel & Safety,4501,Private Contractors,Community & Env Services
Blackpool Council,1066729,Equis Associates Limited,493299,12-39-PG-BC,14/08/2018,16200,2700,CTAHHA,Tramway Emergency Works,6506,Consultants Fees,Capital - Comm & Environ
Blackpool Council,1112198,Kkc Engineering Consultants Limited,493300,835/18,29/08/2018,10824,1804,CTAHHA,Tramway Emergency Works,6506,Consultants Fees,Capital - Comm & Environ
Blackpool Council,1098823,Risual Limited,493301,109366,30/08/2018,1140,190,FGAA,Ict Corporate Services,3532,Comp-Running & License Costs,Resources
Blackpool Council,1106685,War Productions Limited,493303,BC310718,14/08/2018,25853.52,4308.92,PJNB,Lightpool,3041,Other Materials,Community & Env Services
Blackpool Council,1052850,Charter Oaks Ltd,493304,071826,23/08/2018,1440,240,MPB,Edc - Economic Dev Company,3413,Consultants,Places
Blackpool Council,1081133,Lavat Consulting Limited T/A Pstax,493305,105357,24/08/2018,4500,750,AD0301,Contingencies,3801,Other Expenses,Contingencies
Blackpool Council,1016649,Iems Services,493306,2228,09/08/2018,4080,680,PJRA,Electrical Infra - Places,4501,Private Contractors,Community & Env Services
Blackpool Council,1016649,Iems Services,493307,2229,09/08/2018,2610,435,PJRA,Electrical Infra - Places,4501,Private Contractors,Community & Env Services
Blackpool Council,1016649,Iems Services,493308,2230,09/08/2018,3070.8,511.8,PJRA,Electrical Infra - Places,4501,Private Contractors,Community & Env Services
Blackpool Council,1093815,Raydar Safety Ltd,493315,SI-386,30/08/2018,540,90,CTBRAA,Bridges (Growth Fund),6501,Contract Payments,Capital - Comm & Environ
Blackpool Council,1100904,Bacpr Education Consortium,493321,INV6141,03/08/2018,625,0,SPORTY,Sports & Physical Activity,3426,Course Fees,Community & Env Services
Blackpool Council,1009417,Eriks Industrial Services Fna Wyko,493323,00305621,24/08/2018,2169.6,361.6,PJLA,Maintenance,3041,Other Materials,Community & Env Services
Blackpool Council,1044479,Kayaks & Paddles (Manchester)  Ltd,493324,BLACKPOOL201801,24/08/2018,575.16,95.86,LEISUR,Leisure Management,3007,Recreational Equipment,Community & Env Services
Blackpool Council,1094424,The Networking People,493326,SI105307,24/08/2018,2022.79,337.13,FGAA,Ict Corporate Services,3531,Computer-H'Ware Purchase,Resources
Blackpool Council,1094424,The Networking People,493327,SI105306,24/08/2018,261.12,43.52,FGAA,Ict Corporate Services,3532,Comp-Running & License Costs,Resources
Blackpool Council,1008175,Manns Music,493329,113813,29/08/2018,272.22,45.37,MUSIC,Music & Cultural Education,3008,Educational Equipment,Children'S Services
Blackpool Council,1102627,Fresh Pastures Processing Ltd,493330,29204290718,28/08/2018,311.85,0,APDBBB,Arc,3107,Milk For Drinking,Adult & Families
Blackpool Council,1025240,Key Engineering Supplies Ltd,493339,7076,30/08/2018,257.04,42.84,ZM0018,Highways & Engineering,9511A,Stocks Efin,Blackpool Services
Blackpool Council,1076555,Uk Container Maintenance Limited,493342,33665,23/08/2018,6765,1127.5,CWASTE,Commercial Waste,3041,Other Materials,Community & Env Services
Blackpool Council,1115367,Comma Press,493343,00806,17/08/2018,1250,0,AHM,Arts Miscellaneous,3819,Events Support,Places
Blackpool Council,1079488,Recycling Lives Ltd,493344,209577,03/08/2018,1872,312,CWASTE,Commercial Waste,4514,Contract 'E',Community & Env Services
Blackpool Council,1053453,Brenntag Uk Ltd,493345,32SI 3272489,15/08/2018,345.12,57.52,LEISUR,Leisure Management,3060,Chemicals,Community & Env Services
Blackpool Council,1079488,Recycling Lives Ltd,493346,207610,03/08/2018,1296,216,CWASTE,Commercial Waste,4514,Contract 'E',Community & Env Services
Blackpool Council,1079488,Recycling Lives Ltd,493347,208084,03/08/2018,1440,240,CWASTE,Commercial Waste,4514,Contract 'E',Community & Env Services
Blackpool Council,1079488,Recycling Lives Ltd,493348,210947,03/08/2018,1872,312,CWASTE,Commercial Waste,4514,Contract 'E',Community & Env Services
Blackpool Council,1079488,Recycling Lives Ltd,493349,208086,03/08/2018,1523.52,253.92,CWASTE,Commercial Waste,4514,Contract 'E',Community & Env Services
Blackpool Council,1087118,Ps & P Limited,493351,101621,24/08/2018,1292.99,215.5,FC3001,Housing Benefits,3401,General Services,Budgets Outside Cash Limits
Blackpool Council,1082067,Squire Patton Boggs (Uk) Llp,493354,2630471,24/08/2018,11614.2,1935.7,CTAHHA,Tramway Emergency Works,6506,Consultants Fees,Capital - Comm & Environ
Blackpool Council,1057663,Wilde Recruitment Ltd,493356,33332,17/08/2018,517.86,86.31,CTAHHA,Tramway Emergency Works,6501,Contract Payments,Capital - Comm & Environ
Blackpool Council,1114704,Morson Human Resources Ltd,493357,HS186247,07/08/2018,1188,198,CTAHHA,Tramway Emergency Works,6506,Consultants Fees,Capital - Comm & Environ
Blackpool Council,1053283,Cryoservice Limited,493358,406961530,03/08/2018,420,70,LEISUR,Leisure Management,3060,Chemicals,Community & Env Services
Blackpool Council,1087234,Aitch Tools & Fasteners Ltd,493364,034195,30/08/2018,265.8,44.3,PJAA,"Erection, Operation & Dismantl",3041,Other Materials,Community & Env Services
Blackpool Council,1115980,Brockholes Enterprises Ltd,493370,1994,06/08/2018,540.4,90.07,PVA,Other External Funding,0911,Training Expenses,Places
Blackpool Council,1058751,Emo Oil Ltd,493371,9989267,06/08/2018,585.2,0,ZF0001,"Insurance,Dso,Banking",9773,Orders Received Not Invoiced,Total Reconciliations
Blackpool Council,1058751,Emo Oil Ltd,493371,9989267,06/08/2018,614.46,29.26,ZF0001,"Insurance,Dso,Banking",9511A,Stocks Efin,Total Reconciliations
Blackpool Council,1044711,Atg Access Ltd,493372,MS1801901,30/08/2018,98999.34,16499.89,PTC,"A.C.E. Regen, Tourism & Cultur",3801,Other Expenses,Places
Blackpool Council,1011121,Fylde Coast Gate Ltd,493373,27918,10/08/2018,270,45,PRKTEC,Parks Terchnician Manager,1012,Premises Maint-Priv.Contractor,Community & Env Services
Blackpool Council,1085614,James Raffan T/A Lancashire Marquee Hire,493380,100549,07/08/2018,723,0,AHM,Arts Miscellaneous,3819,Events Support,Places
Blackpool Council,1006944,Siemens Financial Services Ltd,493381,212/18/0204973,24/08/2018,1678.8,279.8,FCADA,Customer Services,3801,Other Expenses,Resources
Blackpool Council,1013064,Tarmac Lafarge Trading Limited,493384,9038515665,17/08/2018,302.74,50.45,ENGINE,Engineering,3041,Other Materials,Community & Env Services
Blackpool Council,1013064,Tarmac Lafarge Trading Limited,493385,9038524659,22/08/2018,265.27,44.21,ENGINE,Engineering,3041,Other Materials,Community & Env Services
Blackpool Council,1116489,Dancesport International Ltd,493389,416266,30/08/2018,3240,540,AHHBA,Blackpool Museum,2001,Purchases,Places
Blackpool Council,1102823,Wilde Consultants Limited,493391,WPCON 16418,31/08/2018,6086.02,1014.34,CTBRAA,Bridges (Growth Fund),6501,Contract Payments,Capital - Comm & Environ
Blackpool Council,1102823,Wilde Consultants Limited,493392,WPCON16417,31/08/2018,3401.87,566.98,TRB,Maintenance & Works,4501,Private Contractors,Community & Env Services
Blackpool Council,1102823,Wilde Consultants Limited,493393,WPCON16415,31/08/2018,5050.8,841.8,CGOAAA,Quality Corridor,6501,Contract Payments,Capital - Commnctn & Regen
Blackpool Council,1082067,Squire Patton Boggs (Uk) Llp,493475,2630554,09/08/2018,6480,1080,CTAHHA,Tramway Emergency Works,6506,Consultants Fees,Capital - Comm & Environ
Blackpool Council,1037831,Turner & Townsend Contract Services Ltd,493476,000109613,30/08/2018,1656,276,CP0511,Anchorsholme Seawall Scheme,6506,Consultants Fees,Capital - Comm & Environ
Blackpool Council,1114704,Morson Human Resources Ltd,493479,HS187598,08/08/2018,1188,198,CTAHHA,Tramway Emergency Works,6506,Consultants Fees,Capital - Comm & Environ
Blackpool Council,1116525,R5 Air Displays Ltd,493483,R5L-025,07/08/2018,9563,0,PRB,Events,3401,General Services,Places
Blackpool Council,1113243,Mclaughlin & Harvey Ltd,493484,21895,06/08/2018,958203.8,159700.63,CGTBBB,Conference Centre,6501,Contract Payments,Capital - Commnctn & Regen
Blackpool Council,1113243,Mclaughlin & Harvey Ltd,493484,21895,06/08/2018,24695.98,0,ZF0001,"Insurance,Dso,Banking",97B6,Retention Monies - Cap Trsfr,Total Reconciliations
Blackpool Council,1095165,Tower Learning Centre Ltd,493505,290-681,07/08/2018,576,96,EDDIV,Education Diversity,4101,Other Local Authorities,Children'S Services
Blackpool Council,1052237,Elite Cleaning & Environmental Svcs Ltd,493509,52771,07/08/2018,6771.54,1128.59,EDDIV,Education Diversity,1601,Consumable Supplies,Children'S Services
Blackpool Council,1113098,Tootoot Ltd,493510,INV-0809,07/08/2018,840,140,EDDIV,Education Diversity,2008,Running Costs-Licences,Children'S Services
Blackpool Council,1110090,REDACTED PERSONAL DATA,493517,716,07/08/2018,820,0,AHM,Arts Miscellaneous,3456,Payment To Artists,Places
Blackpool Council,1090795,Aunty Social,493518,2018-3WPL,07/08/2018,500,0,AHM,Arts Miscellaneous,3819,Events Support,Places
Blackpool Council,1079992,J Fisher & Sons Ltd,493519,49561,07/08/2018,2112,352,SCHEME,Highways Schemes,1012,Premises Maint-Priv.Contractor,Community & Env Services
Blackpool Council,1100367,Curve Learning And Development Ltd,493532,8683,31/08/2018,439.2,73.2,LM0420,Adults Training,0911,Training Expenses,Adult & Families
Blackpool Council,1009004,Bemrosebooth Paragon Limited T/A Paragon Id,493533,458431,15/08/2018,1512,252,PARADM,Parking Administration,3302,Stationery,Budgets Outside Cash Limits
Blackpool Council,1006099,Blackpool Teaching Hospitals Nhs Ft,493539,1110039762,10/08/2018,4231.57,0,SBOARD,Springboard,3801,Other Expenses,Children'S Services
Blackpool Council,1096150,Norbreck Primary Academy,493540,20180801-01,07/08/2018,7906,0,OPAREA,Opportunity Areas,4515,Contract Services,Places
Blackpool Council,1116447,W J Sanderson & Sons Ltd,493547,06664302,30/08/2018,456,76,PRKOP1,Parks Operational Manager  1,1012,Premises Maint-Priv.Contractor,Community & Env Services
Blackpool Council,1010619,Askews And Holts Library Services Ltd,493548,5787559,24/08/2018,302.47,0,LBB,Central Library,3304,Books And Periodicals,Places
Blackpool Council,1113022,Crookes Climbing Ltd T/A Climbing Wall Servs,493554,1437,24/08/2018,822,137,LEISUR,Leisure Management,3801,Other Expenses,Community & Env Services
Blackpool Council,1112477,Big Wave Media (Fac060),493555,59190,29/08/2018,800.4,133.4,LEISUR,Leisure Management,3801,Other Expenses,Community & Env Services
Blackpool Council,1112477,Big Wave Media (Fac060),493556,59151,24/08/2018,7018,1169.67,LEISUR,Leisure Management,3801,Other Expenses,Community & Env Services
Blackpool Council,1112477,Big Wave Media (Fac060),493557,59110,23/08/2018,3047.4,380.4,LEISUR,Leisure Management,3801,Other Expenses,Community & Env Services
Blackpool Council,1115493,Kennet Equipment Leasing Ltd,493563,MI/0064925,09/08/2018,282.37,47.06,CATERG,Catering Services,3401,General Services,Community & Env Services
Blackpool Council,1102823,Wilde Consultants Limited,493566,WPCON 16416,31/08/2018,4495.5,749.25,CGOAAA,Quality Corridor,6501,Contract Payments,Capital - Commnctn & Regen
Blackpool Council,1112621,Lk2 Sport & Leisure Ltd,493567,1492,31/08/2018,3600,600,PRKDEV,Parks Development,1012,Premises Maint-Priv.Contractor,Community & Env Services
Blackpool Council,1044756,Northgate Public Services (Uk) Ltd,493568,91410086,29/08/2018,1672.56,278.76,FC1404,Blue Badge Reform,3401,General Services,Resources
Blackpool Council,1058510,Lifeline Language Services Ltd,493570,1018194,30/08/2018,274.8,45.8,JAH,Duty And Assessment,3419,Interpreters Fees,Children'S Services
Blackpool Council,1012789,Advanced Business Solutions (Fka Coa),493571,ARBK/99047796,30/08/2018,1140,190,FBBCA,Accountancy,3413,Consultants,Resources
Blackpool Council,1057261,Experian Ltd,493572,HEX67000648759,28/08/2018,4200.5,700.08,APFBAB,Vitaline,4501,Private Contractors,Adult & Families
Blackpool Council,1085660,Bisset Adams Ltd,493573,07314,30/08/2018,17282.28,2880.38,FMAK,Acquisitions 9/10,3801,Other Expenses,Places
Blackpool Council,1114664,REDACTED PERSONAL DATA,493575,008,10/08/2018,2360,0,HS0005,Whole School Approach,0911,Training Expenses,Children'S Services
Blackpool Council,1099496,REDACTED PERSONAL DATA,493605,0651,29/08/2018,270,0,ALEARN,Adult Learning,0915,Conferences,Places
Blackpool Council,1109502,Llewelyn-Bowen Design Associates Ltd,493606,102018,09/08/2018,400.8,66.8,AHHBA,Blackpool Museum,3801,Other Expenses,Places
Blackpool Council,1007491,Posturite (Uk) Ltd,493616,INV0574687,31/08/2018,800.22,133.37,HS0007,Young People & Comm'Y Engagemt,3801,Other Expenses,Children'S Services
Blackpool Council,1087316,Lovell Partnership Ltd,493618,INTERIM 32,08/08/2018,536106.35,0,CXB01,Hra Capital Programme 2011/12,6501,Contract Payments,Capital - Chief Executive
Blackpool Council,1087316,Lovell Partnership Ltd,493618,INTERIM 32,08/08/2018,2440.01,0,ZH0001,Housing Revenue Account,97A6,Retention Monies - Capital,Housing Revenue Account
Blackpool Council,1090236,C & J Inspection Services Limited,493619,856,08/08/2018,2120.17,353.36,FMAK,Acquisitions 9/10,3801,Other Expenses,Places
Blackpool Council,1011675,Bambers Remedial Contractors Limited,493624,15147,10/08/2018,16456.24,0,CX4002,Disabled Facilities Grants,6501,Contract Payments,Capital - Adult Social Care
Blackpool Council,1006196,Prism Medical Uk,493625,5272983,15/08/2018,5103.67,0,CX4002,Disabled Facilities Grants,6501,Contract Payments,Capital - Adult Social Care
Blackpool Council,1006196,Prism Medical Uk,493626,5273005,15/08/2018,1672.31,0,CX4002,Disabled Facilities Grants,6501,Contract Payments,Capital - Adult Social Care
Blackpool Council,1006196,Prism Medical Uk,493628,5272551,13/08/2018,1840.4,0,CX4002,Disabled Facilities Grants,6501,Contract Payments,Capital - Adult Social Care
Blackpool Council,1006196,Prism Medical Uk,493629,5264425,10/08/2018,10058.82,0,CX4002,Disabled Facilities Grants,6501,Contract Payments,Capital - Adult Social Care
Blackpool Council,1006196,Prism Medical Uk,493630,5264780,10/08/2018,1415,0,CX4002,Disabled Facilities Grants,6501,Contract Payments,Capital - Adult Social Care
Blackpool Council,1112303,Access-Able (Uk) Limited (Fac001),493631,2698,10/08/2018,1604,0,CX4002,Disabled Facilities Grants,6501,Contract Payments,Capital - Adult Social Care
Blackpool Council,1011995,Technical & Electrical Services Ltd,493632,ES 17411,10/08/2018,326.72,54.45,MVB,65-74,5401,Aids To Daily Living,Adult & Families
Blackpool Council,1044867,Jay Law Ltd,493635,INV-L4830,10/08/2018,500,83.33,CX4005,Care & Repair Grants,6502,Grants & Advances,Capital - Adult Social Care
Blackpool Council,1013705,Stadia Sports/ Broxap Limited,493674,INV232775,31/08/2018,1533.6,255.6,PRKOP1,Parks Operational Manager  1,3455,Memorials Trees And Benches,Community & Env Services
Blackpool Council,1028804,United Utilities Water Ltd,493678,90370222,13/08/2018,1063.82,0,TRB,Maintenance & Works,4501,Private Contractors,Community & Env Services
Blackpool Council,1053261,Ad Systems (Uk) Limited,493690,4557,13/08/2018,3900,650,CCTV,Cctv,4501,Private Contractors,Public Health
Blackpool Council,1108764,Fitsense Ltd T/A Premier Sports,493691,SI-1000353,14/08/2018,2700,450,LEISUR,Leisure Management,2008,Running Costs-Licences,Community & Env Services
Blackpool Council,1108764,Fitsense Ltd T/A Premier Sports,493693,SI-1000351,14/08/2018,2700,450,LEISUR,Leisure Management,2008,Running Costs-Licences,Community & Env Services
Blackpool Council,1009306,Brm Engineering Supplies Ltd,493694,54110,20/08/2018,299.88,49.98,ENGINE,Engineering,3041,Other Materials,Community & Env Services
Blackpool Council,1103450,Blackpool Entertainment Company Limited,493703,INV003747,09/08/2018,1166.4,194.4,JA0505,Children'S Training,0911,Training Expenses,Children'S Services
Blackpool Council,1100367,Curve Learning And Development Ltd,493704,8697,31/08/2018,259.2,43.2,LM0420,Adults Training,0911,Training Expenses,Adult & Families
Blackpool Council,1092465,REDACTED PERSONAL DATA,493705,GG00039,10/08/2018,1975,0,AHH,Heritage,3456,Payment To Artists,Places
Blackpool Council,1009417,Eriks Industrial Services Fna Wyko,493712,00313674,30/08/2018,1792.8,298.8,PJLA,Maintenance,3041,Other Materials,Community & Env Services
Blackpool Council,1116474,S O Painting & Decorating Ltd,493780,1,28/08/2018,330,0,FMAK,Acquisitions 9/10,1131,Electrical Equipment - Repairs,Places
Blackpool Council,1011970,A1 Streamline Road Markings Ltd,493783,3100,20/08/2018,608.64,101.44,CTBRAA,Bridges (Growth Fund),6501,Contract Payments,Capital - Comm & Environ
Blackpool Council,1116270,Paul Barnes T/A We Are Brave,493784,INV-01109,13/08/2018,7800,1300,BSTPRJ,Better Start Projects,3401,General Services,Better Start Projects
Blackpool Council,1079070,Story Contracting Ltd,493785,CSI002/SR20190,31/08/2018,78018.34,13003.06,CTBRAA,Bridges (Growth Fund),6501,Contract Payments,Capital - Comm & Environ
Blackpool Council,1109682,Entertainment Concepts Ltd,493786,139,13/08/2018,799.99,133.33,FMAK,Acquisitions 9/10,1012,Premises Maint-Priv.Contractor,Places
Blackpool Council,1058510,Lifeline Language Services Ltd,493787,1018152,30/08/2018,316.2,52.7,JEA,Senior Management,3419,Interpreters Fees,Children'S Services
Blackpool Council,1080418,Skv Communications Limited,493788,61747,31/08/2018,1980,330,CGTBBB,Conference Centre,6501,Contract Payments,Capital - Commnctn & Regen
Blackpool Council,1076264,Alliance Disposables Ltd,493792,I6987076,31/08/2018,822.3,137.05,SCLEAN,Street Cleaning,1601,Consumable Supplies,Community & Env Services
Blackpool Council,1059387,Mediaprint Solutions Ltd,493798,10695,16/08/2018,420,70,PU0001,Public Health Team,4501,Private Contractors,Public Health
Blackpool Council,1006449,Tmp (Uk) Ltd,493799,100001186408,31/08/2018,283.97,47.33,TRA,Traffic Management,4501,Private Contractors,Community & Env Services
Blackpool Council,1006449,Tmp (Uk) Ltd,493800,100001186407,31/08/2018,354.96,59.16,TRA,Traffic Management,4501,Private Contractors,Community & Env Services
Blackpool Council,1064012,Trueform Engineering Ltd,493801,INV02539,31/08/2018,2076,346,TRC,Travel & Safety,4501,Private Contractors,Community & Env Services
Blackpool Council,1114957,Rajapack Ltd T/A Welco,493805,WPSI0004021,13/08/2018,2329.2,388.2,APDBBB,Arc,3012,Other Equipment,Adult & Families
Blackpool Council,1010104,Canon (Uk ) Ltd,493806,9228871,31/08/2018,251.57,41.93,POA,Office Services,3401,General Services,Places
Blackpool Council,1030119,Generation Hire & Sale Ltd,493811,H2049385,30/08/2018,3056.84,509.47,PJAA,"Erection, Operation & Dismantl",2211,Casual Hire,Community & Env Services
Blackpool Council,1030119,Generation Hire & Sale Ltd,493812,H2049384,30/08/2018,478.28,79.71,PJNB,Lightpool,2211,Casual Hire,Community & Env Services
Blackpool Council,1005071,Blackpool Transport Services Limited,493813,I0000675,17/08/2018,1698.63,0,FRAEA,Public Transport Contracts,2201,Contract Hire,Community & Env Services
Blackpool Council,1063986,York Aviation Llp,493815,A-07-18-04,23/08/2018,28783.2,4797.2,MPB,Edc - Economic Dev Company,3413,Consultants,Places
Blackpool Council,1086156,Water Saving Techniques Limited,493818,3922,17/08/2018,384,64,PARADE,Parades & Seawall,1012,Premises Maint-Priv.Contractor,Community & Env Services
Blackpool Council,1086156,Water Saving Techniques Limited,493819,3921,20/08/2018,1536,256,PARADE,Parades & Seawall,1012,Premises Maint-Priv.Contractor,Community & Env Services
Blackpool Council,1059387,Mediaprint Solutions Ltd,493820,10690,13/08/2018,1728,288,AHH,Heritage,3301,Printing,Places
Blackpool Council,1115537,Strange Corporation,493822,13154,30/08/2018,1927.07,321.18,PRL,Marketing,3315,Marketing,Places
Blackpool Council,1008755,Jc Applications Development,493824,17860,31/08/2018,6102,1017,FBBBB,"Insur, Scrutiny & Emerg Planin",3711,Subscriptions,Resources
Blackpool Council,1011269,Fylde Borough Council,493829,73239754,15/08/2018,1000,0,PPA,Head Of Tourism Services,3401,General Services,Places
Blackpool Council,1031983,Olympic Lock & Safeguards Ltd,493833,7042,24/08/2018,1986.48,331.08,SCLEAN,Street Cleaning,3041,Other Materials,Community & Env Services
Blackpool Council,1075164,G4s Secure Solutions (Uk) Ltd,493841,90296306,30/08/2018,21554.39,3592.4,FMAB,Commercial Propereties,3418,Security Services,Resources
Blackpool Council,1015228,Virgin Media Payments Limited,493842,806981-187,15/08/2018,280.06,46.68,FGAA,Ict Corporate Services,3521,Landline - Line Rental,Resources
Blackpool Council,1095162,Ese Direct Limited,493847,ESI1048244,15/08/2018,457.44,76.24,AHH,Heritage,3020,Furniture - Purchase,Places
Blackpool Council,1000009,Blackpool & The Fylde College,493849,S0019503,16/08/2018,450,75,APCBEA,Shared Lives,0911,Training Expenses,Adult & Families
Blackpool Council,1090874,Advanced Health And Care Limited,493893,ARCMIN/00058182,14/08/2018,3894,649,HOMECA,Homecare,3413,Consultants,Adult & Families
Blackpool Council,1006944,Siemens Financial Services Ltd,493894,244/18/0228198,14/08/2018,4442.29,740.38,APFBAB,Vitaline,4501,Private Contractors,Adult & Families
Blackpool Council,1006944,Siemens Financial Services Ltd,493895,244/18/0225292,13/08/2018,1819.59,303.26,APFBAB,Vitaline,4501,Private Contractors,Adult & Families
Blackpool Council,1063740,Peter Gray,493896,BOA-20180801-01,13/08/2018,9366.17,1561.03,OPAREA,Opportunity Areas,4515,Contract Services,Places
Blackpool Council,1011675,Bambers Remedial Contractors Limited,493898,15142,15/08/2018,1395,0,CX4002,Disabled Facilities Grants,6501,Contract Payments,Capital - Adult Social Care
Blackpool Council,1011675,Bambers Remedial Contractors Limited,493899,15101,15/08/2018,4305.2,0,CX4002,Disabled Facilities Grants,6501,Contract Payments,Capital - Adult Social Care
Blackpool Council,1011675,Bambers Remedial Contractors Limited,493900,15144,15/08/2018,6901.17,0,CX4002,Disabled Facilities Grants,6501,Contract Payments,Capital - Adult Social Care
Blackpool Council,1011675,Bambers Remedial Contractors Limited,493902,15136,15/08/2018,5899.77,0,CX4002,Disabled Facilities Grants,6501,Contract Payments,Capital - Adult Social Care
Blackpool Council,1011675,Bambers Remedial Contractors Limited,493903,15125,15/08/2018,4896.17,0,CX4002,Disabled Facilities Grants,6501,Contract Payments,Capital - Adult Social Care
Blackpool Council,1011675,Bambers Remedial Contractors Limited,493904,15162,15/08/2018,6937.99,0,CX4002,Disabled Facilities Grants,6501,Contract Payments,Capital - Adult Social Care
Blackpool Council,1011675,Bambers Remedial Contractors Limited,493905,15160,15/08/2018,5050.53,0,CX4002,Disabled Facilities Grants,6501,Contract Payments,Capital - Adult Social Care
Blackpool Council,1011675,Bambers Remedial Contractors Limited,493906,15137,15/08/2018,5131.82,0,CX4002,Disabled Facilities Grants,6501,Contract Payments,Capital - Adult Social Care
Blackpool Council,1006196,Prism Medical Uk,493907,5276023,28/08/2018,10170,1695,MTE,Undefined Age Group,3006,Hire Of Equipment,Adult & Families
Blackpool Council,1006196,Prism Medical Uk,493908,4458215,28/08/2018,445.58,74.26,MTE,Undefined Age Group,5401,Aids To Daily Living,Adult & Families
Blackpool Council,1006196,Prism Medical Uk,493909,4458214,28/08/2018,1392.5,232.08,MTE,Undefined Age Group,5401,Aids To Daily Living,Adult & Families
Blackpool Council,1008743,James Leckey Design Ltd T/A Vida Global,493942,OP/I138602,15/08/2018,1527.6,254.6,MTE,Undefined Age Group,5401,Aids To Daily Living,Adult & Families
Blackpool Council,1078418,Lisclare Limited,493944,SINV03082835,15/08/2018,2757.2,459.53,MTE,Undefined Age Group,3006,Hire Of Equipment,Adult & Families
Blackpool Council,1106471,Mayne Special Needs,493948,MSN-BES335,15/08/2018,300,0,MTE,Undefined Age Group,5401,Aids To Daily Living,Adult & Families
Blackpool Council,1095162,Ese Direct Limited,493951,ESI1050855,17/08/2018,453.06,75.51,AHH,Heritage,3020,Furniture - Purchase,Places
Blackpool Council,1030119,Generation Hire & Sale Ltd,493955,S0220755,15/08/2018,2730,455,PJAA,"Erection, Operation & Dismantl",2201,Contract Hire,Community & Env Services
Blackpool Council,1010179,Buchanan Computing,493956,M9386A,14/08/2018,18181.66,3030.28,TRB,Maintenance & Works,3532,Comp-Running & License Costs,Community & Env Services
Blackpool Council,1009801,Coronation Candy Ltd (Fac009),493962,1419,14/08/2018,360,60,MPB,Edc - Economic Dev Company,3315,Marketing,Places
Blackpool Council,1110576,De Pol Associates Ltd,493965,1880.18-072,15/08/2018,3420,570,CGIBAA,Land Release Fund,6506,Consultants Fees,Capital - Commnctn & Regen
Blackpool Council,1078235,Springboard Research Limited,493966,17717,14/08/2018,2173.5,362.25,PPA,Head Of Tourism Services,3401,General Services,Places
Blackpool Council,1103450,Blackpool Entertainment Company Limited,493968,INV003746,14/08/2018,1536.5,256.08,PPA,Head Of Tourism Services,3401,General Services,Places
Blackpool Council,1098105,Brightprint Ltd(Non Factor Payments Only),493972,26523,17/08/2018,474,79,TRC,Travel & Safety,4501,Private Contractors,Community & Env Services
Blackpool Council,1090236,C & J Inspection Services Limited,493979,871,20/08/2018,2796.26,466.04,FMAK,Acquisitions 9/10,1131,Electrical Equipment - Repairs,Places
Blackpool Council,1048694,Pnltools Limited,493980,INV-0896,31/08/2018,2460,410,FGAA,Ict Corporate Services,3532,Comp-Running & License Costs,Resources
Blackpool Council,1115311,Darrren Clare Ltd T/A Portfolio,493981,P7535,30/08/2018,7680,1280,PBF,Communications,3301,Printing,Chief Executive
Blackpool Council,1116582,Heart Medical,493982,778,14/08/2018,546,91,PRB,Events,3401,General Services,Places
Blackpool Council,1116582,Heart Medical,493983,777,14/08/2018,432,72,PRB,Events,3401,General Services,Places
Blackpool Council,1022781,Moore Readymix Ltd,493986,91588,30/08/2018,273,45.5,ENGINE,Engineering,3041,Other Materials,Community & Env Services
Blackpool Council,1022781,Moore Readymix Ltd,493987,91486,30/08/2018,390.76,65.13,ENGINE,Engineering,3041,Other Materials,Community & Env Services
Blackpool Council,1113460,Sureline Installations,493990,82,15/08/2018,625,0,CXAAA,Local Authority Dwellings,6501,Contract Payments,Capital - Chief Executive
Blackpool Council,1113460,Sureline Installations,493996,83,15/08/2018,720,0,MVB,65-74,5401,Aids To Daily Living,Adult & Families
Blackpool Council,1026811,Stannah Lift Services Ltd,493998,R040029376,15/08/2018,1386.13,231.02,MVB,65-74,5401,Aids To Daily Living,Adult & Families
Blackpool Council,1113460,Sureline Installations,494000,84,15/08/2018,650,0,CXAAA,Local Authority Dwellings,6501,Contract Payments,Capital - Chief Executive
Blackpool Council,1006460,Total Hygiene Ltd,494003,OP/I144019,22/08/2018,354,59,MVA,18-64,5401,Aids To Daily Living,Adult & Families
Blackpool Council,1109502,Llewelyn-Bowen Design Associates Ltd,494004,092018,20/08/2018,400.8,66.8,PJW,Management - Places - Illumina,3413,Consultants,Places
Blackpool Council,1114704,Morson Human Resources Ltd,494012,HS188729,16/08/2018,1980,330,CTAHHA,Tramway Emergency Works,6506,Consultants Fees,Capital - Comm & Environ
Blackpool Council,1090236,C & J Inspection Services Limited,494013,870,20/08/2018,4752,792,FMAK,Acquisitions 9/10,1131,Electrical Equipment - Repairs,Places
Blackpool Council,1011369,Lancashire County Council,494014,5200169368,14/08/2018,299113,0,FR5001,Concessionary Fares,3401,General Services,Budgets Outside Cash Limits
Blackpool Council,1035120,Talking Life (Fac068 Payment),494015,S004951/S004347,30/08/2018,900,150,LM0420,Adults Training,0911,Training Expenses,Adult & Families
Blackpool Council,1106094,Casson Mann Ltd,494019,2326,22/08/2018,39076.2,6512.7,EC7011,Museum - Professional Fees,0981,Professional Fees,Places
Blackpool Council,1035659,Blackpool Zoo,494025,0000005559,14/08/2018,577.18,96.2,JBR,Lac - Placements,3417,Entertainment,Children'S Services
Blackpool Council,1106798,Cd Chauffeur Hire,494032,258,23/08/2018,2227.5,0,BCA,Corp And Member Services,2211,Casual Hire,Governance & Partnerships
Blackpool Council,1102627,Fresh Pastures Processing Ltd,494035,BLACKPOOL310718,30/08/2018,381.1,0,CATERG,Catering Services,3101,Provisions,Community & Env Services
Blackpool Council,1057663,Wilde Recruitment Ltd,494036,33434,31/08/2018,517.86,86.31,CTAHHA,Tramway Emergency Works,6501,Contract Payments,Capital - Comm & Environ
Blackpool Council,1005071,Blackpool Transport Services Limited,494037,I0000592,15/08/2018,1643.83,0,FRAEA,Public Transport Contracts,2201,Contract Hire,Community & Env Services
Blackpool Council,1045106,Visitbritain,494042,LOSI 35450,29/08/2018,450,75,PRA,Conferences,3605,Confs & Short Courses,Places
Blackpool Council,1011121,Fylde Coast Gate Ltd,494043,27937,20/08/2018,979.2,163.2,PRKTEC,Parks Terchnician Manager,1012,Premises Maint-Priv.Contractor,Community & Env Services
Blackpool Council,1011121,Fylde Coast Gate Ltd,494044,27936,20/08/2018,6342.14,1057.02,GATE,Alleygates,1012,Premises Maint-Priv.Contractor,Community & Env Services
Blackpool Council,1027733,William Smith & Sons (Barnard Castle) Ltd,494047,471205,20/08/2018,486.66,81.11,SCHEME,Highways Schemes,3041,Other Materials,Community & Env Services
Blackpool Council,1006940,Smiths Equipment Hire Ltd,494049,V01-637740,15/08/2018,304.57,50.76,ENGINE,Engineering,3041,Other Materials,Community & Env Services
Blackpool Council,1018184,Blackpool Skip Hire,494051,008205,15/08/2018,300,50,ENGINE,Engineering,1012,Premises Maint-Priv.Contractor,Community & Env Services
Blackpool Council,1094424,The Networking People,494052,SI105368,15/08/2018,3009.6,501.6,FGAA,Ict Corporate Services,0791,Temp/Relief (Bureau Staff),Resources
Blackpool Council,1094424,The Networking People,494053,SI105369,15/08/2018,3484.8,580.8,FGAA,Ict Corporate Services,0791,Temp/Relief (Bureau Staff),Resources
Blackpool Council,1094424,The Networking People,494054,SI105370,15/08/2018,2534.4,422.4,FGAA,Ict Corporate Services,0791,Temp/Relief (Bureau Staff),Resources
Blackpool Council,1094424,The Networking People,494055,SI105371,30/08/2018,17132.36,2855.39,FGAA,Ict Corporate Services,3532,Comp-Running & License Costs,Resources
Blackpool Council,1022781,Moore Readymix Ltd,494057,91630,30/08/2018,387.24,64.54,ENGINE,Engineering,3041,Other Materials,Community & Env Services
Blackpool Council,1071702,Links Signs & Graphics Ltd,494061,LSGI25069,17/08/2018,310.8,51.8,PRG,Tourism General,3301,Printing,Places
Blackpool Council,1071702,Links Signs & Graphics Ltd,494062,LSGI24918,17/08/2018,372,62,PRG,Tourism General,3301,Printing,Places
Blackpool Council,1018184,Blackpool Skip Hire,494070,5716,31/08/2018,2352,392,CWASTE,Commercial Waste,4514,Contract 'E',Community & Env Services
Blackpool Council,1018184,Blackpool Skip Hire,494071,5715,31/08/2018,16651.32,2775.22,CWASTE,Commercial Waste,4514,Contract 'E',Community & Env Services
Blackpool Council,1107584,Tv Licensing (Company Group Licences Only),494088,900060770 2018,14/08/2018,1204,0,LBF,Library Management,3532,Comp-Running & License Costs,Places
Blackpool Council,1071925,Groundwork Cheshire Lancs And Merseyside,494132,0000001651,15/08/2018,8062.2,1343.7,AEB,Buildings,3401,General Services,Resources
Blackpool Council,1071925,Groundwork Cheshire Lancs And Merseyside,494133,0000001685,29/08/2018,8062.2,1343.7,AEB,Buildings,3401,General Services,Resources
Blackpool Council,1090774,Richardson Traction Limited,494139,20508,17/08/2018,354,59,PJNA,New Features / Schemes - C & E,3006,Hire Of Equipment,Community & Env Services
Blackpool Council,1090774,Richardson Traction Limited,494140,20471,17/08/2018,2640,440,PJAA,"Erection, Operation & Dismantl",3006,Hire Of Equipment,Community & Env Services
Blackpool Council,1090774,Richardson Traction Limited,494141,20476,17/08/2018,2640,440,PJAA,"Erection, Operation & Dismantl",3006,Hire Of Equipment,Community & Env Services
Blackpool Council,1006599,The Boro Foundry Ltd,494146,IN/78123,24/08/2018,3540,590,PARADE,Parades & Seawall,1012,Premises Maint-Priv.Contractor,Community & Env Services
Blackpool Council,1006419,Tunstall Healthcare (Uk) Ltd,494147,3IN/10321359,17/08/2018,1872,312,APFBAB,Vitaline,4501,Private Contractors,Adult & Families
Blackpool Council,1006944,Siemens Financial Services Ltd,494149,244/18/0252778,30/08/2018,1771.33,295.22,APFBAB,Vitaline,4501,Private Contractors,Adult & Families
Blackpool Council,1006944,Siemens Financial Services Ltd,494150,244/18/0252779,30/08/2018,1763,293.83,APFBAB,Vitaline,4501,Private Contractors,Adult & Families
Blackpool Council,1006944,Siemens Financial Services Ltd,494151,244/18/0252780,30/08/2018,2785.64,464.27,APFBAB,Vitaline,4501,Private Contractors,Adult & Families
Blackpool Council,1090236,C & J Inspection Services Limited,494152,872,20/08/2018,1949.51,324.92,FMAK,Acquisitions 9/10,1131,Electrical Equipment - Repairs,Places
Blackpool Council,1019374,Fibrous Limited,494156,INV-0027,30/08/2018,362.88,60.48,CEMCRE,Cems Crems Etc,3041,Other Materials,Governance & Partnerships
Blackpool Council,1046723,Brightprint (Fac008 Payment Only),494157,26586,20/08/2018,835,0,PRG,Tourism General,3301,Printing,Places
Blackpool Council,1044218,Apcoa Parking Uk Ltd,494166,269095,20/08/2018,12431.29,2071.88,AEV,Vacant & Under Used,3413,Consultants,Resources
Blackpool Council,1044218,Apcoa Parking Uk Ltd,494167,268388,20/08/2018,12034.16,2005.69,AEV,Vacant & Under Used,3413,Consultants,Resources
Blackpool Council,1060024,Concerto Support Services Ltd,494181,04075,30/08/2018,2160,360,AEE,Estates,3532,Comp-Running & License Costs,Resources
Blackpool Council,1079070,Story Contracting Ltd,494182,CSI003/SR20190,31/08/2018,56557.61,9426.27,SCHEME,Highways Schemes,1012,Premises Maint-Priv.Contractor,Community & Env Services
Blackpool Council,1011714,Michael Hope Haulage Limited,494239,001355,16/08/2018,2256,376,SCHEME,Highways Schemes,1012,Premises Maint-Priv.Contractor,Community & Env Services
Blackpool Council,1011714,Michael Hope Haulage Limited,494240,001356,16/08/2018,2112,352,SCHEME,Highways Schemes,1012,Premises Maint-Priv.Contractor,Community & Env Services
Blackpool Council,1013064,Tarmac Lafarge Trading Limited,494241,9038561303,29/08/2018,1145.34,190.89,ENGINE,Engineering,3041,Other Materials,Community & Env Services
Blackpool Council,1013064,Tarmac Lafarge Trading Limited,494242,9038561294,29/08/2018,499.26,83.21,ENGINE,Engineering,3041,Other Materials,Community & Env Services
Blackpool Council,1013064,Tarmac Lafarge Trading Limited,494246,9038561287,24/08/2018,388.93,64.82,ENGINE,Engineering,3041,Other Materials,Community & Env Services
Blackpool Council,1013064,Tarmac Lafarge Trading Limited,494248,9038561406,30/08/2018,311.14,51.85,ENGINE,Engineering,3041,Other Materials,Community & Env Services
Blackpool Council,1013064,Tarmac Lafarge Trading Limited,494249,9038561297,29/08/2018,886.14,147.69,ENGINE,Engineering,3041,Other Materials,Community & Env Services
Blackpool Council,1013064,Tarmac Lafarge Trading Limited,494251,9038541910,24/08/2018,352.32,58.72,ENGINE,Engineering,3041,Other Materials,Community & Env Services
Blackpool Council,1013064,Tarmac Lafarge Trading Limited,494257,9038549352,24/08/2018,441.48,73.58,ENGINE,Engineering,3041,Other Materials,Community & Env Services
Blackpool Council,1061348,Fresh Partners Limited,494258,LLB1190,20/08/2018,7200,1200,PJW,Management - Places - Illumina,3413,Consultants,Places
Blackpool Council,1025087,Arranpaul Audio Ltd,494261,9364,17/08/2018,1440,240,PRB,Events,3006,Hire Of Equipment,Places
Blackpool Council,1106177,Herts For Learning,494266,2750049254,28/08/2018,303.67,50.61,SYSDEV,Systems Development,3533,Computer S/W Purchases,Resources
Blackpool Council,1009906,Combined Precision Components Plc Cpc,494271,8500113,28/08/2018,420.54,70.09,FMAK,Acquisitions 9/10,1131,Electrical Equipment - Repairs,Places
Blackpool Council,1044218,Apcoa Parking Uk Ltd,494279,268858,20/08/2018,397.13,66.19,AEV,Vacant & Under Used,3413,Consultants,Resources
Blackpool Council,1091165,Chandlery World Ltd,494280,1053738,20/08/2018,459.12,76.52,BEACHP,Beach Patrol,3010,Safety Equipment,Places
Blackpool Council,1112388,Fragance Uk - Blackpool Ltd T/A Imperialhotel,494284,3030,16/08/2018,706.3,117.72,AHH,Heritage,3819,Events Support,Places
Blackpool Council,1113705,Kathryn Peters T/A Grazecafe,494288,70014,20/08/2018,297,0,PTA,Economic Development,3108,Refreshments - Mtgs @ Prog,Places
Blackpool Council,1013064,Tarmac Lafarge Trading Limited,494292,9038591220,31/08/2018,273.01,45.5,ENGINE,Engineering,3041,Other Materials,Community & Env Services
Blackpool Council,1013064,Tarmac Lafarge Trading Limited,494293,9038591221,31/08/2018,362.08,60.34,ENGINE,Engineering,3041,Other Materials,Community & Env Services
Blackpool Council,1101766,Cjgriffiths Photography,494297,CG/THEINTERVAL,24/08/2018,718.41,0,AHG,Art Gallery Summary,3456,Payment To Artists,Places
Blackpool Council,1063597,Nga (National Governance Association),494298,61992,31/08/2018,295,0,ER3499,Governors' Services,3711,Subscriptions,Governance & Partnerships
Blackpool Council,1053191,Veolia Es (Uk) Limited,494299,OP/I1529012,17/08/2018,396968.88,66161.48,DOMPFI,Domestic Waste & Waste Pfi,4501,Private Contractors,Community & Env Services
Blackpool Council,1011369,Lancashire County Council,494301,5200170195,17/08/2018,1779328,0,DOMPFI,Domestic Waste & Waste Pfi,4513,Contract 'A',Community & Env Services
Blackpool Council,1009107,Halfords,494302,1800004324,17/08/2018,449.98,75,APFBAB,Vitaline,4501,Private Contractors,Adult & Families
Blackpool Council,1011970,A1 Streamline Road Markings Ltd,494303,3115,16/08/2018,5953.96,992.32,ENGINE,Engineering,1012,Premises Maint-Priv.Contractor,Community & Env Services
Blackpool Council,1006944,Siemens Financial Services Ltd,494306,244/18/0248844,24/08/2018,3800.89,633.48,APFBAB,Vitaline,4501,Private Contractors,Adult & Families
Blackpool Council,1006419,Tunstall Healthcare (Uk) Ltd,494307,3IN/10321852,24/08/2018,2979.6,496.6,APFBAB,Vitaline,4501,Private Contractors,Adult & Families
Blackpool Council,1086714,Liveasy Ltd,494308,BP0116,30/08/2018,345.6,57.6,APDBBB,Arc,3408,Services To Clients,Adult & Families
Blackpool Council,1114101,Uk Compactors & Balers Ltd,494313,INV-0916,31/08/2018,612,102,CWASTE,Commercial Waste,4514,Contract 'E',Community & Env Services
Blackpool Council,1114483,Labour North West,494314,SINW000989,17/08/2018,300,50,PRA,Conferences,3315,Marketing,Places
Blackpool Council,1094355,Les Mills Fitness Uk Ltd,494316,SIV266491,31/08/2018,318.28,53.05,LEISUR,Leisure Management,2008,Running Costs-Licences,Community & Env Services
Blackpool Council,1025837,R Draper Ltd,494327,50302,31/08/2018,534,89,PRKOP1,Parks Operational Manager  1,1011,Premises Maint - Dso,Community & Env Services
Blackpool Council,1060135,Happy Creative Ltd,494334,H4629,23/08/2018,4740,790,PU0001,Public Health Team,4501,Private Contractors,Public Health
Blackpool Council,1060135,Happy Creative Ltd,494336,H4636,17/08/2018,1284,214,PU0001,Public Health Team,4501,Private Contractors,Public Health
Blackpool Council,1013064,Tarmac Lafarge Trading Limited,494337,9038598536,31/08/2018,559.59,93.26,ENGINE,Engineering,3041,Other Materials,Community & Env Services
Blackpool Council,1090661,Genecon Limited,494341,GEN989I,30/08/2018,1560,260,MPB,Edc - Economic Dev Company,3413,Consultants,Places
Blackpool Council,1007960,Mott Macdonald Ltd,494342,IN00395240,30/08/2018,6000,1000,MPB,Edc - Economic Dev Company,3413,Consultants,Places
Blackpool Council,1090236,C & J Inspection Services Limited,494349,873,20/08/2018,7980,1330,FMAK,Acquisitions 9/10,0781,Contracted,Places
Blackpool Council,1092524,Dwf Llp,494350,1978327,17/08/2018,2685.53,447.59,FK1006,Head Of Workforce & Org Dev,6214,Legal Services,Chief Executive
Blackpool Council,1008161,Mallard Consultancy Ltd,494352,4538,28/08/2018,3000,500,PYAA,Head Of Environmental Health,3313,General Expenses,Community & Env Services
Blackpool Council,1054928,Martin Bostock Photography,494359,MBP/EZ 0718,29/08/2018,260,0,MPB,Edc - Economic Dev Company,3801,Other Expenses,Places
Blackpool Council,1115943,Mfd International Ltd,494372,SIN012418,24/08/2018,9840,1640,PTC,"A.C.E. Regen, Tourism & Cultur",3413,Consultants,Places
Blackpool Council,1052237,Elite Cleaning & Environmental Svcs Ltd,494373,53069,17/08/2018,717.55,119.59,EDDIV,Education Diversity,1601,Consumable Supplies,Children'S Services
Blackpool Council,1052237,Elite Cleaning & Environmental Svcs Ltd,494374,53092,21/08/2018,7175.52,1195.92,EDDIV,Education Diversity,1601,Consumable Supplies,Children'S Services
Blackpool Council,1115428,Goldray Limited,494417,103/18,30/08/2018,10445.2,1740.87,CN2016,Carleton Crem Works 2018-20,6501,Contract Payments,Capital - Governance & Partner
Blackpool Council,1008817,Radio J  Cabs,494419,515421,17/08/2018,2974.58,0,EDDIV,Education Diversity,2201,Contract Hire,Children'S Services
Blackpool Council,1011369,Lancashire County Council,494426,5200169360,23/08/2018,1960,0,FR5001,Concessionary Fares,3401,General Services,Budgets Outside Cash Limits
Blackpool Council,1011970,A1 Streamline Road Markings Ltd,494428,3117,20/08/2018,298.76,49.8,ENGINE,Engineering,1012,Premises Maint-Priv.Contractor,Community & Env Services
Blackpool Council,1011970,A1 Streamline Road Markings Ltd,494430,3119,20/08/2018,658.85,109.81,ENGINE,Engineering,1012,Premises Maint-Priv.Contractor,Community & Env Services
Blackpool Council,1097747,Campbell Rowley Catering And Events Limited,494435,FUN904,20/08/2018,2430,405,PRD,Switch On,3401,General Services,Places
Blackpool Council,1081810,Childs Play Limited,494511,RK0001,20/08/2018,355.5,0,ALEARN,Adult Learning,0917,Other Exps,Places
Blackpool Council,1044156,Pell Frischmann,494516,W18 0326,22/08/2018,1008,168,CTAHHA,Tramway Emergency Works,6506,Consultants Fees,Capital - Comm & Environ
Blackpool Council,1090628,The Furniture Recycling Group,494523,INV15940,29/08/2018,311.52,51.92,CWASTE,Commercial Waste,4514,Contract 'E',Community & Env Services
Blackpool Council,1116288,Amas Ltd - Common Receipts Account,494524,0751-1313003,20/08/2018,172500,0,HJA,Growth,1301,Rent & Hire Of Premises,Places
Blackpool Council,1116288,Amas Ltd - Common Receipts Account,494528,0751-1304605,20/08/2018,17778.87,0,HJA,Growth,1801,Premises Insurance,Places
Blackpool Council,1053453,Brenntag Uk Ltd,494530,32SI 3273334,29/08/2018,276.09,46.01,LEISUR,Leisure Management,3060,Chemicals,Community & Env Services
Blackpool Council,1016649,Iems Services,494539,2231,20/08/2018,390,65,CEMCRE,Cems Crems Etc,4501,Private Contractors,Governance & Partnerships
Blackpool Council,1016649,Iems Services,494540,2232,20/08/2018,2100,350,TRB,Maintenance & Works,4501,Private Contractors,Community & Env Services
Blackpool Council,1116474,S O Painting & Decorating Ltd,494541,2,29/08/2018,450,0,FMAK,Acquisitions 9/10,1131,Electrical Equipment - Repairs,Places
Blackpool Council,1008644,Jonathan Lynch T/A The Studio,494543,1936,20/08/2018,330,0,AHG,Art Gallery Summary,3456,Payment To Artists,Places
Blackpool Council,1010138,C Cabs,494544,BC/02/008JUL18,20/08/2018,640,0,TRCHIL,Integrated Transport Children,2201,Contract Hire,Community & Env Services
Blackpool Council,1116721,Paul Cross,494545,PC0001,31/08/2018,950,0,PRKOP1,Parks Operational Manager  1,1012,Premises Maint-Priv.Contractor,Community & Env Services
Blackpool Council,1116408,Offigo,494546,INV0005,20/08/2018,6250,0,HS0009,Digital Mentoring,3531,Computer-H'Ware Purchase,Children'S Services
Blackpool Council,1000009,Blackpool & The Fylde College,494547,S0019618,23/08/2018,23339,0,ALEARN,Adult Learning,0781,Contracted,Places
Blackpool Council,1116452,Blackpool & District Badminton Association,494549,1001,20/08/2018,450,0,LEISUR,Leisure Management,3801,Other Expenses,Community & Env Services
Blackpool Council,1116270,Paul Barnes T/A We Are Brave,494550,INV-01117,29/08/2018,15900,2650,BSTPRJ,Better Start Projects,3401,General Services,Better Start Projects
Blackpool Council,1017525,Lancashire Outdoor Activities Initiative,494551,INV-1027,24/08/2018,600,0,HS0007,Young People & Comm'Y Engagemt,3601,Subsistence,Children'S Services
Blackpool Council,1060135,Happy Creative Ltd,494558,H4608,23/08/2018,612,102,ALEARN,Adult Learning,3817,Artwork,Places
Blackpool Council,1114704,Morson Human Resources Ltd,494563,HS189713,22/08/2018,2376,396,CTAHHA,Tramway Emergency Works,6506,Consultants Fees,Capital - Comm & Environ
Blackpool Council,1010138,C Cabs,494567,BC/02/009JUL18,20/08/2018,720,0,TRCHIL,Integrated Transport Children,4501,Private Contractors,Community & Env Services
Blackpool Council,1010138,C Cabs,494568,BC/01/019JUL18,20/08/2018,750,0,TRCHIL,Integrated Transport Children,4501,Private Contractors,Community & Env Services
Blackpool Council,1010138,C Cabs,494569,BC/02/015JUL18,20/08/2018,810,0,TRCHIL,Integrated Transport Children,4501,Private Contractors,Community & Env Services
Blackpool Council,1010138,C Cabs,494570,BC/71/003JUL18,20/08/2018,1316,0,TRCHIL,Integrated Transport Children,4501,Private Contractors,Community & Env Services
Blackpool Council,1010138,C Cabs,494571,BC/02/010JUL18,20/08/2018,720,0,TRCHIL,Integrated Transport Children,4501,Private Contractors,Community & Env Services
Blackpool Council,1010138,C Cabs,494572,BC/02/022JUL18,20/08/2018,675,0,TRCHIL,Integrated Transport Children,4501,Private Contractors,Community & Env Services
Blackpool Council,1010138,C Cabs,494573,BC/02/014JUL18,20/08/2018,690,0,TRCHIL,Integrated Transport Children,4501,Private Contractors,Community & Env Services
Blackpool Council,1010138,C Cabs,494574,BC/23/001JUL18,20/08/2018,648,0,TRCHIL,Integrated Transport Children,4501,Private Contractors,Community & Env Services
Blackpool Council,1010138,C Cabs,494575,BC/21/001JUL18,20/08/2018,600,0,TRCHIL,Integrated Transport Children,4501,Private Contractors,Community & Env Services
Blackpool Council,1040364,Conlon Construction Ltd,494576,10423,20/08/2018,123793.21,20632.2,CGTABA,Spanish Hall & Cs Façade,6501,Contract Payments,Capital - Commnctn & Regen
Blackpool Council,1040364,Conlon Construction Ltd,494576,10423,20/08/2018,2683.06,0,ZF0001,"Insurance,Dso,Banking",97B6,Retention Monies - Cap Trsfr,Total Reconciliations
Blackpool Council,1010138,C Cabs,494615,BC/44/003JUL18,30/08/2018,798,0,TRADUL,Intergrated Transport Adults,4501,Private Contractors,Community & Env Services
Blackpool Council,1010138,C Cabs,494616,BC/63/002JUL18,30/08/2018,1700,0,TRCHIL,Integrated Transport Children,4501,Private Contractors,Community & Env Services
Blackpool Council,1010138,C Cabs,494617,BC/75/001JUL18,30/08/2018,650,0,TRCHIL,Integrated Transport Children,4501,Private Contractors,Community & Env Services
Blackpool Council,1010138,C Cabs,494618,BC/01/004JUL18,30/08/2018,675,0,TRCHIL,Integrated Transport Children,4501,Private Contractors,Community & Env Services
Blackpool Council,1010138,C Cabs,494619,BC/01/027JUL18,30/08/2018,975,0,TRCHIL,Integrated Transport Children,4501,Private Contractors,Community & Env Services
Blackpool Council,1010138,C Cabs,494620,BC/01/003JUL18,30/08/2018,294,0,TRCHIL,Integrated Transport Children,4501,Private Contractors,Community & Env Services
Blackpool Council,1010138,C Cabs,494621,BC/01/007JUL18,30/08/2018,660,0,TRCHIL,Integrated Transport Children,4501,Private Contractors,Community & Env Services
Blackpool Council,1010138,C Cabs,494622,BC/01/018JUL18,30/08/2018,462,0,TRCHIL,Integrated Transport Children,4501,Private Contractors,Community & Env Services
Blackpool Council,1010138,C Cabs,494623,BC/01/022JUL18,30/08/2018,870,0,TRCHIL,Integrated Transport Children,4501,Private Contractors,Community & Env Services
Blackpool Council,1010138,C Cabs,494624,BC/01/023JUL18,30/08/2018,675,0,TRCHIL,Integrated Transport Children,4501,Private Contractors,Community & Env Services
Blackpool Council,1010138,C Cabs,494625,BC/01/041JUL18,30/08/2018,600,0,TRCHIL,Integrated Transport Children,4501,Private Contractors,Community & Env Services
Blackpool Council,1010300,Blacktax Radio Taxis T/A Blackpool Courier,494627,12497,30/08/2018,1200,0,TRCHIL,Integrated Transport Children,2201,Contract Hire,Community & Env Services
Blackpool Council,1010300,Blacktax Radio Taxis T/A Blackpool Courier,494629,12505,30/08/2018,975,0,TRCHIL,Integrated Transport Children,2201,Contract Hire,Community & Env Services
Blackpool Council,1010300,Blacktax Radio Taxis T/A Blackpool Courier,494630,BC/01/012JUL18,30/08/2018,1140,0,TRCHIL,Integrated Transport Children,4501,Private Contractors,Community & Env Services
Blackpool Council,1010300,Blacktax Radio Taxis T/A Blackpool Courier,494631,BC/01/009JUL18,30/08/2018,759.6,0,TRCHIL,Integrated Transport Children,4501,Private Contractors,Community & Env Services
Blackpool Council,1019622,Stephen  Floweth,494632,BC/01/010JUL18,30/08/2018,630,0,TRCHIL,Integrated Transport Children,4501,Private Contractors,Community & Env Services
Blackpool Council,1019622,Stephen  Floweth,494633,BC/02/004JUL18,30/08/2018,675,0,TRCHIL,Integrated Transport Children,4501,Private Contractors,Community & Env Services
Blackpool Council,1019622,Stephen  Floweth,494634,BC/02/011JUL18,30/08/2018,660,0,TRCHIL,Integrated Transport Children,4501,Private Contractors,Community & Env Services
Blackpool Council,1010830,Ace Radio Cabs Limited,494635,BC/63/008JUL18,30/08/2018,1036,0,TRCHIL,Integrated Transport Children,4501,Private Contractors,Community & Env Services
Blackpool Council,1010830,Ace Radio Cabs Limited,494636,BC/01/043JUL18,30/08/2018,960,0,TRCHIL,Integrated Transport Children,4501,Private Contractors,Community & Env Services
Blackpool Council,1008817,Radio J  Cabs,494638,BC/04/002JUL18,30/08/2018,840,0,TRCHIL,Integrated Transport Children,4501,Private Contractors,Community & Env Services
Blackpool Council,1008817,Radio J  Cabs,494639,BC/27/004JUL18,30/08/2018,308,0,TRCHIL,Integrated Transport Children,4501,Private Contractors,Community & Env Services
Blackpool Council,1008039,Woodswaste Ltd,494640,028798,30/08/2018,447.6,74.6,CEMCRE,Cems Crems Etc,3801,Other Expenses,Governance & Partnerships
Blackpool Council,1008039,Woodswaste Ltd,494641,028928,30/08/2018,553.68,92.28,CEMCRE,Cems Crems Etc,3801,Other Expenses,Governance & Partnerships
Blackpool Council,1008817,Radio J  Cabs,494642,BC/58/001JUL18,30/08/2018,870,0,TRCHIL,Integrated Transport Children,4501,Private Contractors,Community & Env Services
Blackpool Council,1008817,Radio J  Cabs,494644,515408,30/08/2018,3034.35,0,TRCHIL,Integrated Transport Children,2201,Contract Hire,Community & Env Services
Blackpool Council,1010138,C Cabs,494645,02931,30/08/2018,3704.6,0,TRCHIL,Integrated Transport Children,2201,Contract Hire,Community & Env Services
Blackpool Council,1010138,C Cabs,494647,02881,30/08/2018,366.72,0,TRCHIL,Integrated Transport Children,2201,Contract Hire,Community & Env Services
Blackpool Council,1010138,C Cabs,494648,02883,30/08/2018,321,0,TRCHIL,Integrated Transport Children,2201,Contract Hire,Community & Env Services
Blackpool Council,1008817,Radio J  Cabs,494649,515390,30/08/2018,1894.2,0,EDDIV,Education Diversity,2201,Contract Hire,Children'S Services
Blackpool Council,1106577,Qls Ltd,494651,329,23/08/2018,777,0,ALEARN,Adult Learning,6273,Miscellaneous,Places
Blackpool Council,1115485,Woodhorn Charitable Trust,494652,2582,21/08/2018,252,42,AHM,Arts Miscellaneous,3605,Confs & Short Courses,Places
Blackpool Council,1008817,Radio J  Cabs,494666,515426,22/08/2018,444.45,0,TRCHIL,Integrated Transport Children,2201,Contract Hire,Community & Env Services
Blackpool Council,1008817,Radio J  Cabs,494667,515405,22/08/2018,2089.72,0,TRCHIL,Integrated Transport Children,2201,Contract Hire,Community & Env Services
Blackpool Council,1008817,Radio J  Cabs,494668,515406,22/08/2018,2914.2,0,TRCHIL,Integrated Transport Children,2201,Contract Hire,Community & Env Services
Blackpool Council,1006292,Vodafone Corporate Ltd,494669,LH10316,24/08/2018,709.2,118.2,FGAA,Ict Corporate Services,3531,Computer-H'Ware Purchase,Resources
Blackpool Council,1018184,Blackpool Skip Hire,494685,5706,31/08/2018,2808,468,SCLEAN,Street Cleaning,4514,Contract 'E',Community & Env Services
Blackpool Council,1110133,Alex Rinsler,494689,1807BC,29/08/2018,4634.85,0,PJW,Management - Places - Illumina,3413,Consultants,Places
Blackpool Council,1006196,Prism Medical Uk,494690,5275149,24/08/2018,307.2,51.2,CXAAA,Local Authority Dwellings,6501,Contract Payments,Capital - Chief Executive
Blackpool Council,1006196,Prism Medical Uk,494694,5275150,24/08/2018,1358.97,226.49,CXAAA,Local Authority Dwellings,6501,Contract Payments,Capital - Chief Executive
Blackpool Council,1052237,Elite Cleaning & Environmental Svcs Ltd,494703,52970,29/08/2018,7022.19,1170.37,EDDIV,Education Diversity,1601,Consumable Supplies,Children'S Services
Blackpool Council,1012071,Bethell Construction Limited,494704,15423,23/08/2018,799.79,133.3,ENGINE,Engineering,1012,Premises Maint-Priv.Contractor,Community & Env Services
Blackpool Council,1012071,Bethell Construction Limited,494705,15424,23/08/2018,1647.55,274.59,ENGINE,Engineering,1012,Premises Maint-Priv.Contractor,Community & Env Services
Blackpool Council,1012071,Bethell Construction Limited,494706,15425,23/08/2018,4461.64,743.61,ENGINE,Engineering,1012,Premises Maint-Priv.Contractor,Community & Env Services
Blackpool Council,1012071,Bethell Construction Limited,494707,15426,23/08/2018,2635.07,439.18,ENGINE,Engineering,1012,Premises Maint-Priv.Contractor,Community & Env Services
Blackpool Council,1012071,Bethell Construction Limited,494708,15422,23/08/2018,1611.19,268.53,ENGINE,Engineering,1012,Premises Maint-Priv.Contractor,Community & Env Services
Blackpool Council,1012071,Bethell Construction Limited,494709,15421,23/08/2018,1955.52,325.92,ENGINE,Engineering,1012,Premises Maint-Priv.Contractor,Community & Env Services
Blackpool Council,1012071,Bethell Construction Limited,494710,15420,23/08/2018,5087.88,847.98,ENGINE,Engineering,1012,Premises Maint-Priv.Contractor,Community & Env Services
Blackpool Council,1009906,Combined Precision Components Plc Cpc,494719,8506188,29/08/2018,360.64,60.11,FMAK,Acquisitions 9/10,1131,Electrical Equipment - Repairs,Places
Blackpool Council,1013064,Tarmac Lafarge Trading Limited,494732,9038549350,23/08/2018,4266.4,711.06,ENGINE,Engineering,3041,Other Materials,Community & Env Services
Blackpool Council,1044156,Pell Frischmann,494740,W18 0328,29/08/2018,4018.32,669.72,CGOAAA,Quality Corridor,6501,Contract Payments,Capital - Commnctn & Regen
Blackpool Council,1044156,Pell Frischmann,494741,W18 0327,29/08/2018,1592.02,265.34,TRA,Traffic Management,4501,Private Contractors,Community & Env Services
Blackpool Council,1044156,Pell Frischmann,494742,W18 0325,29/08/2018,1316.7,219.45,TRA,Traffic Management,4501,Private Contractors,Community & Env Services
Blackpool Council,1044156,Pell Frischmann,494743,W18 0329,29/08/2018,482.68,80.45,CGOAAA,Quality Corridor,6501,Contract Payments,Capital - Commnctn & Regen
Blackpool Council,1086714,Liveasy Ltd,494744,BK0434A,24/08/2018,43318.9,7219.82,MTE,Undefined Age Group,5401,Aids To Daily Living,Adult & Families
Blackpool Council,1086714,Liveasy Ltd,494747,BK0434C,24/08/2018,12447.71,2074.62,MTE,Undefined Age Group,5401,Aids To Daily Living,Adult & Families
Blackpool Council,1010667,Argos Business Solutions Ltd,494794,01680017,30/08/2018,583.69,97.26,FC1802,Social Fund - Client,5210,Community Care Support,Resources
Blackpool Council,1025240,Key Engineering Supplies Ltd,494795,6585,23/08/2018,277.99,46.33,HOMECA,Homecare,3101,Provisions,Adult & Families
Blackpool Council,1019773,"Bradshaw Electric Vehs, John Bradshaw Ltd",494796,109059,29/08/2018,542.83,90.47,SCLEAN,Street Cleaning,4501,Private Contractors,Community & Env Services
Blackpool Council,1007980,Myerscough College,494797,INV265I89,23/08/2018,4596,0,SCLEAN,Street Cleaning,4501,Private Contractors,Community & Env Services
Blackpool Council,1090661,Genecon Limited,494823,GEN989F,23/08/2018,4500,750,MPB,Edc - Economic Dev Company,3413,Consultants,Places
Blackpool Council,1082240,E-On Uk Sustainable Energy Services Ltd,494834,032951,30/08/2018,768.91,128.15,TRA,Traffic Management,4501,Private Contractors,Community & Env Services
Blackpool Council,1086714,Liveasy Ltd,494835,BK0434D,24/08/2018,4292.28,715.38,MTE,Undefined Age Group,5401,Aids To Daily Living,Adult & Families
Blackpool Council,1086714,Liveasy Ltd,494836,BK0434B,24/08/2018,23276.94,3879.49,MTE,Undefined Age Group,5401,Aids To Daily Living,Adult & Families
Blackpool Council,1113460,Sureline Installations,494839,85,23/08/2018,485,0,MVB,65-74,5401,Aids To Daily Living,Adult & Families
Blackpool Council,1060724,J A Dickens Property Developer,494840,BCH-1593,23/08/2018,272.8,0,MVB,65-74,5401,Aids To Daily Living,Adult & Families
Blackpool Council,1113460,Sureline Installations,494841,86,23/08/2018,875,0,MVA,18-64,5401,Aids To Daily Living,Adult & Families
Blackpool Council,1114118,Medequip Assistive Technology Limited,494844,42577A,24/08/2018,9566.42,1594.4,MTE,Undefined Age Group,3006,Hire Of Equipment,Adult & Families
Blackpool Council,1114118,Medequip Assistive Technology Limited,494845,42582A,30/08/2018,11612.5,1935.42,MTE,Undefined Age Group,3006,Hire Of Equipment,Adult & Families
Blackpool Council,1106471,Mayne Special Needs,494853,MSN-BES342,24/08/2018,350,0,MTE,Undefined Age Group,5401,Aids To Daily Living,Adult & Families
Blackpool Council,1114118,Medequip Assistive Technology Limited,494855,42580,24/08/2018,336,56,MTE,Undefined Age Group,5401,Aids To Daily Living,Adult & Families
Blackpool Council,1114118,Medequip Assistive Technology Limited,494856,42578,24/08/2018,6300,1050,MTE,Undefined Age Group,5401,Aids To Daily Living,Adult & Families
Blackpool Council,1114118,Medequip Assistive Technology Limited,494858,42584,30/08/2018,336,56,MTE,Undefined Age Group,5401,Aids To Daily Living,Adult & Families
Blackpool Council,1058510,Lifeline Language Services Ltd,494879,1018098,31/08/2018,296.76,49.46,JEA,Senior Management,5507,Personal,Children'S Services
Blackpool Council,1107445,REDACTED PERSONAL DATA,494880,JH169,28/08/2018,1172.8,0,JA0505,Children'S Training,0911,Training Expenses,Children'S Services
Blackpool Council,1069340,Granthams Signs,494881,A1011513,24/08/2018,765,127.5,PJNA,New Features / Schemes - C & E,3041,Other Materials,Community & Env Services
Blackpool Council,1087305,Ellis & York Ltd,494884,4353,30/08/2018,1731.6,288.6,PJNA,New Features / Schemes - C & E,3041,Other Materials,Community & Env Services
Blackpool Council,1103450,Blackpool Entertainment Company Limited,494885,INV003785,24/08/2018,420,70,JA0505,Children'S Training,1702,Hire Of Meeting Rooms,Children'S Services
Blackpool Council,1111999,Simon Critchley Photography,494899,107,31/08/2018,800,0,AHHBA,Blackpool Museum,0981,Professional Fees,Places
Blackpool Council,1112696,REDACTED PERSONAL DATA,494902,BPL190818,24/08/2018,295,0,LEISUR,Leisure Management,0911,Training Expenses,Community & Env Services
Blackpool Council,1112477,Big Wave Media (Fac060),494913,59281,30/08/2018,1002.74,167.12,LEISUR,Leisure Management,3801,Other Expenses,Community & Env Services
Blackpool Council,1116476,Handheldimage,494949,2324,28/08/2018,2406,0,AHG,Art Gallery Summary,3456,Payment To Artists,Places
Blackpool Council,1011779,Northern Security National Limited,494951,22200,28/08/2018,475.2,79.2,PRB,Events,3418,Security Services,Places
Blackpool Council,1008865,Intrak,494952,BBC/1108,28/08/2018,3600,600,PRB,Events,3006,Hire Of Equipment,Places
Blackpool Council,1007864,Norbreck Castle Hotel,494954,722-206275,28/08/2018,316,52.67,PRB,Events,3401,General Services,Places
Blackpool Council,1106577,Qls Ltd,494957,319,28/08/2018,7875,0,ALEARN,Adult Learning,3801,Other Expenses,Places
Blackpool Council,1008394,Langdale Free School,494964,001 BLACKPOOL,28/08/2018,2610,0,OPAREA,Opportunity Areas,4515,Contract Services,Places
Blackpool Council,1008175,Manns Music,494965,112523,28/08/2018,557.57,92.93,MUSIC,Music & Cultural Education,3008,Educational Equipment,Children'S Services
Blackpool Council,1115472,REDACTED PERSONAL DATA,494974,145,28/08/2018,450,0,AHG,Art Gallery Summary,3456,Payment To Artists,Places
Blackpool Council,1105990,Fylde Environmental Services Ltd,494980,BC/289/2018,31/08/2018,3089,0,SCLEAN,Street Cleaning,4501,Private Contractors,Community & Env Services
Blackpool Council,1092245,Connor Specialist Paving,494986,0204,29/08/2018,4200,700,TRB,Maintenance & Works,4501,Private Contractors,Community & Env Services
Blackpool Council,1092245,Connor Specialist Paving,494987,0206,30/08/2018,2160,360,TRB,Maintenance & Works,4501,Private Contractors,Community & Env Services
Blackpool Council,1071702,Links Signs & Graphics Ltd,494990,LSGI25188,31/08/2018,645.6,107.6,PRG,Tourism General,3301,Printing,Places
Blackpool Council,1071702,Links Signs & Graphics Ltd,494991,LSGI24929,31/08/2018,1017.6,169.6,ALEARN,Adult Learning,7303,"Advertising-Displays, Etc.",Places
Blackpool Council,1008175,Manns Music,494992,110613,28/08/2018,557.56,92.92,MUSIC,Music & Cultural Education,3008,Educational Equipment,Children'S Services
Blackpool Council,1076316,News Uk & Ireland Limited,495059,600216611,30/08/2018,435.6,72.6,EYT,Early Years Team,3806,Advertising-General,Children'S Services
Blackpool Council,1092245,Connor Specialist Paving,495062,0203,30/08/2018,720,120,TRB,Maintenance & Works,4501,Private Contractors,Community & Env Services
Blackpool Council,1010554,Cidari Education Ltd,495071,BASI21,28/08/2018,7473,0,OPAREA,Opportunity Areas,4515,Contract Services,Places
Blackpool Council,1060135,Happy Creative Ltd,495072,H4645,28/08/2018,2028,338,PTA,Economic Development,3315,Marketing,Places
Blackpool Council,1011779,Northern Security National Limited,495074,22199,28/08/2018,3880.8,646.8,PRB,Events,3418,Security Services,Places
Blackpool Council,1006644,Telewest/Virgin Media Payments Ltd,495080,081127901504,28/08/2018,887.4,147.9,FGAA,Ict Corporate Services,3521,Landline - Line Rental,Resources
Blackpool Council,1006644,Telewest/Virgin Media Payments Ltd,495081,078850001547,28/08/2018,438,73,FGAA,Ict Corporate Services,3521,Landline - Line Rental,Resources
Blackpool Council,1006644,Telewest/Virgin Media Payments Ltd,495082,080868701864,28/08/2018,268.84,44.81,FGAA,Ict Corporate Services,3521,Landline - Line Rental,Resources
Blackpool Council,1006644,Telewest/Virgin Media Payments Ltd,495083,067437901506,28/08/2018,2862.94,477.16,FGAA,Ict Corporate Services,3521,Landline - Line Rental,Resources
Blackpool Council,1006644,Telewest/Virgin Media Payments Ltd,495084,067437901003,28/08/2018,4643.65,773.94,FGAA,Ict Corporate Services,3521,Landline - Line Rental,Resources
Blackpool Council,1116744,R & Jp International Ltd T/A Promo Catering,495088,0000156614,28/08/2018,1024.8,170.8,PUBH24,Miscellaneous,4501,Private Contractors,Public Health
Blackpool Council,1030730,Springfield Methodist Church,495090,818,29/08/2018,666.66,0,FC1802,Social Fund - Client,5209,Crisis/Emergency Support,Resources
Blackpool Council,1074052,Brent Stevenson Memorials Ltd,495137,19167,31/08/2018,572.4,95.4,CEMCRE,Cems Crems Etc,3454,Remove And Refix Memorials,Governance & Partnerships
Blackpool Council,1114704,Morson Human Resources Ltd,495153,HS190642,31/08/2018,2376,396,CTAHHA,Tramway Emergency Works,6506,Consultants Fees,Capital - Comm & Environ
Blackpool Council,1111733,Lancashire Archaeoloigical Advisory Service,495158,2-030,31/08/2018,281.25,0,PLBAAA,Development Control,3711,Subscriptions,Places
Blackpool Council,1107580,Positive Signs Nw Ltd T/A Blackpool Van Signs,495166,1638BVS,31/08/2018,22455.6,3742.6,MPB,Edc - Economic Dev Company,3801,Other Expenses,Places
Blackpool Council,1113560,Iese Transformation Limited,495167,843,30/08/2018,5926.2,987.7,DOMPFI,Domestic Waste & Waste Pfi,4501,Private Contractors,Community & Env Services
Blackpool Council,1083256,Community Lighting Partnership (Bpool) Ltd,495192,104,29/08/2018,497955.49,82992.58,FL1259,Pfi Management Costs,4501,Private Contractors,Community & Env Services
Blackpool Council,1008878,Cipfa Business Limited,495216,3137727,30/08/2018,1794,299,AEE,Estates,3711,Subscriptions,Resources
Blackpool Council,1105580,Buttress Architects Limited,495259,14025,31/08/2018,114953.69,19158.95,EC7013,Museum- Other Costs,3413,Consultants,Places
Blackpool Council,1107720,The Accounting Officer - Ministry Of Defence,495261,7551601,31/08/2018,22305,3091.67,PRB,Events,3401,General Services,Places
Blackpool Council,1014996,Peters Ltd T/A Peters Bookselling Svces,495265,1705555,31/08/2018,702.94,0,LBB,Central Library,3304,Books And Periodicals,Places
Blackpool Council,1014996,Peters Ltd T/A Peters Bookselling Svces,495267,1705559,31/08/2018,689.42,0,LBB,Central Library,3304,Books And Periodicals,Places
Blackpool Council,1014996,Peters Ltd T/A Peters Bookselling Svces,495268,1705558,31/08/2018,681.6,0,LBB,Central Library,3304,Books And Periodicals,Places
Blackpool Council,1014996,Peters Ltd T/A Peters Bookselling Svces,495270,1705557,31/08/2018,274.8,0,LBB,Central Library,3304,Books And Periodicals,Places
Blackpool Council,1014996,Peters Ltd T/A Peters Bookselling Svces,495272,1705479,31/08/2018,264.14,0,LBB,Central Library,3304,Books And Periodicals,Places
Blackpool Council,1110996,Philip Holmes T/A Dragon Creative,495286,BC0011,30/08/2018,2092.49,0,PJW,Management - Places - Illumina,3413,Consultants,Places
Blackpool Council,1090902,Anderson & Sons Contracting & Turf Care,495360,208,31/08/2018,3000,0,TRB,Maintenance & Works,4501,Private Contractors,Community & Env Services
Blackpool Council,1025618,Environment Agency,495390,N00000791T,31/08/2018,1053.55,0,CWASTE,Commercial Waste,3810,Waste Management Licence,Community & Env Services
Blackpool Council,1011714,Michael Hope Haulage Limited,495402,001357,31/08/2018,1920,320,SCHEME,Highways Schemes,1012,Premises Maint-Priv.Contractor,Community & Env Services
Blackpool Council,1011714,Michael Hope Haulage Limited,495403,001358,31/08/2018,1920,320,SCHEME,Highways Schemes,1012,Premises Maint-Priv.Contractor,Community & Env Services
Blackpool Council,1108764,Fitsense Ltd T/A Premier Sports,495407,SI-1000355,31/08/2018,2700,450,LEISUR,Leisure Management,2008,Running Costs-Licences,Community & Env Services
Blackpool Council,1108764,Fitsense Ltd T/A Premier Sports,495408,SI-1000354,31/08/2018,2700,450,LEISUR,Leisure Management,2008,Running Costs-Licences,Community & Env Services
Blackpool Council,1066717,The Yachtsman Ltd,3778654,135899,15/08/2018,3624,0,MGC,75-84,7583,Indep Sect Nursing Homes,Adult & Families
Blackpool Council,1066717,The Yachtsman Ltd,3778654,135899,15/08/2018,4203.04,0,MGC,75-84,4505,Residential Homes,Adult & Families
Blackpool Council,1066717,The Yachtsman Ltd,3778655,135617,15/08/2018,1959.04,0,MVC,75-84,4505,Residential Homes,Adult & Families
Blackpool Council,1066717,The Yachtsman Ltd,3778656,135029,15/08/2018,2337.84,0,MGC,75-84,4505,Residential Homes,Adult & Families
Blackpool Council,1066717,The Yachtsman Ltd,3792491,140216,15/08/2018,1959.04,0,MVC,75-84,4505,Residential Homes,Adult & Families
Blackpool Council,1066717,The Yachtsman Ltd,3792493,140576I,15/08/2018,1959.04,0,MGC,75-84,4505,Residential Homes,Adult & Families
Blackpool Council,1066717,The Yachtsman Ltd,3792494,139694,15/08/2018,2337.84,0,MGC,75-84,4505,Residential Homes,Adult & Families
Blackpool Council,1009281,Davies Casualty(Inc Garwyn & Argent),3799775,250655,30/08/2018,6232.77,0,RK6003,Garwyn Plh,3807,Legal & Court Costs,Internal Insurance
Blackpool Council,1009281,Davies Casualty(Inc Garwyn & Argent),3799776,250656,30/08/2018,3338.2,0,RK6002,Garwyn Pl,3807,Legal & Court Costs,Internal Insurance
Blackpool Council,1066717,The Yachtsman Ltd,3805056,143766,15/08/2018,2337.84,0,MGC,75-84,4505,Residential Homes,Adult & Families
Blackpool Council,1066717,The Yachtsman Ltd,3805057,144555I,15/08/2018,1959.04,0,MGC,75-84,4505,Residential Homes,Adult & Families
Blackpool Council,1066717,The Yachtsman Ltd,3805058,144164,15/08/2018,1959.04,0,MVC,75-84,4505,Residential Homes,Adult & Families
Blackpool Council,1066717,The Yachtsman Ltd,3817686,148806I,15/08/2018,1959.04,0,MGC,75-84,4505,Residential Homes,Adult & Families
Blackpool Council,1066717,The Yachtsman Ltd,3817687,147929,15/08/2018,2337.84,0,MGC,75-84,4505,Residential Homes,Adult & Families
Blackpool Council,1066717,The Yachtsman Ltd,3817688,148441,15/08/2018,1959.04,0,MVC,75-84,4505,Residential Homes,Adult & Families
Blackpool Council,1066717,The Yachtsman Ltd,3830234,152318,15/08/2018,1959.04,0,MVC,75-84,4505,Residential Homes,Adult & Families
Blackpool Council,1066717,The Yachtsman Ltd,3830236,152451I,15/08/2018,1959.04,0,MGC,75-84,4505,Residential Homes,Adult & Families
Blackpool Council,1066717,The Yachtsman Ltd,3830237,151972,15/08/2018,2337.84,0,MGC,75-84,4505,Residential Homes,Adult & Families
Blackpool Council,1114960,REDACTED PERSONAL DATA,3838874,2007431,09/08/2018,2970.24,0,MGB,65-74,7580,Residential Property Sales,Adult & Families
Blackpool Council,1066717,The Yachtsman Ltd,3843005,156612,15/08/2018,2337.84,0,MGC,75-84,4505,Residential Homes,Adult & Families
Blackpool Council,1066717,The Yachtsman Ltd,3843007,157497I,15/08/2018,1959.04,0,MGC,75-84,4505,Residential Homes,Adult & Families
Blackpool Council,1066717,The Yachtsman Ltd,3843009,157059I,15/08/2018,1959.04,0,MVC,75-84,4505,Residential Homes,Adult & Families
Blackpool Council,1066717,The Yachtsman Ltd,3856500,161624I,15/08/2018,1959.04,0,MVC,75-84,4505,Residential Homes,Adult & Families
Blackpool Council,1066717,The Yachtsman Ltd,3856502,161827I,15/08/2018,1959.04,0,MGC,75-84,4505,Residential Homes,Adult & Families
Blackpool Council,1066717,The Yachtsman Ltd,3856504,161314,15/08/2018,2337.84,0,MGC,75-84,4505,Residential Homes,Adult & Families
Blackpool Council,1066717,The Yachtsman Ltd,3870797,165377I,15/08/2018,1995.8,0,MGC,75-84,4505,Residential Homes,Adult & Families
Blackpool Council,1066717,The Yachtsman Ltd,3870799,165206I,13/08/2018,1995.8,0,MVC,75-84,4505,Residential Homes,Adult & Families
Blackpool Council,1066717,The Yachtsman Ltd,3870800,164835,13/08/2018,5377.53,0,MGC,75-84,7582,Indep Sect Residential Homes,Adult & Families
Blackpool Council,1066717,The Yachtsman Ltd,3882547,170704I,13/08/2018,2032.56,0,MVC,75-84,4505,Residential Homes,Adult & Families
Blackpool Council,1066717,The Yachtsman Ltd,3882548,170199I,13/08/2018,2032.56,0,MGC,75-84,4505,Residential Homes,Adult & Families
Blackpool Council,1066717,The Yachtsman Ltd,3895699,174892I,13/08/2018,2032.56,0,MGC,75-84,4505,Residential Homes,Adult & Families
Blackpool Council,1066717,The Yachtsman Ltd,3895700,175257I,13/08/2018,2032.56,0,MVC,75-84,4505,Residential Homes,Adult & Families
Blackpool Council,1115489,Four Seasons (No 11) Ltd - Highfield Hall Nh,3895995,175345,15/08/2018,794,0,MVC,75-84,7583,Indep Sect Nursing Homes,Adult & Families
Blackpool Council,1115489,Four Seasons (No 11) Ltd - Highfield Hall Nh,3895995,175345,15/08/2018,1796.84,0,MVC,75-84,4505,Residential Homes,Adult & Families
Blackpool Council,1066717,The Yachtsman Ltd,3907835,180088I,13/08/2018,2032.56,0,MGC,75-84,4505,Residential Homes,Adult & Families
Blackpool Council,1066717,The Yachtsman Ltd,3907837,179534I,13/08/2018,2032.56,0,MVC,75-84,4505,Residential Homes,Adult & Families
Blackpool Council,1115489,Four Seasons (No 11) Ltd - Highfield Hall Nh,3908126,179680,15/08/2018,1796.84,0,MVC,75-84,4505,Residential Homes,Adult & Families
Blackpool Council,1011995,Technical & Electrical Services Ltd,3909192,M 17242,01/08/2018,276,46,CXXXX,Hra Non Specific Contingency,6501,Contract Payments,Capital - Chief Executive
Blackpool Council,1096691,Parklands High School,3909665,IN160072,02/08/2018,324,54,CWAN,Children With Additional Needs,4101,Other Local Authorities,Children'S Services
Blackpool Council,1107694,Bradley Demolition Ltd,3912221,3614,01/08/2018,480,80,CXXXX,Hra Non Specific Contingency,6501,Contract Payments,Capital - Chief Executive
Blackpool Council,1107694,Bradley Demolition Ltd,3912222,3613,01/08/2018,480,80,CXXXX,Hra Non Specific Contingency,6501,Contract Payments,Capital - Chief Executive
Blackpool Council,1039034,Contract Floors Ltd,3912300,INV-0199,01/08/2018,328.25,54.71,CXXXX,Hra Non Specific Contingency,6501,Contract Payments,Capital - Chief Executive
Blackpool Council,1009009,Hermolle Associates Ltd,3912303,9474,01/08/2018,504,84,CXB71,Hra Capital Programme 2018/19,6501,Contract Payments,Capital - Chief Executive
Blackpool Council,1009009,Hermolle Associates Ltd,3912307,9476,01/08/2018,522,87,CXB71,Hra Capital Programme 2018/19,6501,Contract Payments,Capital - Chief Executive
Blackpool Council,1101059,Number Twenty Four Ltd,3912708,25202126 NNDR,03/08/2018,465,0,TAAAA,Business Improvement Districts,7151,Bid Income,Business Improvement Districts
Blackpool Council,1059217,Blackpool Carers Centre Ltd,3915044,805,01/08/2018,2147.5,0,JA2010,"Acute, Maternity & Palliative",4501,Private Contractors,Children'S Services
Blackpool Council,1087805,Blackpool Fc Community Trust,3915228,BFCCT923,03/08/2018,640,0,NAB,Sure Start,3401,General Services,Children'S Services
Blackpool Council,1011995,Technical & Electrical Services Ltd,3915246,CAP17308,01/08/2018,321.36,53.56,CXB71,Hra Capital Programme 2018/19,6501,Contract Payments,Capital - Chief Executive
Blackpool Council,1011995,Technical & Electrical Services Ltd,3915248,CAP17309,01/08/2018,321.36,53.56,CXB71,Hra Capital Programme 2018/19,6501,Contract Payments,Capital - Chief Executive
Blackpool Council,1011995,Technical & Electrical Services Ltd,3915259,CAP17310,01/08/2018,321.36,53.56,CXB71,Hra Capital Programme 2018/19,6501,Contract Payments,Capital - Chief Executive
Blackpool Council,1011995,Technical & Electrical Services Ltd,3915260,CAP17311,01/08/2018,321.36,53.56,CXB71,Hra Capital Programme 2018/19,6501,Contract Payments,Capital - Chief Executive
Blackpool Council,1011675,Bambers Remedial Contractors Limited,3915262,15148,01/08/2018,948,158,CXXXX,Hra Non Specific Contingency,6501,Contract Payments,Capital - Chief Executive
Blackpool Council,1084753,Gables Uk Limited,3915269,600096,01/08/2018,19512,3252,CXB71,Hra Capital Programme 2018/19,6501,Contract Payments,Capital - Chief Executive
Blackpool Council,1011995,Technical & Electrical Services Ltd,3915273,C 7036,01/08/2018,4468.87,744.81,CXB71,Hra Capital Programme 2018/19,6501,Contract Payments,Capital - Chief Executive
Blackpool Council,1011995,Technical & Electrical Services Ltd,3915275,M 17292,15/08/2018,552,92,CXB71,Hra Capital Programme 2018/19,6501,Contract Payments,Capital - Chief Executive
Blackpool Council,1011995,Technical & Electrical Services Ltd,3915277,M 17280,01/08/2018,940.56,156.76,CXB71,Hra Capital Programme 2018/19,6501,Contract Payments,Capital - Chief Executive
Blackpool Council,1011995,Technical & Electrical Services Ltd,3915278,M 17271,01/08/2018,321.36,53.56,CXB71,Hra Capital Programme 2018/19,6501,Contract Payments,Capital - Chief Executive
Blackpool Council,1002210,Read & Errington,3915388,MRC0135/V3,01/08/2018,87245.56,14540.93,CXB71,Hra Capital Programme 2018/19,6501,Contract Payments,Capital - Chief Executive
Blackpool Council,1073045,Bradley Environmental Consultants Ltd (Fac042,3915403,23963,01/08/2018,358.8,59.8,CGTABA,Spanish Hall & Cs Façade,6501,Contract Payments,Capital - Commnctn & Regen
Blackpool Council,1091610,Communicate Slt Cic,3915641,294,01/08/2018,17458,0,EP8002,Speech And Language,3801,Other Expenses,Children'S Services
Blackpool Council,1011107,Barry Atkinson T/A Abbey Doors,3916598,2434,01/08/2018,528,88,CXXXX,Hra Non Specific Contingency,6501,Contract Payments,Capital - Chief Executive
Blackpool Council,1002210,Read & Errington,3916600,BCH 102145/4,01/08/2018,336.9,56.15,CXXXX,Hra Non Specific Contingency,6501,Contract Payments,Capital - Chief Executive
Blackpool Council,1002210,Read & Errington,3916601,BCH 101104/4,01/08/2018,336.9,56.15,CXXXX,Hra Non Specific Contingency,6501,Contract Payments,Capital - Chief Executive
Blackpool Council,1103450,Blackpool Entertainment Company Limited,3916883,INV003713,16/08/2018,1040,173.33,AEB,Buildings,1301,Rent & Hire Of Premises,Resources
Blackpool Council,1009824,Acorn Care & Education Ltd,3916904,21311,01/08/2018,1300,0,CWAN,Children With Additional Needs,2211,Casual Hire,Children'S Services
Blackpool Council,1009824,Acorn Care & Education Ltd,3916915,21312,01/08/2018,1060,0,CWAN,Children With Additional Needs,2211,Casual Hire,Children'S Services
Blackpool Council,1009824,Acorn Care & Education Ltd,3916916,21310,01/08/2018,1300,0,CWAN,Children With Additional Needs,2211,Casual Hire,Children'S Services
Blackpool Council,1009824,Acorn Care & Education Ltd,3916917,21309,01/08/2018,1000,0,CWAN,Children With Additional Needs,2211,Casual Hire,Children'S Services
Blackpool Council,1009824,Acorn Care & Education Ltd,3916919,21308,01/08/2018,2600,0,CWAN,Children With Additional Needs,2211,Casual Hire,Children'S Services
Blackpool Council,1011702,J & J Decorating Services,3917446,7718,03/08/2018,7050,1175,CS01DH,A P S Capital Works,6518,Miscellaneous - Capital,Capital - Adult Social Care
Blackpool Council,1011973,Automatic Alarms Ltd,3917451,317547,06/08/2018,1077.22,179.54,AEB,Buildings,1171,Alarms,Resources
Blackpool Council,1094411,Fox Fire Security Limited,3917489,2441,03/08/2018,1038,173,AEB,Buildings,1012,Premises Maint-Priv.Contractor,Resources
Blackpool Council,1094411,Fox Fire Security Limited,3917492,2437,03/08/2018,1987.46,331.24,AEB,Buildings,1171,Alarms,Resources
Blackpool Council,1094411,Fox Fire Security Limited,3917494,2435,03/08/2018,1116,186,AER,Dual Use Properties,1012,Premises Maint-Priv.Contractor,Resources
Blackpool Council,1103063,Anthony Love Seating Installations Ltd,3917498,2018/729,01/08/2018,3384,564,AEB,Buildings,1012,Premises Maint-Priv.Contractor,Resources
Blackpool Council,1109886,Livewire Systems Ltd,3917501,1896,03/08/2018,399.6,66.6,AEB,Buildings,1012,Premises Maint-Priv.Contractor,Resources
Blackpool Council,1110053,Association Of Directors Of Public Health,3918121,I-180011,02/08/2018,2450,0,PUBH04,La Role In Health Protection,4501,Private Contractors,Public Health
Blackpool Council,1110793,REDACTED PERSONAL DATA,3918166,TCPGNH0718HW,01/08/2018,1250,0,JBR,Lac - Placements,3801,Other Expenses,Children'S Services
Blackpool Council,1110793,REDACTED PERSONAL DATA,3918167,TCPGNH0718JW,01/08/2018,1250,0,JBR,Lac - Placements,3801,Other Expenses,Children'S Services
Blackpool Council,1007814,Water Plus Limited,3918412,INV03342664-30,13/08/2018,895.03,0,LBF,Library Management,1401,Water Charges-Metered,Places
Blackpool Council,1007814,Water Plus Limited,3918415,INV03342664-42,13/08/2018,395.58,0,LBC,Branch Libraries,1401,Water Charges-Metered,Places
Blackpool Council,1007814,Water Plus Limited,3918418,INV03342664-31,13/08/2018,395.58,0,LBC,Branch Libraries,1401,Water Charges-Metered,Places
Blackpool Council,1007814,Water Plus Limited,3918420,INV03342664-36,13/08/2018,395.58,0,AEB,Buildings,1401,Water Charges-Metered,Resources
Blackpool Council,1007814,Water Plus Limited,3918422,INV03342664-43,13/08/2018,395.58,0,AEB,Buildings,1401,Water Charges-Metered,Resources
Blackpool Council,1007814,Water Plus Limited,3918423,INV03342664-34,13/08/2018,1872.1,0,AEB,Buildings,1401,Water Charges-Metered,Resources
Blackpool Council,1007814,Water Plus Limited,3918424,INV03342664-38,13/08/2018,895.03,0,AEB,Buildings,1401,Water Charges-Metered,Resources
Blackpool Council,1007814,Water Plus Limited,3918425,INV03342664-33,13/08/2018,1872.1,0,AEB,Buildings,1401,Water Charges-Metered,Resources
Blackpool Council,1007814,Water Plus Limited,3918430,INV03342664-49,13/08/2018,402.35,0,AEB,Buildings,1401,Water Charges-Metered,Resources
Blackpool Council,1007814,Water Plus Limited,3918432,INV03342664-17,13/08/2018,395.58,0,AHG,Art Gallery Summary,1401,Water Charges-Metered,Places
Blackpool Council,1007814,Water Plus Limited,3918433,INV03342664-8,13/08/2018,29925.58,0,AEB,Buildings,1401,Water Charges-Metered,Resources
Blackpool Council,1007814,Water Plus Limited,3918434,INV03342664-23,13/08/2018,4162.28,0,AEB,Buildings,1401,Water Charges-Metered,Resources
Blackpool Council,1007814,Water Plus Limited,3918435,INV03342664-55,13/08/2018,1335.77,0,AEZ,To Be Recharged,1401,Water Charges-Metered,Resources
Blackpool Council,1007814,Water Plus Limited,3918438,INV03342664-56,13/08/2018,333.93,0,AEZ,To Be Recharged,1401,Water Charges-Metered,Resources
Blackpool Council,1007814,Water Plus Limited,3918444,INV03342664-81,13/08/2018,11970,0,PJHA,"Depot, Management & Admin",1401,Water Charges-Metered,Community & Env Services
Blackpool Council,1007814,Water Plus Limited,3918445,INV03342664-87,13/08/2018,7907.84,0,AEB,Buildings,1401,Water Charges-Metered,Resources
Blackpool Council,1007814,Water Plus Limited,3918446,INV03342664-88,13/08/2018,7907.84,0,AEZ,To Be Recharged,1401,Water Charges-Metered,Resources
Blackpool Council,1007814,Water Plus Limited,3918447,INV03342664-94,13/08/2018,1872.1,0,AEB,Buildings,1401,Water Charges-Metered,Resources
Blackpool Council,1007814,Water Plus Limited,3918449,INV03342664-54,13/08/2018,395.58,0,AEZ,To Be Recharged,1401,Water Charges-Metered,Resources
Blackpool Council,1007814,Water Plus Limited,3918450,INV03342664-58,13/08/2018,487.06,0,AEZ,To Be Recharged,1401,Water Charges-Metered,Resources
Blackpool Council,1007814,Water Plus Limited,3918457,INV03342664-67,13/08/2018,1872.1,0,AEB,Buildings,1401,Water Charges-Metered,Resources
Blackpool Council,1007814,Water Plus Limited,3918459,INV03342664-16,13/08/2018,395.58,0,PUBCON,Public Conveniences,1401,Water Charges-Metered,Community & Env Services
Blackpool Council,1007814,Water Plus Limited,3918461,INV03342664-25,13/08/2018,395.58,0,PAROPE,Parking Operational,1401,Water Charges-Metered,Budgets Outside Cash Limits
Blackpool Council,1007814,Water Plus Limited,3918462,INV03342664-5,13/08/2018,895.03,0,PAROPE,Parking Operational,1401,Water Charges-Metered,Budgets Outside Cash Limits
Blackpool Council,1007814,Water Plus Limited,3918465,INV03342664-6,13/08/2018,4162.28,0,GGA,Travellers Sites,1401,Water Charges-Metered,Chief Executive
Blackpool Council,1007814,Water Plus Limited,3918467,INV03342664-7,13/08/2018,895.03,0,AEB,Buildings,1401,Water Charges-Metered,Resources
Blackpool Council,1007814,Water Plus Limited,3918476,INV03342664-63,13/08/2018,277.73,0,AEZ,To Be Recharged,1401,Water Charges-Metered,Resources
Blackpool Council,1007814,Water Plus Limited,3918478,INV03342664-32,13/08/2018,895.03,0,AEZ,To Be Recharged,1401,Water Charges-Metered,Resources
Blackpool Council,1007814,Water Plus Limited,3918480,INV03342664-47,13/08/2018,333.93,0,AEZ,To Be Recharged,1401,Water Charges-Metered,Resources
Blackpool Council,1007814,Water Plus Limited,3918487,INV03342664-66,13/08/2018,7907.84,0,AEB,Buildings,1401,Water Charges-Metered,Resources
Blackpool Council,1007814,Water Plus Limited,3918488,INV03342664-68,13/08/2018,1872.1,0,AEB,Buildings,1401,Water Charges-Metered,Resources
Blackpool Council,1007814,Water Plus Limited,3918489,INV03342664-39,13/08/2018,395.58,0,AEB,Buildings,1401,Water Charges-Metered,Resources
Blackpool Council,1007814,Water Plus Limited,3918490,INV03342664-65,13/08/2018,895.03,0,LBC,Branch Libraries,1401,Water Charges-Metered,Places
Blackpool Council,1007814,Water Plus Limited,3918492,INV03342664-20,13/08/2018,395.58,0,PAROPE,Parking Operational,1401,Water Charges-Metered,Budgets Outside Cash Limits
Blackpool Council,1007814,Water Plus Limited,3918500,INV03342664-24,13/08/2018,895.03,0,AEB,Buildings,1401,Water Charges-Metered,Resources
Blackpool Council,1007814,Water Plus Limited,3918502,INV03342664-84,13/08/2018,895.03,0,AEB,Buildings,1401,Water Charges-Metered,Resources
Blackpool Council,1007814,Water Plus Limited,3918505,INV03342664-69,13/08/2018,544.89,0,FMAD,Agricultural,1401,Water Charges-Metered,Resources
Blackpool Council,1007814,Water Plus Limited,3918508,INV03342664-95,13/08/2018,395.58,0,AEB,Buildings,1401,Water Charges-Metered,Resources
Blackpool Council,1011518,Tw Joinery & Fencing Contractors,3918511,2893,01/08/2018,852,142,CXB71,Hra Capital Programme 2018/19,6501,Contract Payments,Capital - Chief Executive
Blackpool Council,1011995,Technical & Electrical Services Ltd,3918513,C 7293,01/08/2018,1661.74,276.96,CXB71,Hra Capital Programme 2018/19,6501,Contract Payments,Capital - Chief Executive
Blackpool Council,1106537,Pj Fire Safety Risk Assessments Limited,3918529,2351,08/08/2018,270,45,CXB71,Hra Capital Programme 2018/19,6501,Contract Payments,Capital - Chief Executive
Blackpool Council,1000009,Blackpool & The Fylde College,3918622,S0019599,10/08/2018,8670,1445,EM2003,Departmental Management,1901,Contributions To Funds,Adult & Families
Blackpool Council,1007345,Mobile Mini Uk Limited,3918642,7000896925,08/08/2018,336.48,56.08,CEMCRE,Cems Crems Etc,1012,Premises Maint-Priv.Contractor,Governance & Partnerships
Blackpool Council,1069882,Highwire Ltd,3918668,I12457,03/08/2018,480,80,AER,Dual Use Properties,1012,Premises Maint-Priv.Contractor,Resources
Blackpool Council,1075175,Waterman Environmental Services Limited,3918684,8816,03/08/2018,2070.78,345.13,AEB,Buildings,1012,Premises Maint-Priv.Contractor,Resources
Blackpool Council,1075175,Waterman Environmental Services Limited,3918684,8816,03/08/2018,354.65,59.11,AER,Dual Use Properties,1012,Premises Maint-Priv.Contractor,Resources
Blackpool Council,1075175,Waterman Environmental Services Limited,3918684,8816,03/08/2018,253.24,42.21,CEMCRE,Cems Crems Etc,1012,Premises Maint-Priv.Contractor,Governance & Partnerships
Blackpool Council,1007516,Phoenix Commercial Collections Ltd,3918698,101242,03/08/2018,12258.88,2043.16,FBBEA,"Income, Recovery & Debtors",3807,Legal & Court Costs,Resources
Blackpool Council,1096691,Parklands High School,3918701,IN160083,02/08/2018,486,0,CWAN,Children With Additional Needs,4101,Other Local Authorities,Children'S Services
Blackpool Council,1105003,Socal Healthcare Ltd,3918706,0718-187-190,08/08/2018,707.74,0,JDEAAA,Safeguarding Adults,4501,Private Contractors,Adult & Families
Blackpool Council,1111328,Hadley Fraser Ltd,3918720,BLA067,08/08/2018,4874.16,812.36,JDEAAA,Safeguarding Adults,4501,Private Contractors,Adult & Families
Blackpool Council,1023161,Suez Recycling And Recovery Uk Ltd,3918731,80108860,03/08/2018,74720.64,12453.44,DOMPFI,Domestic Waste & Waste Pfi,4501,Private Contractors,Community & Env Services
Blackpool Council,1095113,Pearce Clinical Psychology Services Ltd,3918743,829,03/08/2018,308,0,CORDEV,Corporate Delivery Unit,0992,Medical Fees (Employee),Chief Executive
Blackpool Council,1095113,Pearce Clinical Psychology Services Ltd,3918743,829,03/08/2018,264,0,FCACA,Benefits - Admin,0992,Medical Fees (Employee),Resources
Blackpool Council,1095113,Pearce Clinical Psychology Services Ltd,3918743,829,03/08/2018,264,0,HS0004,Resilience Coaches,0992,Medical Fees (Employee),Children'S Services
Blackpool Council,1095113,Pearce Clinical Psychology Services Ltd,3918743,829,03/08/2018,352,0,HS0016,Headstart Ph Training,0992,Medical Fees (Employee),Children'S Services
Blackpool Council,1095113,Pearce Clinical Psychology Services Ltd,3918743,829,03/08/2018,440,0,PARADM,Parking Administration,0992,Medical Fees (Employee),Budgets Outside Cash Limits
Blackpool Council,1095113,Pearce Clinical Psychology Services Ltd,3918743,829,03/08/2018,264,0,PYDA,Housing Enforcement,0992,Medical Fees (Employee),Community & Env Services
Blackpool Council,1095113,Pearce Clinical Psychology Services Ltd,3918743,829,03/08/2018,352,0,SSDA,Social Services Direct,0992,Medical Fees (Employee),Adult & Families
Blackpool Council,1111762,Baby Moves Training Llp,3918744,INV-1770,03/08/2018,625,0,NAB,Sure Start,3401,General Services,Children'S Services
Blackpool Council,1006202,I Care Gb Limited,3918895,BPLEX/0807,02/08/2018,6157.78,0,MVB,65-74,4512,Other Care Block Payments,Adult & Families
Blackpool Council,1006202,I Care Gb Limited,3918896,BPLEX/0107,02/08/2018,6157.78,0,MVB,65-74,4512,Other Care Block Payments,Adult & Families
Blackpool Council,1114242,REDACTED PERSONAL DATA,3918902,WHA001,02/08/2018,384.83,0,JEA,Senior Management,3807,Legal & Court Costs,Children'S Services
Blackpool Council,1088102,Whistl Uk Limited,3918922,IN18US18005385,06/08/2018,5143.73,857.29,FCADA,Customer Services,3511,Postages,Resources
Blackpool Council,1033161,Lancaster Training Services Limited,3918995,18308,02/08/2018,1296,216,CVMU,Cvmu,3426,Course Fees,Community & Env Services
Blackpool Council,1005071,Blackpool Transport Services Limited,3919205,I0000617,14/08/2018,419,0,ZX0501,"Tourism,Promotions & Conferen.",9687,Tourism Sale Of Tickets,Place Directorate
Blackpool Council,1111328,Hadley Fraser Ltd,3919222,BLA070,10/08/2018,5314.32,885.72,JDEAAA,Safeguarding Adults,4501,Private Contractors,Adult & Families
Blackpool Council,1111680,Shared Future Cic,3919233,INV-334,06/08/2018,11376,1896,PU1013,Public Health Misc,4501,Private Contractors,Public Health
Blackpool Council,1103226,Kimberley Obrusik,3919392,252743,09/08/2018,900,150,PYCA,Public Protection - Food,3413,Consultants,Community & Env Services
Blackpool Council,1011702,J & J Decorating Services,3919412,7731,10/08/2018,342,57,AEB,Buildings,1012,Premises Maint-Priv.Contractor,Resources
Blackpool Council,1011702,J & J Decorating Services,3919413,7730,10/08/2018,456,76,AER,Dual Use Properties,1012,Premises Maint-Priv.Contractor,Resources
Blackpool Council,1015204,M (Uk) Ltd,3919432,1040,03/08/2018,4771.2,795.2,AEB,Buildings,1012,Premises Maint-Priv.Contractor,Resources
Blackpool Council,1015204,M (Uk) Ltd,3919432,1040,03/08/2018,7538.4,1256.4,AER,Dual Use Properties,1012,Premises Maint-Priv.Contractor,Resources
Blackpool Council,1020179,The James Mercer Group Ltd,3919437,113795,03/08/2018,519.55,86.59,AEB,Buildings,1012,Premises Maint-Priv.Contractor,Resources
Blackpool Council,1020179,The James Mercer Group Ltd,3919440,113888,09/08/2018,328.32,54.72,AEB,Buildings,1121,Heating & Ventilation,Resources
Blackpool Council,1073045,Bradley Environmental Consultants Ltd (Fac042,3919485,24699,10/08/2018,834,139,CTABWA,Ltp Scheme 17/18,6501,Contract Payments,Capital - Commnctn & Regen
Blackpool Council,1113964,Weldlag Limited,3919503,0247,03/08/2018,1800,300,AEB,Buildings,1012,Premises Maint-Priv.Contractor,Resources
Blackpool Council,1084496,Acorn Treatment & Housing,3919505,SINV80/00000305,08/08/2018,424.29,0,MPA,18-64,4563,Priv-Stc Carers-Residential,Adult & Families
Blackpool Council,1011518,Tw Joinery & Fencing Contractors,3920204,2894,01/08/2018,259.2,43.2,CXB71,Hra Capital Programme 2018/19,6501,Contract Payments,Capital - Chief Executive
Blackpool Council,1011675,Bambers Remedial Contractors Limited,3920205,15092,01/08/2018,594,99,CXXXX,Hra Non Specific Contingency,6501,Contract Payments,Capital - Chief Executive
Blackpool Council,1011675,Bambers Remedial Contractors Limited,3920224,15166,01/08/2018,2394,399,CXB71,Hra Capital Programme 2018/19,6501,Contract Payments,Capital - Chief Executive
Blackpool Council,1011675,Bambers Remedial Contractors Limited,3920225,15171,01/08/2018,918,153,CXXXX,Hra Non Specific Contingency,6501,Contract Payments,Capital - Chief Executive
Blackpool Council,1011675,Bambers Remedial Contractors Limited,3920227,15167,01/08/2018,9405,1567.5,CXB71,Hra Capital Programme 2018/19,6501,Contract Payments,Capital - Chief Executive
Blackpool Council,1011995,Technical & Electrical Services Ltd,3920228,M 17333,01/08/2018,276,46,CXXXX,Hra Non Specific Contingency,6501,Contract Payments,Capital - Chief Executive
Blackpool Council,1011995,Technical & Electrical Services Ltd,3920229,M 17332,01/08/2018,276,46,CXXXX,Hra Non Specific Contingency,6501,Contract Payments,Capital - Chief Executive
Blackpool Council,1011995,Technical & Electrical Services Ltd,3920230,M 17331,01/08/2018,321.36,53.56,CXB71,Hra Capital Programme 2018/19,6501,Contract Payments,Capital - Chief Executive
Blackpool Council,1041219,Abelglass Trade Supplies Ltd,3920232,INV-1323,15/08/2018,1118.4,186.4,CXB71,Hra Capital Programme 2018/19,6501,Contract Payments,Capital - Chief Executive
Blackpool Council,1041219,Abelglass Trade Supplies Ltd,3920233,INV-1320,15/08/2018,1118.4,186.4,CXB71,Hra Capital Programme 2018/19,6501,Contract Payments,Capital - Chief Executive
Blackpool Council,1068896,Barnardos Services Ltd (Vat Invoices Only),3920535,241001268,10/08/2018,1092.77,182.13,JEA,Senior Management,4820,Theraoy,Children'S Services
Blackpool Council,1068896,Barnardos Services Ltd (Vat Invoices Only),3920536,241001258,10/08/2018,1092.77,182.13,JEA,Senior Management,4820,Theraoy,Children'S Services
Blackpool Council,1068896,Barnardos Services Ltd (Vat Invoices Only),3920539,241001264,10/08/2018,819.58,136.6,JEA,Senior Management,4820,Theraoy,Children'S Services
Blackpool Council,1112231,North West Fire Protection Limited,3920560,3536,23/08/2018,2538,423,CXB71,Hra Capital Programme 2018/19,6501,Contract Payments,Capital - Chief Executive
Blackpool Council,1041219,Abelglass Trade Supplies Ltd,3920563,INV-1335,15/08/2018,563.94,93.99,CXB71,Hra Capital Programme 2018/19,6501,Contract Payments,Capital - Chief Executive
Blackpool Council,1041219,Abelglass Trade Supplies Ltd,3920564,INV-1331,15/08/2018,1118.4,186.4,CXB71,Hra Capital Programme 2018/19,6501,Contract Payments,Capital - Chief Executive
Blackpool Council,1041219,Abelglass Trade Supplies Ltd,3920565,INV-1334,15/08/2018,1118.4,186.4,CXB71,Hra Capital Programme 2018/19,6501,Contract Payments,Capital - Chief Executive
Blackpool Council,1041219,Abelglass Trade Supplies Ltd,3920566,INV-1333,15/08/2018,1118.4,186.4,CXB71,Hra Capital Programme 2018/19,6501,Contract Payments,Capital - Chief Executive
Blackpool Council,1041219,Abelglass Trade Supplies Ltd,3920567,INV-1330,15/08/2018,1118.4,186.4,CXB71,Hra Capital Programme 2018/19,6501,Contract Payments,Capital - Chief Executive
Blackpool Council,1041219,Abelglass Trade Supplies Ltd,3920568,INV-1329,15/08/2018,1118.4,186.4,CXB71,Hra Capital Programme 2018/19,6501,Contract Payments,Capital - Chief Executive
Blackpool Council,1041219,Abelglass Trade Supplies Ltd,3920569,INV-1326,15/08/2018,1118.4,186.4,CXB71,Hra Capital Programme 2018/19,6501,Contract Payments,Capital - Chief Executive
Blackpool Council,1041219,Abelglass Trade Supplies Ltd,3920570,INV-1327,15/08/2018,1118.4,186.4,CXB71,Hra Capital Programme 2018/19,6501,Contract Payments,Capital - Chief Executive
Blackpool Council,1041219,Abelglass Trade Supplies Ltd,3920571,INV-1332,15/08/2018,1118.4,186.4,CXB71,Hra Capital Programme 2018/19,6501,Contract Payments,Capital - Chief Executive
Blackpool Council,1041219,Abelglass Trade Supplies Ltd,3920573,INV-1328,15/08/2018,1118.4,186.4,CXB71,Hra Capital Programme 2018/19,6501,Contract Payments,Capital - Chief Executive
Blackpool Council,1015654,Horton Automatics Ltd,3920587,4079806,01/08/2018,5941.08,990.18,CXB71,Hra Capital Programme 2018/19,6501,Contract Payments,Capital - Chief Executive
Blackpool Council,1041219,Abelglass Trade Supplies Ltd,3920589,INV-1223,15/08/2018,3715.2,619.2,CXB71,Hra Capital Programme 2018/19,6501,Contract Payments,Capital - Chief Executive
Blackpool Council,1007138,Northlands Village Rest Home,3920814,184924,17/08/2018,320.75,0,MSD,85+,4505,Residential Homes,Adult & Families
Blackpool Council,1008176,Manor Homes (Poulton) Ltd,3921101,184199I,15/08/2018,2057.76,0,MVD,85+,4506,Nursing Homes,Adult & Families
Blackpool Council,1008176,Manor Homes (Poulton) Ltd,3921102,184534,15/08/2018,2057.76,0,MVC,75-84,4506,Nursing Homes,Adult & Families
Blackpool Council,1008176,Manor Homes (Poulton) Ltd,3921102,184534,15/08/2018,369.36,0,MVC,75-84,4505,Residential Homes,Adult & Families
Blackpool Council,1008176,Manor Homes (Poulton) Ltd,3921104,184786I,15/08/2018,1973.44,0,MSB,65-74,4506,Nursing Homes,Adult & Families
Blackpool Council,1008176,Manor Homes (Poulton) Ltd,3921106,184904,15/08/2018,527,0,MGD,85+,7582,Indep Sect Residential Homes,Adult & Families
Blackpool Council,1066717,The Yachtsman Ltd,3921694,184807I,13/08/2018,2032.56,0,MGC,75-84,4505,Residential Homes,Adult & Families
Blackpool Council,1066717,The Yachtsman Ltd,3921696,184356I,13/08/2018,2032.56,0,MVC,75-84,4505,Residential Homes,Adult & Families
Blackpool Council,1115489,Four Seasons (No 11) Ltd - Highfield Hall Nh,3921993,184555,15/08/2018,1796.84,0,MVC,75-84,4505,Residential Homes,Adult & Families
Blackpool Council,1006351,Versalift Distributors (Uk) Ltd,3922248,INV483562,03/08/2018,277.5,46.25,CVMU,Cvmu,3041,Other Materials,Community & Env Services
Blackpool Council,1006351,Versalift Distributors (Uk) Ltd,3922249,INV483653,03/08/2018,978.25,163.04,CVMU,Cvmu,3041,Other Materials,Community & Env Services
Blackpool Council,1008450,Lawrence Vehicles Ltd T/A Lancashire Daf,3922255,1565250,10/08/2018,474,79,CVMU,Cvmu,3041,Other Materials,Community & Env Services
Blackpool Council,1008450,Lawrence Vehicles Ltd T/A Lancashire Daf,3922256,1565194,09/08/2018,666,111,CVMU,Cvmu,3041,Other Materials,Community & Env Services
Blackpool Council,1029067,Johnston Sweepers Limited,3922287,61638559,03/08/2018,363.54,60.59,CVMU,Cvmu,3041,Other Materials,Community & Env Services
Blackpool Council,1029067,Johnston Sweepers Limited,3922288,61639086,08/08/2018,1060.36,176.73,CVMU,Cvmu,3041,Other Materials,Community & Env Services
Blackpool Council,1011973,Automatic Alarms Ltd,3922384,317708,13/08/2018,774.04,129.01,AEB,Buildings,1171,Alarms,Resources
Blackpool Council,1012061,Security Monitoring Centres Ltd,3922387,SI0787920,07/08/2018,964.74,160.8,AEB,Buildings,1171,Alarms,Resources
Blackpool Council,1012061,Security Monitoring Centres Ltd,3922387,SI0787920,07/08/2018,321.58,53.6,FMAB,Commercial Propereties,1171,Alarms,Resources
Blackpool Council,1012907,Arjo Uk Ltd,3922389,3390950224,02/08/2018,480.25,80.04,AEB,Buildings,1012,Premises Maint-Priv.Contractor,Resources
Blackpool Council,1012907,Arjo Uk Ltd,3922390,3390950231,02/08/2018,1260.28,210.05,AEB,Buildings,1012,Premises Maint-Priv.Contractor,Resources
Blackpool Council,1046494,Riba Enterprises Limited,3922395,SINV00015162,15/08/2018,11976,1996,AED,Capital Projects,1012,Premises Maint-Priv.Contractor,Resources
Blackpool Council,1075175,Waterman Environmental Services Limited,3922408,8810,01/08/2018,1305.98,217.66,AEB,Buildings,1012,Premises Maint-Priv.Contractor,Resources
Blackpool Council,1116433,Arianna Kelly,3922429,394703,01/08/2018,1100,183.33,MVB,65-74,3413,Consultants,Adult & Families
Blackpool Council,1104638,Snap Blackpool Ltd,3922789,BPC0016,01/08/2018,8750,0,CWAN,Children With Additional Needs,3801,Other Expenses,Children'S Services
Blackpool Council,1011952,Empowerment,3922790,385,10/08/2018,60999.99,0,MHE,Undefined Age Group,4512,Other Care Block Payments,Adult & Families
Blackpool Council,1105240,Hanzak Ltd T/A Dr Rashad Nazir,3922792,20444RN,10/08/2018,1883.1,0,JDEAAA,Safeguarding Adults,4501,Private Contractors,Adult & Families
Blackpool Council,1105240,Hanzak Ltd T/A Dr Rashad Nazir,3922793,20445RN,10/08/2018,597.9,0,JDEAAA,Safeguarding Adults,4501,Private Contractors,Adult & Families
Blackpool Council,1105240,Hanzak Ltd T/A Dr Rashad Nazir,3922794,20443RN,10/08/2018,1927.35,0,JDEAAA,Safeguarding Adults,4501,Private Contractors,Adult & Families
Blackpool Council,1007516,Phoenix Commercial Collections Ltd,3922806,101244,03/08/2018,2647.69,441.28,PARADM,Parking Administration,7366,Car Parking Fees,Budgets Outside Cash Limits
Blackpool Council,1063621,Littledale Hall Therapeutic Community Ltd,3922807,4321,08/08/2018,1488.68,0,MPA,18-64,4563,Priv-Stc Carers-Residential,Adult & Families
Blackpool Council,1063621,Littledale Hall Therapeutic Community Ltd,3922808,4322,08/08/2018,1488.68,0,MPA,18-64,4563,Priv-Stc Carers-Residential,Adult & Families
Blackpool Council,1063621,Littledale Hall Therapeutic Community Ltd,3922809,4323,08/08/2018,1597.4,0,MPA,18-64,4563,Priv-Stc Carers-Residential,Adult & Families
Blackpool Council,1103450,Blackpool Entertainment Company Limited,3922812,140G00020,07/08/2018,450,75,AEH,Built Heritage,3801,Other Expenses,Places
Blackpool Council,1108451,Poulton Pets Ltd T/A Sundown Kennels,3922819,KIMMY,01/08/2018,316.8,52.8,MVC,75-84,4502,Dog Kennelling Contractor,Adult & Families
Blackpool Council,1007516,Phoenix Commercial Collections Ltd,3922827,101364,10/08/2018,12919.86,2153.3,FBBEA,"Income, Recovery & Debtors",3807,Legal & Court Costs,Resources
Blackpool Council,1020550,Hays Specialist Recruitment Ltd,3923143,1008760206,06/08/2018,472.8,78.8,CWAN,Children With Additional Needs,4403,Special Needs - Children,Children'S Services
Blackpool Council,1020550,Hays Specialist Recruitment Ltd,3923144,1008770762,06/08/2018,630,105,CWAN,Children With Additional Needs,4403,Special Needs - Children,Children'S Services
Blackpool Council,1020550,Hays Specialist Recruitment Ltd,3923145,1008750800,06/08/2018,630,105,CWAN,Children With Additional Needs,4403,Special Needs - Children,Children'S Services
Blackpool Council,1020550,Hays Specialist Recruitment Ltd,3923146,1008732267,06/08/2018,630,105,CWAN,Children With Additional Needs,4403,Special Needs - Children,Children'S Services
Blackpool Council,1020550,Hays Specialist Recruitment Ltd,3923147,1008645039,06/08/2018,630,105,CWAN,Children With Additional Needs,4403,Special Needs - Children,Children'S Services
Blackpool Council,1020550,Hays Specialist Recruitment Ltd,3923148,1008633075,06/08/2018,252,42,CWAN,Children With Additional Needs,4403,Special Needs - Children,Children'S Services
Blackpool Council,1020550,Hays Specialist Recruitment Ltd,3923149,1008610916,06/08/2018,504,84,CWAN,Children With Additional Needs,4403,Special Needs - Children,Children'S Services
Blackpool Council,1020550,Hays Specialist Recruitment Ltd,3923150,1008586672,06/08/2018,378,63,CWAN,Children With Additional Needs,4403,Special Needs - Children,Children'S Services
Blackpool Council,1020550,Hays Specialist Recruitment Ltd,3923152,1008511251,06/08/2018,598.8,99.8,CWAN,Children With Additional Needs,4403,Special Needs - Children,Children'S Services
Blackpool Council,1020550,Hays Specialist Recruitment Ltd,3923153,1008536535,06/08/2018,378,63,CWAN,Children With Additional Needs,4403,Special Needs - Children,Children'S Services
Blackpool Council,1020550,Hays Specialist Recruitment Ltd,3923155,1008566677,06/08/2018,630,105,CWAN,Children With Additional Needs,4403,Special Needs - Children,Children'S Services
Blackpool Council,1010138,C Cabs,3923159,02795,07/08/2018,351.9,0,CWAN,Children With Additional Needs,2211,Casual Hire,Children'S Services
Blackpool Council,1088102,Whistl Uk Limited,3923163,IN18US18005568,13/08/2018,3879.9,646.65,FCADA,Customer Services,3511,Postages,Resources
Blackpool Council,1114133,Rhd Construction And Developments Ltd,3923166,MR 412,08/08/2018,2574,429,AEH,Built Heritage,3801,Other Expenses,Places
Blackpool Council,1041219,Abelglass Trade Supplies Ltd,3925346,INV-1366,02/08/2018,1118.4,186.4,CXB71,Hra Capital Programme 2018/19,6501,Contract Payments,Capital - Chief Executive
Blackpool Council,1041219,Abelglass Trade Supplies Ltd,3925347,INV-1367,02/08/2018,1118.4,186.4,CXB71,Hra Capital Programme 2018/19,6501,Contract Payments,Capital - Chief Executive
Blackpool Council,1011675,Bambers Remedial Contractors Limited,3925349,15060,01/08/2018,5328,888,CXXXX,Hra Non Specific Contingency,6501,Contract Payments,Capital - Chief Executive
Blackpool Council,1011675,Bambers Remedial Contractors Limited,3925350,14958,01/08/2018,9679.18,1613.2,CXB71,Hra Capital Programme 2018/19,6501,Contract Payments,Capital - Chief Executive
Blackpool Council,1011675,Bambers Remedial Contractors Limited,3925351,15111,01/08/2018,10020,1670,CXXXX,Hra Non Specific Contingency,6501,Contract Payments,Capital - Chief Executive
Blackpool Council,1106135,Richard Metcalf,3925352,1,01/08/2018,2300,0,CXXXX,Hra Non Specific Contingency,6501,Contract Payments,Capital - Chief Executive
Blackpool Council,1011702,J & J Decorating Services,3925497,7740,22/08/2018,330,55,AEB,Buildings,1012,Premises Maint-Priv.Contractor,Resources
Blackpool Council,1011702,J & J Decorating Services,3925498,7739,22/08/2018,600,100,AEB,Buildings,1012,Premises Maint-Priv.Contractor,Resources
Blackpool Council,1011702,J & J Decorating Services,3925499,7737,17/08/2018,1020,170,ZM0002,Quality & Enforcement,96J1,General Default Works A/C,Blackpool Services
Blackpool Council,1007814,Water Plus Limited,3925511,INV03277852,13/08/2018,354.98,0,AEZ,To Be Recharged,1401,Water Charges-Metered,Resources
Blackpool Council,1005067,Blackpool Pleasure Beach Ltd,3925513,17831,10/08/2018,19584.58,3264.08,ZX0501,"Tourism,Promotions & Conferen.",968B,Resort Pass,Place Directorate
Blackpool Council,1076015,Ks Education Limited T/A Roselyn House School,3925524,1378,06/08/2018,12565.03,0,CWAN,Children With Additional Needs,4501,Private Contractors,Children'S Services
Blackpool Council,1103692,Calico Enterprise Limited,3925530,SINV20/00000397,02/08/2018,1026,171,FC1802,Social Fund - Client,5210,Community Care Support,Resources
Blackpool Council,1094960,REDACTED PERSONAL DATA,3925531,409163,10/08/2018,540,90,RK8003,Costs Plh,3807,Legal & Court Costs,Internal Insurance
Blackpool Council,1007516,Phoenix Commercial Collections Ltd,3925534,101496,17/08/2018,355.81,59.28,FBBEA,"Income, Recovery & Debtors",3807,Legal & Court Costs,Resources
Blackpool Council,1007516,Phoenix Commercial Collections Ltd,3925535,101495,17/08/2018,12856.31,2142.71,FBBEA,"Income, Recovery & Debtors",3807,Legal & Court Costs,Resources
Blackpool Council,1079838,Staining Ce Primary School,3925538,SB181607,06/08/2018,2492,0,CWAN,Children With Additional Needs,4101,Other Local Authorities,Children'S Services
Blackpool Council,1079838,Staining Ce Primary School,3925539,JB181707,06/08/2018,2492,0,CWAN,Children With Additional Needs,4101,Other Local Authorities,Children'S Services
Blackpool Council,1084079,The Guide Dogs For The Blind Association,3925542,20004347,16/08/2018,360,0,CWAN,Children With Additional Needs,3408,Services To Clients,Children'S Services
Blackpool Council,1006202,I Care Gb Limited,3925546,BPLEX/1507,02/08/2018,6200.38,0,MVB,65-74,4512,Other Care Block Payments,Adult & Families
Blackpool Council,1041219,Abelglass Trade Supplies Ltd,3925586,INV-1356,01/08/2018,1118.4,186.4,CXB71,Hra Capital Programme 2018/19,6501,Contract Payments,Capital - Chief Executive
Blackpool Council,1011518,Tw Joinery & Fencing Contractors,3925587,2903,01/08/2018,5496,916,CXB71,Hra Capital Programme 2018/19,6501,Contract Payments,Capital - Chief Executive
Blackpool Council,1041219,Abelglass Trade Supplies Ltd,3925588,INV-1355,01/08/2018,1118.4,186.4,CXB71,Hra Capital Programme 2018/19,6501,Contract Payments,Capital - Chief Executive
Blackpool Council,1041219,Abelglass Trade Supplies Ltd,3925590,INV-1345,01/08/2018,1118.4,186.4,CXB71,Hra Capital Programme 2018/19,6501,Contract Payments,Capital - Chief Executive
Blackpool Council,1041219,Abelglass Trade Supplies Ltd,3925591,INV-1344,01/08/2018,1118.4,186.4,CXB71,Hra Capital Programme 2018/19,6501,Contract Payments,Capital - Chief Executive
Blackpool Council,1041219,Abelglass Trade Supplies Ltd,3925595,INV-1348,01/08/2018,1118.4,186.4,CXB71,Hra Capital Programme 2018/19,6501,Contract Payments,Capital - Chief Executive
Blackpool Council,1041219,Abelglass Trade Supplies Ltd,3925657,INV-1347,01/08/2018,1118.4,186.4,CXB71,Hra Capital Programme 2018/19,6501,Contract Payments,Capital - Chief Executive
Blackpool Council,1041219,Abelglass Trade Supplies Ltd,3925658,INV-1346,01/08/2018,1118.4,186.4,CXB71,Hra Capital Programme 2018/19,6501,Contract Payments,Capital - Chief Executive
Blackpool Council,1066073,Blackpool Coastal Housing,3925661,30001458,01/08/2018,61691.05,10281.84,CXB71,Hra Capital Programme 2018/19,6501,Contract Payments,Capital - Chief Executive
Blackpool Council,1004960,Drugline Lancashire Ltd,3925708,1020,01/08/2018,3333.33,0,EP8105,Domestic Abuse Dclg / Lcc,7011,Government Grants,Children'S Services
Blackpool Council,1090804,Getty Images International,3925713,3813397,07/08/2018,1142.4,0,PBF,Communications,3822,Photography,Chief Executive
Blackpool Council,1008450,Lawrence Vehicles Ltd T/A Lancashire Daf,3925722,1565962,16/08/2018,360,60,CVMU,Cvmu,3041,Other Materials,Community & Env Services
Blackpool Council,1008450,Lawrence Vehicles Ltd T/A Lancashire Daf,3925723,1566437,22/08/2018,510,85,CVMU,Cvmu,3041,Other Materials,Community & Env Services
Blackpool Council,1008450,Lawrence Vehicles Ltd T/A Lancashire Daf,3925724,1565961,16/08/2018,2340,390,CVMU,Cvmu,3041,Other Materials,Community & Env Services
Blackpool Council,1079267,Dmh Vehicle Glazing,3925758,3836,09/08/2018,375,0,CVMU,Cvmu,4501,Private Contractors,Community & Env Services
Blackpool Council,1086077,Gullivers Truck Hire Limited,3925760,1807/30242,22/08/2018,282.84,47.14,CVMU,Cvmu,2211,Casual Hire,Community & Env Services
Blackpool Council,1104155,Snap On Diagnostics,3925770,ARS/10547451,17/08/2018,540,90,CVMU,Cvmu,3001,Office Equipment Purchase,Community & Env Services
Blackpool Council,1110439,Redgold Hydraulics (Standish) Ltd,3925773,3357,17/08/2018,808.8,134.8,CVMU,Cvmu,4501,Private Contractors,Community & Env Services
Blackpool Council,1102434,Inform Cpi Limited,3925833,AL56842,01/08/2018,450,75,FC2011,Nndr Collection Costs,3401,General Services,Budgets Outside Cash Limits
Blackpool Council,1102434,Inform Cpi Limited,3925838,AL56541,01/08/2018,1590,265,FC2011,Nndr Collection Costs,3401,General Services,Budgets Outside Cash Limits
Blackpool Council,1103692,Calico Enterprise Limited,3925840,SINV20/00000396,02/08/2018,1296,216,FC1802,Social Fund - Client,5210,Community Care Support,Resources
Blackpool Council,1020550,Hays Specialist Recruitment Ltd,3925841,1008796096,07/08/2018,598.8,99.8,CWAN,Children With Additional Needs,4403,Special Needs - Children,Children'S Services
Blackpool Council,1105003,Socal Healthcare Ltd,3925842,0718-195-196,08/08/2018,350.45,0,JDEAAA,Safeguarding Adults,4501,Private Contractors,Adult & Families
Blackpool Council,1103692,Calico Enterprise Limited,3925843,SINV/00003513,03/08/2018,8079.65,1346.61,DOMPFI,Domestic Waste & Waste Pfi,4501,Private Contractors,Community & Env Services
Blackpool Council,1005067,Blackpool Pleasure Beach Ltd,3925850,17783,13/08/2018,626.5,104.42,ZX0501,"Tourism,Promotions & Conferen.",9687,Tourism Sale Of Tickets,Place Directorate
Blackpool Council,1069873,U-Save Ltd,3925851,14937,07/08/2018,1045.4,174.23,PBF,Communications,3806,Advertising-General,Chief Executive
Blackpool Council,1086647,REDACTED PERSONAL DATA,3925852,NWSAC/50718,02/08/2018,3950,0,JEA,Senior Management,3807,Legal & Court Costs,Children'S Services
Blackpool Council,1005067,Blackpool Pleasure Beach Ltd,3925853,17782,13/08/2018,992.92,165.49,ZX0501,"Tourism,Promotions & Conferen.",9687,Tourism Sale Of Tickets,Place Directorate
Blackpool Council,1007183,Royal Mail Group Ltd,3925861,9056956953,06/08/2018,259.78,43.3,BGA,Electoral Services,3511,Postages,Governance & Partnerships
Blackpool Council,1035659,Blackpool Zoo,3925863,0000005363,13/08/2018,2081.62,346.94,ZX0501,"Tourism,Promotions & Conferen.",9687,Tourism Sale Of Tickets,Place Directorate
Blackpool Council,1094660,Mark Yates Properties,3926026,MYP2018/601,15/08/2018,1005.68,0,HOPB,Housing Options,1301,Rent & Hire Of Premises,Chief Executive
Blackpool Council,1011995,Technical & Electrical Services Ltd,3926052,C 7226,01/08/2018,4201.2,700.2,CXB71,Hra Capital Programme 2018/19,6501,Contract Payments,Capital - Chief Executive
Blackpool Council,1005102,Sandcastle Waterpark - Boc Ltd,3926059,7420,01/08/2018,15866.83,2644.47,PAROPE,Parking Operational,7366,Car Parking Fees,Budgets Outside Cash Limits
Blackpool Council,1107694,Bradley Demolition Ltd,3926068,3644,24/08/2018,642,107,CXB71,Hra Capital Programme 2018/19,6501,Contract Payments,Capital - Chief Executive
Blackpool Council,1107694,Bradley Demolition Ltd,3926069,3643,24/08/2018,642,107,CXB71,Hra Capital Programme 2018/19,6501,Contract Payments,Capital - Chief Executive
Blackpool Council,1107694,Bradley Demolition Ltd,3926070,3642,24/08/2018,642,107,CXB71,Hra Capital Programme 2018/19,6501,Contract Payments,Capital - Chief Executive
Blackpool Council,1107694,Bradley Demolition Ltd,3926071,3641,24/08/2018,642,107,CXB71,Hra Capital Programme 2018/19,6501,Contract Payments,Capital - Chief Executive
Blackpool Council,1048456,R T C,3926074,7290,21/08/2018,7136.4,1189.4,CXB71,Hra Capital Programme 2018/19,6501,Contract Payments,Capital - Chief Executive
Blackpool Council,1058510,Lifeline Language Services Ltd,3926121,1018086,22/08/2018,1970.3,328.38,JEA,Senior Management,3807,Legal & Court Costs,Children'S Services
Blackpool Council,1084280,Alpha Biolabs (Fac088),3926122,23515,02/08/2018,2116.8,352.8,JEA,Senior Management,3807,Legal & Court Costs,Children'S Services
Blackpool Council,1112890,Dr Lucy Bacon T/A Ml North West,3926141,SW30618,07/08/2018,2016,336,JEA,Senior Management,3807,Legal & Court Costs,Children'S Services
Blackpool Council,1113165,Target Psychology Ltd,3926148,7/18/1261,15/08/2018,601.26,100.21,JEA,Senior Management,3807,Legal & Court Costs,Children'S Services
Blackpool Council,1070948,REDACTED PERSONAL DATA,3926149,FEENOTE160718,02/08/2018,466.08,0,JEA,Senior Management,3807,Legal & Court Costs,Children'S Services
Blackpool Council,1106857,REDACTED PERSONAL DATA,3926165,507180,23/08/2018,390,65,RK8002,Costs Pl,3807,Legal & Court Costs,Internal Insurance
Blackpool Council,1072548,Advanced Child Care Assessments Limited,3926166,MW MS 40 07 18,02/08/2018,532.86,88.81,JEA,Senior Management,3807,Legal & Court Costs,Children'S Services
Blackpool Council,1090543,Jonathan Easton,3926190,407689,17/08/2018,945,157.5,PLBAAA,Development Control,3413,Consultants,Places
Blackpool Council,1103692,Calico Enterprise Limited,3926194,SINV20/00000422,07/08/2018,28395.6,4732.6,DOMPFI,Domestic Waste & Waste Pfi,4501,Private Contractors,Community & Env Services
Blackpool Council,1103692,Calico Enterprise Limited,3926197,SINV20/00000423,07/08/2018,8079.65,1346.61,DOMPFI,Domestic Waste & Waste Pfi,4501,Private Contractors,Community & Env Services
Blackpool Council,1103692,Calico Enterprise Limited,3926199,SINV20/00000424,07/08/2018,12780.54,2130.09,DOMPFI,Domestic Waste & Waste Pfi,4501,Private Contractors,Community & Env Services
Blackpool Council,1022793,Scottish Hydro Electric,3926231,11727931/0007,10/08/2018,1663.63,277.27,AEZ,To Be Recharged,1202,Electricity,Resources
Blackpool Council,1088102,Whistl Uk Limited,3926239,IN18US18005752,20/08/2018,4628.65,771.44,FCADA,Customer Services,3511,Postages,Resources
Blackpool Council,1098363,Core Assets Expert Services Ltd,3926419,139769,02/08/2018,854.23,142.37,JEA,Senior Management,3807,Legal & Court Costs,Children'S Services
Blackpool Council,1063408,REDACTED PERSONAL DATA,3926420,406417,17/08/2018,900,150,PYLA,Licencing,3807,Legal & Court Costs,Community & Env Services
Blackpool Council,1041219,Abelglass Trade Supplies Ltd,3926874,INV-1399,06/08/2018,1118.4,186.4,CXB71,Hra Capital Programme 2018/19,6501,Contract Payments,Capital - Chief Executive
Blackpool Council,1041219,Abelglass Trade Supplies Ltd,3926877,INV-1398,03/08/2018,1118.4,186.4,CXB71,Hra Capital Programme 2018/19,6501,Contract Payments,Capital - Chief Executive
Blackpool Council,1041219,Abelglass Trade Supplies Ltd,3926878,INV-1397,06/08/2018,1118.4,186.4,CXB71,Hra Capital Programme 2018/19,6501,Contract Payments,Capital - Chief Executive
Blackpool Council,1041219,Abelglass Trade Supplies Ltd,3926879,INV-1401,06/08/2018,563.94,93.99,CXB71,Hra Capital Programme 2018/19,6501,Contract Payments,Capital - Chief Executive
Blackpool Council,1041219,Abelglass Trade Supplies Ltd,3926880,INV-1400,06/08/2018,572.4,95.4,CXB71,Hra Capital Programme 2018/19,6501,Contract Payments,Capital - Chief Executive
Blackpool Council,1113823,Tm Children'S Social Care Consultancy Ltd,3926897,014,15/08/2018,9263,0,JA0502,Principal Social Worker,3401,General Services,Children'S Services
Blackpool Council,1014580,Carousel Hotel/Sleepwell Hotels Uk Ltd,3926898,135,10/08/2018,4633.06,772.18,PAROPE,Parking Operational,7366,Car Parking Fees,Budgets Outside Cash Limits
Blackpool Council,1014580,Carousel Hotel/Sleepwell Hotels Uk Ltd,3926899,134,10/08/2018,5873.59,978.93,PAROPE,Parking Operational,7366,Car Parking Fees,Budgets Outside Cash Limits
Blackpool Council,1014580,Carousel Hotel/Sleepwell Hotels Uk Ltd,3926900,133,10/08/2018,3871.5,645.25,PAROPE,Parking Operational,7366,Car Parking Fees,Budgets Outside Cash Limits
Blackpool Council,1014580,Carousel Hotel/Sleepwell Hotels Uk Ltd,3926901,132,10/08/2018,2948.66,491.44,PAROPE,Parking Operational,7366,Car Parking Fees,Budgets Outside Cash Limits
Blackpool Council,1014580,Carousel Hotel/Sleepwell Hotels Uk Ltd,3926902,128,10/08/2018,1302.46,217.08,PAROPE,Parking Operational,7366,Car Parking Fees,Budgets Outside Cash Limits
Blackpool Council,1014580,Carousel Hotel/Sleepwell Hotels Uk Ltd,3926903,136,10/08/2018,3443.75,0,PAROPE,Parking Operational,7366,Car Parking Fees,Budgets Outside Cash Limits
Blackpool Council,1094872,West Park Kindergarten (Nursery Grants Only),3926908,001WELSH,07/08/2018,255.9,0,CWAN,Children With Additional Needs,4501,Private Contractors,Children'S Services
Blackpool Council,1094872,West Park Kindergarten (Nursery Grants Only),3926910,002WELSH,07/08/2018,511.8,0,CWAN,Children With Additional Needs,4501,Private Contractors,Children'S Services
Blackpool Council,1006385,University Of Central Lancashire,3926911,TUI223600024,31/08/2018,650,0,LM0420,Adults Training,7310,Training Courses - No Orders,Adult & Families
Blackpool Council,1114000,Dac Beachcroft Claims Limited,3926914,430022196,08/08/2018,801,133.5,RK8002,Costs Pl,3807,Legal & Court Costs,Internal Insurance
Blackpool Council,1068734,British Gas Business,3926924,957356339,13/08/2018,705.18,33.58,CEMCRE,Cems Crems Etc,1202,Electricity,Governance & Partnerships
Blackpool Council,1040687,REDACTED PERSONAL DATA,3926925,345905,15/08/2018,2100,350,JEA,Senior Management,3807,Legal & Court Costs,Children'S Services
Blackpool Council,1020550,Hays Specialist Recruitment Ltd,3926926,1008817120,08/08/2018,630,105,CWAN,Children With Additional Needs,4403,Special Needs - Children,Children'S Services
Blackpool Council,1005071,Blackpool Transport Services Limited,3926930,I0000599,14/08/2018,2025.6,0,ZX0501,"Tourism,Promotions & Conferen.",9687,Tourism Sale Of Tickets,Place Directorate
Blackpool Council,1079749,Total Gas & Power Ltd,3926932,170939862/18,13/08/2018,3221.35,536.89,AEZ,To Be Recharged,1203,Gas,Resources
Blackpool Council,1005067,Blackpool Pleasure Beach Ltd,3927488,17890,13/08/2018,784.8,130.8,ZX0501,"Tourism,Promotions & Conferen.",9687,Tourism Sale Of Tickets,Place Directorate
Blackpool Council,1005067,Blackpool Pleasure Beach Ltd,3927489,17891,13/08/2018,360,60,ZX0501,"Tourism,Promotions & Conferen.",9687,Tourism Sale Of Tickets,Place Directorate
Blackpool Council,1077392,Reed Specialist Recruitment Ltd,3927490,E020740551M,14/08/2018,5072.98,845.5,AEF,Facilities,0791,Temp/Relief (Bureau Staff),Resources
Blackpool Council,1077392,Reed Specialist Recruitment Ltd,3927490,E020740551M,14/08/2018,743.26,123.88,ALDA,Learning Disability Team,0791,Temp/Relief (Bureau Staff),Adult & Families
Blackpool Council,1077392,Reed Specialist Recruitment Ltd,3927490,E020740551M,14/08/2018,636.8,106.13,HS0008,Headstart Admin & Support,0791,Temp/Relief (Bureau Staff),Children'S Services
Blackpool Council,1077392,Reed Specialist Recruitment Ltd,3927490,E020740551M,14/08/2018,4507.68,751.28,JAB,Locality,0791,Temp/Relief (Bureau Staff),Children'S Services
Blackpool Council,1077392,Reed Specialist Recruitment Ltd,3927490,E020740551M,14/08/2018,3113.04,518.84,JBT,Looked After Children,0791,Temp/Relief (Bureau Staff),Children'S Services
Blackpool Council,1077392,Reed Specialist Recruitment Ltd,3927490,E020740551M,14/08/2018,1077.5,179.58,SSDA,Social Services Direct,0791,Temp/Relief (Bureau Staff),Adult & Families
Blackpool Council,1077392,Reed Specialist Recruitment Ltd,3927490,E020740551M,14/08/2018,1226.14,204.36,VA0010,Vah Management & Admin,0791,Temp/Relief (Bureau Staff),Children'S Services
Blackpool Council,1100602,Keys Education And Care Ltd,3927524,KED0000204153,02/08/2018,5800,0,JEA,Senior Management,4501,Private Contractors,Children'S Services
Blackpool Council,1023864,Cedar House School,3927525,4617,02/08/2018,14708.33,0,JEA,Senior Management,4501,Private Contractors,Children'S Services
Blackpool Council,1031418,Oversands School,3927526,3796,02/08/2018,14708.33,0,JEA,Senior Management,4501,Private Contractors,Children'S Services
Blackpool Council,1031418,Oversands School,3927527,3795,02/08/2018,13680.83,0,JEA,Senior Management,4501,Private Contractors,Children'S Services
Blackpool Council,1026117,Partners In Care Ltd,3927528,2121,02/08/2018,14171.43,0,JEA,Senior Management,4501,Private Contractors,Children'S Services
Blackpool Council,1091794,Compass Children'S Homes Limited,3927529,7601,02/08/2018,16828.66,0,JEA,Senior Management,4501,Private Contractors,Children'S Services
Blackpool Council,1101400,Courtyard Care Limited,3927530,211154,02/08/2018,7738.93,0,JEA,Senior Management,4501,Private Contractors,Children'S Services
Blackpool Council,1109511,Cambian Childcare Limited,3927531,CHI037486,02/08/2018,19614.01,0,JEA,Senior Management,4501,Private Contractors,Children'S Services
Blackpool Council,1110803,Swaay Child & Adolescent Services Ltd,3927532,07/18/185,02/08/2018,20480.15,0,JEA,Senior Management,4501,Private Contractors,Children'S Services
Blackpool Council,1075968,Care Today Childrens Services,3927533,26180,02/08/2018,20031.48,3338.58,JEA,Senior Management,4501,Private Contractors,Children'S Services
Blackpool Council,1116373,Unity Residential Care Services Limited,3927534,INV-0523,02/08/2018,27457.01,0,JEA,Senior Management,4501,Private Contractors,Children'S Services
Blackpool Council,1113027,New Spring Family Care Ltd,3927535,BCKPOOL-043,02/08/2018,13000,0,JEA,Senior Management,4501,Private Contractors,Children'S Services
Blackpool Council,1113027,New Spring Family Care Ltd,3927536,BCKPOOL-052,02/08/2018,13000,0,JEA,Senior Management,4501,Private Contractors,Children'S Services
Blackpool Council,1113027,New Spring Family Care Ltd,3927537,BCKPOOL-048,02/08/2018,13000,0,JEA,Senior Management,4501,Private Contractors,Children'S Services
Blackpool Council,1105867,Amber Family Ltd,3927538,00447,02/08/2018,11800,0,JEA,Senior Management,4505,Residential Homes,Children'S Services
Blackpool Council,1115419,REDACTED PERSONAL DATA,3927549,060818-020918,02/08/2018,8970,0,CFSBAT,Business Support,5604,Direct Payments,Adult & Families
Blackpool Council,1115992,REDACTED PERSONAL DATA,3927551,060818-020918,02/08/2018,10356.04,0,CFSBAT,Business Support,5604,Direct Payments,Adult & Families
Blackpool Council,1109836,REDACTED PERSONAL DATA,3927552,060818-020918,02/08/2018,4085.72,0,CFSBAT,Business Support,5604,Direct Payments,Adult & Families
Blackpool Council,1053017,Sandcastle Care Ltd,3927553,2326,03/08/2018,13507.14,0,JEA,Senior Management,4501,Private Contractors,Children'S Services
Blackpool Council,1116338,REDACTED PERSONAL DATA,3927554,060818-020918,02/08/2018,8006.04,0,CFSBAT,Business Support,5604,Direct Payments,Adult & Families
Blackpool Council,1053017,Sandcastle Care Ltd,3927555,2325,03/08/2018,26350,0,JEA,Senior Management,4501,Private Contractors,Children'S Services
Blackpool Council,1053017,Sandcastle Care Ltd,3927556,2322,03/08/2018,13507.14,0,JEA,Senior Management,4501,Private Contractors,Children'S Services
Blackpool Council,1053017,Sandcastle Care Ltd,3927557,2321,03/08/2018,13101.93,0,JEA,Senior Management,4501,Private Contractors,Children'S Services
Blackpool Council,1053017,Sandcastle Care Ltd,3927558,2320,03/08/2018,13101.93,0,JEA,Senior Management,4501,Private Contractors,Children'S Services
Blackpool Council,1053017,Sandcastle Care Ltd,3927559,2319,03/08/2018,13101.93,0,JEA,Senior Management,4501,Private Contractors,Children'S Services
Blackpool Council,1053017,Sandcastle Care Ltd,3927560,2318,03/08/2018,13101.93,0,JEA,Senior Management,4501,Private Contractors,Children'S Services
Blackpool Council,1053017,Sandcastle Care Ltd,3927561,2317,03/08/2018,11813.21,0,JEA,Senior Management,4501,Private Contractors,Children'S Services
Blackpool Council,1113485,REDACTED PERSONAL DATA,3927563,060818-020918,02/08/2018,3652.2,0,CFSBAT,Business Support,5604,Direct Payments,Adult & Families
Blackpool Council,1104481,REDACTED PERSONAL DATA,3927564,060818-020918,02/08/2018,1905.36,0,CFSBAT,Business Support,5604,Direct Payments,Adult & Families
Blackpool Council,1116504,G Rose Care Ltd - Lavender Lodge,3927565,187218,01/08/2018,1421.04,0,MGC,75-84,4505,Residential Homes,Adult & Families
Blackpool Council,1116504,G Rose Care Ltd - Lavender Lodge,3927566,187219,01/08/2018,1441.04,0,MGB,65-74,4505,Residential Homes,Adult & Families
Blackpool Council,1116504,G Rose Care Ltd - Lavender Lodge,3927567,187220,01/08/2018,1453.04,0,MFC,75-84,4505,Residential Homes,Adult & Families
Blackpool Council,1116504,G Rose Care Ltd - Lavender Lodge,3927568,187226,01/08/2018,1433.04,0,MFC,75-84,4505,Residential Homes,Adult & Families
Blackpool Council,1116504,G Rose Care Ltd - Lavender Lodge,3927569,187223,01/08/2018,1421.04,0,MGC,75-84,4505,Residential Homes,Adult & Families
Blackpool Council,1116504,G Rose Care Ltd - Lavender Lodge,3927570,187224,01/08/2018,1243.8,0,MFB,65-74,4505,Residential Homes,Adult & Families
Blackpool Council,1116504,G Rose Care Ltd - Lavender Lodge,3927571,187225,01/08/2018,1407.76,0,MGC,75-84,4505,Residential Homes,Adult & Families
Blackpool Council,1116504,G Rose Care Ltd - Lavender Lodge,3927572,187222,01/08/2018,1973.44,0,MGD,85+,4505,Residential Homes,Adult & Families
Blackpool Council,1109019,Ascent Trampoline Park Ltd,3927573,ASC-106,10/08/2018,388.8,64.8,ZX0501,"Tourism,Promotions & Conferen.",968B,Resort Pass,Place Directorate
Blackpool Council,1006944,Siemens Financial Services Ltd,3927574,244/18/0228186,01/08/2018,381.42,63.57,CEMCRE,Cems Crems Etc,1012,Premises Maint-Priv.Contractor,Governance & Partnerships
Blackpool Council,1006984,Ser-Vac Ltd,3927575,00953,01/08/2018,336,56,AEB,Buildings,1012,Premises Maint-Priv.Contractor,Resources
Blackpool Council,1011973,Automatic Alarms Ltd,3927579,317892,21/08/2018,462.72,77.12,PJHA,"Depot, Management & Admin",1171,Alarms,Community & Env Services
Blackpool Council,1011973,Automatic Alarms Ltd,3927581,317934,22/08/2018,324.2,54.03,AEB,Buildings,1012,Premises Maint-Priv.Contractor,Resources
Blackpool Council,1011973,Automatic Alarms Ltd,3927582,317933,22/08/2018,1481.72,246.95,AEB,Buildings,1012,Premises Maint-Priv.Contractor,Resources
Blackpool Council,1011973,Automatic Alarms Ltd,3927583,317932,22/08/2018,476.1,79.35,AEB,Buildings,1012,Premises Maint-Priv.Contractor,Resources
Blackpool Council,1011995,Technical & Electrical Services Ltd,3927585,7330,03/08/2018,1670.4,278.4,AEB,Buildings,1012,Premises Maint-Priv.Contractor,Resources
Blackpool Council,1020179,The James Mercer Group Ltd,3927587,113558,01/08/2018,662.77,110.46,PRKOP1,Parks Operational Manager  1,1012,Premises Maint-Priv.Contractor,Community & Env Services
Blackpool Council,1037705,Walker Fire (Uk) Ltd,3927588,297976,17/08/2018,944.34,157.39,AEB,Buildings,1069,Fire Precautions,Resources
Blackpool Council,1037705,Walker Fire (Uk) Ltd,3927588,297976,17/08/2018,254.7,42.45,LBB,Central Library,1069,Fire Precautions,Places
Blackpool Council,1062296,J & J Electrical Services,3927591,6394,01/08/2018,697.68,116.28,CCTV,Cctv,1012,Premises Maint-Priv.Contractor,Public Health
Blackpool Council,1062296,J & J Electrical Services,3927592,6420,03/08/2018,834.28,139.05,AEB,Buildings,1012,Premises Maint-Priv.Contractor,Resources
Blackpool Council,1062296,J & J Electrical Services,3927593,6370,01/08/2018,590.68,98.45,AEB,Buildings,1012,Premises Maint-Priv.Contractor,Resources
Blackpool Council,1062296,J & J Electrical Services,3927594,6299,03/08/2018,258,0,AEF,Facilities,1012,Premises Maint-Priv.Contractor,Resources
Blackpool Council,1070009,M W Access Platform Hire (Esi 8c8l5frfscccrp),3927596,970,23/08/2018,350,0,AEZ,To Be Recharged,1012,Premises Maint-Priv.Contractor,Resources
Blackpool Council,1073045,Bradley Environmental Consultants Ltd (Fac042,3927599,25381,24/08/2018,720,120,AEB,Buildings,1012,Premises Maint-Priv.Contractor,Resources
Blackpool Council,1073045,Bradley Environmental Consultants Ltd (Fac042,3927600,25382,24/08/2018,292.03,48.67,CORSAA,Remodelling Clc Gr Park,6501,Contract Payments,Capital - Resources
Blackpool Council,1073045,Bradley Environmental Consultants Ltd (Fac042,3927601,25383,24/08/2018,292.03,48.67,CORSAA,Remodelling Clc Gr Park,6501,Contract Payments,Capital - Resources
Blackpool Council,1073045,Bradley Environmental Consultants Ltd (Fac042,3927602,25384,24/08/2018,292.03,48.67,CORSAA,Remodelling Clc Gr Park,6501,Contract Payments,Capital - Resources
Blackpool Council,1073045,Bradley Environmental Consultants Ltd (Fac042,3927603,25385,24/08/2018,292.03,48.67,CORSAA,Remodelling Clc Gr Park,6501,Contract Payments,Capital - Resources
Blackpool Council,1073045,Bradley Environmental Consultants Ltd (Fac042,3927604,25297,24/08/2018,480,80,CS01DH,A P S Capital Works,6501,Contract Payments,Capital - Adult Social Care
Blackpool Council,1094411,Fox Fire Security Limited,3927616,2456,16/08/2018,426,71,AEB,Buildings,1012,Premises Maint-Priv.Contractor,Resources
Blackpool Council,1103450,Blackpool Entertainment Company Limited,3927617,INV003739,09/08/2018,278.81,46.47,AEB,Buildings,1012,Premises Maint-Priv.Contractor,Resources
Blackpool Council,1103450,Blackpool Entertainment Company Limited,3927618,INV003740,09/08/2018,278.81,46.47,AEB,Buildings,1012,Premises Maint-Priv.Contractor,Resources
Blackpool Council,1111433,REDACTED PERSONAL DATA,3927620,060818-020918,02/08/2018,1541.4,0,CFSBAT,Business Support,5604,Direct Payments,Adult & Families
Blackpool Council,1115175,Future Focused Ltd,3927621,BL0000054,02/08/2018,17714.33,0,JEA,Senior Management,4501,Private Contractors,Children'S Services
Blackpool Council,1107010,REDACTED PERSONAL DATA,3927623,060818-020918,02/08/2018,16234.6,0,CFSBAT,Business Support,5604,Direct Payments,Adult & Families
Blackpool Council,1114424,REDACTED PERSONAL DATA,3927624,060818-020918,02/08/2018,1007.12,0,CFSBAT,Business Support,5604,Direct Payments,Adult & Families
Blackpool Council,1013049,Places For People Living Limited,3927625,1058267,02/08/2018,15167,0,JEA,Senior Management,5551,Rent & Rent Bonds,Children'S Services
Blackpool Council,1109039,REDACTED PERSONAL DATA,3927626,060818-020918,02/08/2018,8514.84,0,CFSBAT,Business Support,5604,Direct Payments,Adult & Families
Blackpool Council,1013049,Places For People Living Limited,3927627,1062639,02/08/2018,15167,0,JEA,Senior Management,5551,Rent & Rent Bonds,Children'S Services
Blackpool Council,1086363,REDACTED PERSONAL DATA,3927628,060818-020918,02/08/2018,913.92,0,CFSBAT,Business Support,5604,Direct Payments,Adult & Families
Blackpool Council,1013049,Places For People Living Limited,3927629,1059372,02/08/2018,8680,0,JEA,Senior Management,5551,Rent & Rent Bonds,Children'S Services
Blackpool Council,1093939,REDACTED PERSONAL DATA,3927630,060818-020918,02/08/2018,4818.72,0,CFSBAT,Business Support,5604,Direct Payments,Adult & Families
Blackpool Council,1013049,Places For People Living Limited,3927631,1058265,02/08/2018,45501,0,JEA,Senior Management,5551,Rent & Rent Bonds,Children'S Services
Blackpool Council,1013049,Places For People Living Limited,3927632,1058266,02/08/2018,15167,0,JEA,Senior Management,5551,Rent & Rent Bonds,Children'S Services
Blackpool Council,1085169,Moving Up Care Ltd,3927633,TS018,02/08/2018,9200,0,JEA,Senior Management,5551,Rent & Rent Bonds,Children'S Services
Blackpool Council,1085169,Moving Up Care Ltd,3927634,TB008,02/08/2018,4500,0,JEA,Senior Management,5551,Rent & Rent Bonds,Children'S Services
Blackpool Council,1105867,Amber Family Ltd,3927635,00444,02/08/2018,11980,0,JEA,Senior Management,4501,Private Contractors,Children'S Services
Blackpool Council,1108648,REDACTED PERSONAL DATA,3927636,060818-020918,02/08/2018,2835.52,0,CFSBAT,Business Support,5604,Direct Payments,Adult & Families
Blackpool Council,1090533,Shared Services Connected Limited - Noms,3927637,20939,02/08/2018,3024,0,JEA,Senior Management,4501,Private Contractors,Children'S Services
Blackpool Council,1115557,Tracey Carysforth,3927638,05,07/08/2018,1822.95,0,CX4002,Disabled Facilities Grants,6506,Consultants Fees,Capital - Adult Social Care
Blackpool Council,1090533,Shared Services Connected Limited - Noms,3927639,20652,02/08/2018,5481,0,JEA,Senior Management,4501,Private Contractors,Children'S Services
Blackpool Council,1090533,Shared Services Connected Limited - Noms,3927640,20651,02/08/2018,3402,0,JEA,Senior Management,4501,Private Contractors,Children'S Services
Blackpool Council,1093844,Roc Northwest Limited,3927641,SIMI125803,02/08/2018,11957.14,0,JEA,Senior Management,4501,Private Contractors,Children'S Services
Blackpool Council,1093844,Roc Northwest Limited,3927642,SIMI125802A,02/08/2018,11957.14,0,JEA,Senior Management,4501,Private Contractors,Children'S Services
Blackpool Council,1093844,Roc Northwest Limited,3927643,SIMI125801,02/08/2018,14614.33,0,JEA,Senior Management,4501,Private Contractors,Children'S Services
Blackpool Council,1093844,Roc Northwest Limited,3927644,SIMI125800A,02/08/2018,14172.27,0,JEA,Senior Management,4501,Private Contractors,Children'S Services
Blackpool Council,1093844,Roc Northwest Limited,3927645,3820,02/08/2018,11571.3,0,JEA,Senior Management,4501,Private Contractors,Children'S Services
Blackpool Council,1055947,Cherish Uk Limited,3927646,1018390,02/08/2018,15722.25,0,JEA,Senior Management,4501,Private Contractors,Children'S Services
Blackpool Council,1006096,Autism Initiatives Uk,3927647,133566-99,01/08/2018,6863.12,0,MHA,Older People ( U65) With Ld,4507,Domiciliary Care,Adult & Families
Blackpool Council,1006096,Autism Initiatives Uk,3927648,133706,01/08/2018,2499.2,0,MHA,Older People ( U65) With Ld,4507,Domiciliary Care,Adult & Families
Blackpool Council,1006096,Autism Initiatives Uk,3927649,137944,01/08/2018,7516.4,0,MHA,Older People ( U65) With Ld,4507,Domiciliary Care,Adult & Families
Blackpool Council,1006096,Autism Initiatives Uk,3927650,134155-100,01/08/2018,6863.12,0,MHA,Older People ( U65) With Ld,4507,Domiciliary Care,Adult & Families
Blackpool Council,1006096,Autism Initiatives Uk,3927651,137341,01/08/2018,7516.4,0,MHA,Older People ( U65) With Ld,4507,Domiciliary Care,Adult & Families
Blackpool Council,1006096,Autism Initiatives Uk,3927652,130843,01/08/2018,2499.2,0,MHA,Older People ( U65) With Ld,4507,Domiciliary Care,Adult & Families
Blackpool Council,1083072,Carewatch Care Services Ltd,3927653,147781,01/08/2018,738.4,0,MVA,18-64,4507,Domiciliary Care,Adult & Families
Blackpool Council,1083072,Carewatch Care Services Ltd,3927661,147789,01/08/2018,994,0,MGD,85+,4507,Domiciliary Care,Adult & Families
Blackpool Council,1083072,Carewatch Care Services Ltd,3927662,147790,01/08/2018,397.6,0,MVB,65-74,4507,Domiciliary Care,Adult & Families
Blackpool Council,1083072,Carewatch Care Services Ltd,3927664,147793,01/08/2018,795.2,0,MGC,75-84,4507,Domiciliary Care,Adult & Families
Blackpool Council,1083072,Carewatch Care Services Ltd,3927665,147794,01/08/2018,596.4,0,MVA,18-64,4507,Domiciliary Care,Adult & Families
Blackpool Council,1083072,Carewatch Care Services Ltd,3927667,147796,01/08/2018,397.6,0,MGC,75-84,4507,Domiciliary Care,Adult & Families
Blackpool Council,1083072,Carewatch Care Services Ltd,3927668,147797,01/08/2018,1221.2,0,MVD,85+,4507,Domiciliary Care,Adult & Families
Blackpool Council,1083072,Carewatch Care Services Ltd,3927669,147798,01/08/2018,397.6,0,MVC,75-84,4507,Domiciliary Care,Adult & Families
Blackpool Council,1083072,Carewatch Care Services Ltd,3927674,147804,01/08/2018,795.2,0,MVC,75-84,4507,Domiciliary Care,Adult & Families
Blackpool Council,1083072,Carewatch Care Services Ltd,3927678,147808,01/08/2018,1192.8,0,MSA,18-64,4507,Domiciliary Care,Adult & Families
Blackpool Council,1083072,Carewatch Care Services Ltd,3927680,147810,01/08/2018,994,0,MVD,85+,4507,Domiciliary Care,Adult & Families
Blackpool Council,1083072,Carewatch Care Services Ltd,3927682,147812,01/08/2018,298.2,0,MVB,65-74,4507,Domiciliary Care,Adult & Families
Blackpool Council,1083072,Carewatch Care Services Ltd,3927684,147814,01/08/2018,1590.4,0,MVD,85+,4507,Domiciliary Care,Adult & Families
Blackpool Council,1083072,Carewatch Care Services Ltd,3927687,147817,01/08/2018,397.6,0,MSB,65-74,4507,Domiciliary Care,Adult & Families
Blackpool Council,1083072,Carewatch Care Services Ltd,3927689,147819,01/08/2018,397.6,0,MVA,18-64,4507,Domiciliary Care,Adult & Families
Blackpool Council,1083072,Carewatch Care Services Ltd,3927690,147820,01/08/2018,255.6,0,MVB,65-74,4507,Domiciliary Care,Adult & Families
Blackpool Council,1083072,Carewatch Care Services Ltd,3927691,147821,01/08/2018,397.6,0,MVC,75-84,4507,Domiciliary Care,Adult & Families
Blackpool Council,1083072,Carewatch Care Services Ltd,3927695,147825,01/08/2018,482.8,0,MFA,Adults Under 65 With Mh,4507,Domiciliary Care,Adult & Families
Blackpool Council,1083072,Carewatch Care Services Ltd,3927698,147829,01/08/2018,447.3,0,MFC,75-84,4507,Domiciliary Care,Adult & Families
Blackpool Council,1083072,Carewatch Care Services Ltd,3927700,147831,01/08/2018,994,0,MVB,65-74,4507,Domiciliary Care,Adult & Families
Blackpool Council,1083072,Carewatch Care Services Ltd,3927701,147832,01/08/2018,1988,0,MVD,85+,4507,Domiciliary Care,Adult & Families
Blackpool Council,1083072,Carewatch Care Services Ltd,3927702,147833,01/08/2018,518.3,0,MVD,85+,4507,Domiciliary Care,Adult & Families
Blackpool Council,1083072,Carewatch Care Services Ltd,3927703,147834,01/08/2018,681.6,0,MVD,85+,4507,Domiciliary Care,Adult & Families
Blackpool Council,1083072,Carewatch Care Services Ltd,3927706,147837,01/08/2018,1590.4,0,MVD,85+,4507,Domiciliary Care,Adult & Families
Blackpool Council,1083072,Carewatch Care Services Ltd,3927707,147838,01/08/2018,795.2,0,MRD,85+,4507,Domiciliary Care,Adult & Families
Blackpool Council,1083072,Carewatch Care Services Ltd,3927710,147842,01/08/2018,795.2,0,MVD,85+,4507,Domiciliary Care,Adult & Families
Blackpool Council,1083072,Carewatch Care Services Ltd,3927712,147844,01/08/2018,1249.6,0,MVC,75-84,4507,Domiciliary Care,Adult & Families
Blackpool Council,1083072,Carewatch Care Services Ltd,3927714,147846,01/08/2018,298.2,0,MFD,85+,4507,Domiciliary Care,Adult & Families
Blackpool Council,1083072,Carewatch Care Services Ltd,3927715,147848,01/08/2018,663.7,0,MVC,75-84,4507,Domiciliary Care,Adult & Families
Blackpool Council,1083072,Carewatch Care Services Ltd,3927720,147853,01/08/2018,795.2,0,MVD,85+,4507,Domiciliary Care,Adult & Families
Blackpool Council,1083072,Carewatch Care Services Ltd,3927721,147854,01/08/2018,596.4,0,MVA,18-64,4507,Domiciliary Care,Adult & Families
Blackpool Council,1083072,Carewatch Care Services Ltd,3927724,147857,01/08/2018,834.25,0,MVD,85+,4507,Domiciliary Care,Adult & Families
Blackpool Council,1083072,Carewatch Care Services Ltd,3927725,147858,01/08/2018,511.2,0,MVA,18-64,4507,Domiciliary Care,Adult & Families
Blackpool Council,1083072,Carewatch Care Services Ltd,3927726,147859,01/08/2018,908.8,0,MVC,75-84,4507,Domiciliary Care,Adult & Families
Blackpool Council,1083072,Carewatch Care Services Ltd,3927727,147860,01/08/2018,475.7,0,MVA,18-64,4507,Domiciliary Care,Adult & Families
Blackpool Council,1083072,Carewatch Care Services Ltd,3927729,147862,01/08/2018,390.5,0,MGC,75-84,4507,Domiciliary Care,Adult & Families
Blackpool Council,1083072,Carewatch Care Services Ltd,3927730,147863,01/08/2018,397.6,0,MVA,18-64,4507,Domiciliary Care,Adult & Families
Blackpool Council,1083072,Carewatch Care Services Ltd,3927731,147864,01/08/2018,447.3,0,MVB,65-74,4507,Domiciliary Care,Adult & Families
Blackpool Council,1083072,Carewatch Care Services Ltd,3927732,147865,01/08/2018,852,0,MVC,75-84,4507,Domiciliary Care,Adult & Families
Blackpool Council,1083072,Carewatch Care Services Ltd,3927733,147866,01/08/2018,788.1,0,MVC,75-84,4507,Domiciliary Care,Adult & Families
Blackpool Council,1083072,Carewatch Care Services Ltd,3927736,147869,01/08/2018,454.4,0,MGD,85+,4507,Domiciliary Care,Adult & Families
Blackpool Council,1083072,Carewatch Care Services Ltd,3927738,147871,01/08/2018,1533.6,0,MVD,85+,4507,Domiciliary Care,Adult & Families
Blackpool Council,1083072,Carewatch Care Services Ltd,3927739,147872,01/08/2018,397.6,0,MFB,65-74,4507,Domiciliary Care,Adult & Families
Blackpool Council,1083072,Carewatch Care Services Ltd,3927740,147873,01/08/2018,426,0,MVB,65-74,4507,Domiciliary Care,Adult & Families
Blackpool Council,1083072,Carewatch Care Services Ltd,3927742,147875,01/08/2018,454.4,0,MVC,75-84,4507,Domiciliary Care,Adult & Families
Blackpool Council,1083072,Carewatch Care Services Ltd,3927743,147876,01/08/2018,568,0,MVD,85+,4507,Domiciliary Care,Adult & Families
Blackpool Council,1083072,Carewatch Care Services Ltd,3927747,147880,01/08/2018,871.67,0,MVC,75-84,4507,Domiciliary Care,Adult & Families
Blackpool Council,1083072,Carewatch Care Services Ltd,3927748,147881,01/08/2018,624.8,0,MVA,18-64,4507,Domiciliary Care,Adult & Families
Blackpool Council,1083072,Carewatch Care Services Ltd,3927749,147882,01/08/2018,759.7,0,MVC,75-84,4507,Domiciliary Care,Adult & Families
Blackpool Council,1083072,Carewatch Care Services Ltd,3927750,147883,01/08/2018,269.8,0,MVB,65-74,4507,Domiciliary Care,Adult & Families
Blackpool Council,1083072,Carewatch Care Services Ltd,3927752,147885,01/08/2018,1590.4,0,MVA,18-64,4507,Domiciliary Care,Adult & Families
Blackpool Council,1083072,Carewatch Care Services Ltd,3927753,147886,01/08/2018,312.4,0,MVA,18-64,4507,Domiciliary Care,Adult & Families
Blackpool Council,1083072,Carewatch Care Services Ltd,3927754,147887,01/08/2018,710,0,MVD,85+,4507,Domiciliary Care,Adult & Families
Blackpool Council,1083072,Carewatch Care Services Ltd,3927755,147888,01/08/2018,390.5,0,MGC,75-84,4507,Domiciliary Care,Adult & Families
Blackpool Council,1083072,Carewatch Care Services Ltd,3927756,147889,01/08/2018,397.6,0,MVC,75-84,4507,Domiciliary Care,Adult & Families
Blackpool Council,1083072,Carewatch Care Services Ltd,3927757,147890,01/08/2018,781,0,MVB,65-74,4507,Domiciliary Care,Adult & Families
Blackpool Council,1083072,Carewatch Care Services Ltd,3927760,147893,01/08/2018,397.6,0,MVB,65-74,4507,Domiciliary Care,Adult & Families
Blackpool Council,1083072,Carewatch Care Services Ltd,3927762,147895,01/08/2018,596.4,0,MVA,18-64,4507,Domiciliary Care,Adult & Families
Blackpool Council,1083072,Carewatch Care Services Ltd,3927765,147899,01/08/2018,695.8,0,MVA,18-64,4507,Domiciliary Care,Adult & Families
Blackpool Council,1083072,Carewatch Care Services Ltd,3927766,147900,01/08/2018,1093.4,0,MFB,65-74,4507,Domiciliary Care,Adult & Families
Blackpool Council,1083072,Carewatch Care Services Ltd,3927767,147901,01/08/2018,312.4,0,MSA,18-64,4507,Domiciliary Care,Adult & Families
Blackpool Council,1083072,Carewatch Care Services Ltd,3927768,147902,01/08/2018,1590.4,0,MVB,65-74,4507,Domiciliary Care,Adult & Families
Blackpool Council,1083072,Carewatch Care Services Ltd,3927769,147903,01/08/2018,482.8,0,MVB,65-74,4507,Domiciliary Care,Adult & Families
Blackpool Council,1083072,Carewatch Care Services Ltd,3927770,147904,01/08/2018,575.1,0,MSC,75-84,4507,Domiciliary Care,Adult & Families
Blackpool Council,1083072,Carewatch Care Services Ltd,3927772,147906,01/08/2018,284,0,MVC,75-84,4507,Domiciliary Care,Adult & Families
Blackpool Council,1083072,Carewatch Care Services Ltd,3927773,147907,01/08/2018,397.6,0,MVC,75-84,4507,Domiciliary Care,Adult & Families
Blackpool Council,1083072,Carewatch Care Services Ltd,3927774,147908,01/08/2018,447.3,0,MVD,85+,4507,Domiciliary Care,Adult & Families
Blackpool Council,1083072,Carewatch Care Services Ltd,3927785,147919,01/08/2018,397.6,0,MVC,75-84,4507,Domiciliary Care,Adult & Families
Blackpool Council,1083072,Carewatch Care Services Ltd,3927787,147921,01/08/2018,397.6,0,MVD,85+,4507,Domiciliary Care,Adult & Families
Blackpool Council,1083072,Carewatch Care Services Ltd,3927788,147922,01/08/2018,2385.6,0,MVC,75-84,4507,Domiciliary Care,Adult & Families
Blackpool Council,1083072,Carewatch Care Services Ltd,3927791,147925,01/08/2018,937.2,0,MVB,65-74,4507,Domiciliary Care,Adult & Families
Blackpool Council,1083072,Carewatch Care Services Ltd,3927792,147926,01/08/2018,284,0,MVA,18-64,4507,Domiciliary Care,Adult & Families
Blackpool Council,1083072,Carewatch Care Services Ltd,3927795,147929,01/08/2018,596.4,0,MGC,75-84,4507,Domiciliary Care,Adult & Families
Blackpool Council,1083072,Carewatch Care Services Ltd,3927796,147930,01/08/2018,994,0,MSD,85+,4507,Domiciliary Care,Adult & Families
Blackpool Council,1083072,Carewatch Care Services Ltd,3927797,147931,01/08/2018,624.8,0,MVC,75-84,4507,Domiciliary Care,Adult & Families
Blackpool Council,1083072,Carewatch Care Services Ltd,3927799,147933,01/08/2018,560.9,0,MVB,65-74,4507,Domiciliary Care,Adult & Families
Blackpool Council,1083072,Carewatch Care Services Ltd,3927800,147934,01/08/2018,859.1,0,MSA,18-64,4507,Domiciliary Care,Adult & Families
Blackpool Council,1083072,Carewatch Care Services Ltd,3927801,147935,01/08/2018,454.4,0,MFB,65-74,4507,Domiciliary Care,Adult & Families
Blackpool Council,1083072,Carewatch Care Services Ltd,3927803,147937,01/08/2018,482.8,0,MFC,75-84,4507,Domiciliary Care,Adult & Families
Blackpool Council,1083072,Carewatch Care Services Ltd,3927809,147944,01/08/2018,255.6,0,MVD,85+,4507,Domiciliary Care,Adult & Families
Blackpool Council,1083072,Carewatch Care Services Ltd,3927815,147951,01/08/2018,617.7,0,MVC,75-84,4507,Domiciliary Care,Adult & Families
Blackpool Council,1083072,Carewatch Care Services Ltd,3927816,147953,01/08/2018,1583.3,0,MVC,75-84,4507,Domiciliary Care,Adult & Families
Blackpool Council,1083072,Carewatch Care Services Ltd,3927817,147954,01/08/2018,497,0,MVC,75-84,4507,Domiciliary Care,Adult & Families
Blackpool Council,1083072,Carewatch Care Services Ltd,3927818,147955,01/08/2018,795.2,0,MSD,85+,4507,Domiciliary Care,Adult & Families
Blackpool Council,1083072,Carewatch Care Services Ltd,3927820,147958,01/08/2018,795.2,0,MVD,85+,4507,Domiciliary Care,Adult & Families
Blackpool Council,1083072,Carewatch Care Services Ltd,3927821,147959,01/08/2018,596.4,0,MVB,65-74,4507,Domiciliary Care,Adult & Families
Blackpool Council,1083072,Carewatch Care Services Ltd,3927823,147961,01/08/2018,795.2,0,MVC,75-84,4507,Domiciliary Care,Adult & Families
Blackpool Council,1083072,Carewatch Care Services Ltd,3927824,147962,01/08/2018,727.75,0,MVD,85+,4507,Domiciliary Care,Adult & Families
Blackpool Council,1083072,Carewatch Care Services Ltd,3927826,147964,01/08/2018,1704,0,MVA,18-64,4507,Domiciliary Care,Adult & Families
Blackpool Council,1083072,Carewatch Care Services Ltd,3927827,147965,01/08/2018,1789.2,0,MVD,85+,4507,Domiciliary Care,Adult & Families
Blackpool Council,1083072,Carewatch Care Services Ltd,3927830,147969,01/08/2018,795.2,0,MSC,75-84,4507,Domiciliary Care,Adult & Families
Blackpool Council,1083072,Carewatch Care Services Ltd,3927833,147972,01/08/2018,2385.6,0,MVC,75-84,4507,Domiciliary Care,Adult & Families
Blackpool Council,1083072,Carewatch Care Services Ltd,3927835,147974,01/08/2018,397.6,0,MVD,85+,4507,Domiciliary Care,Adult & Families
Blackpool Council,1083072,Carewatch Care Services Ltd,3927836,147975,01/08/2018,823.6,0,MVC,75-84,4507,Domiciliary Care,Adult & Families
Blackpool Council,1083072,Carewatch Care Services Ltd,3927839,147978,01/08/2018,255.6,0,MVA,18-64,4507,Domiciliary Care,Adult & Families
Blackpool Council,1083072,Carewatch Care Services Ltd,3927840,147980,01/08/2018,568,0,MSC,75-84,4507,Domiciliary Care,Adult & Families
Blackpool Council,1083072,Carewatch Care Services Ltd,3927842,147982,01/08/2018,397.6,0,MGD,85+,4507,Domiciliary Care,Adult & Families
Blackpool Council,1083072,Carewatch Care Services Ltd,3927843,147984,01/08/2018,454.4,0,MVA,18-64,4507,Domiciliary Care,Adult & Families
Blackpool Council,1083072,Carewatch Care Services Ltd,3927844,147985,01/08/2018,397.6,0,MSC,75-84,4507,Domiciliary Care,Adult & Families
Blackpool Council,1083072,Carewatch Care Services Ltd,3927845,147986,01/08/2018,397.6,0,MGC,75-84,4507,Domiciliary Care,Adult & Families
